Workbook

Sheet РАЗДЕЛ 1(АМП)
A1: Приложение № 1
A2: к Дополнительному соглашению № 4
A3: от "19" июля 2023 года
A6: Тарифы на оплату медицинских услуг, оказываемых медицинскими организациями, работающими в системе обязательного медицинского страхования Магаданской области, предоставляемых в рамках базовой программы обязательного медицинского страхования на 2023 год
A8: вступают в действие с "01" июля 2023 года
A10: РАЗДЕЛ 1. АМБУЛАТОРНАЯ МЕДИЦИНСКАЯ ПОМОЩЬ
A11: Применяется способ оплаты (код по классификатору V010) | B11: Наименование врачебной специальности | C11: Применяется для целей посещения (код по классификатору V025) | D11: Стоимость единицы объёма, рублей
A12: 1 | B12: 2 | C12: 3 | D12: 4
A13: 1.1. СТОИМОСТЬ ЕДИНИЦЫ ОБЪЁМА МЕДИЦИНСКОЙ ПОМОЩИ ДЛЯ МЕДИЦИНСКИХ ОРГАНИЗАЦИЙ I УРОВНЯ:
A14: 1.1.1. ТАРИФЫ НА ОПЛАТУ ЕДИНИЦЫ ОБЪЁМА АМБУЛАТОРНОЙ МЕДИЦИНСКОЙ ПОМОЩИ, ОКАЗЫВАЕМОЙ ВРАЧАМИ-СПЕЦИАЛИСТАМИ, СРЕДНИМ МЕДИЦИНСИМ ПЕРСОНАЛОМ ВЕДУЩИМ САМОСТОЯТЕЛЬНЫЙ ПРИЁМ, ДЛЯ МЕДИЦИНСКИХ ОРГАНИЗАЦИЙ ФИНАНСИРУЕМЫХ ПО ПОДУШЕВОМУ НОРМАТИВУ ФИНАНСИРОВАНИЯ НА ПРИКРЕПИВШИХСЯ ЛИЦ С УЧЁТОМ ПОКАЗАТЕЛЕЙ РЕЗУЛЬТАТИВНОСТИ (ВКЛЮЧАЯ ПОКАЗАТЕЛИ ОБЪЁМА МЕДИЦИНСКОЙ ПОМОЩИ) (В ПОДУШЕВОЙ НОРМАТИВ НЕ ВКЛЮЧАЮТСЯ: ПРОФИЛАКТИЧЕСКИЕ МЕДИЦИНСКИЕ ОСМОТРЫ И ДИСПАНСЕРИЗАЦИИ, ДИСПАНСЕРНОЕ НАБЛЮДЕНИЕ, САМОСТОЯТЕЛЬНЫЕ МЕДИЦИНСКИЕ УСЛУГИ,ПОМОЩЬ, МЕДИЦИНСКАЯ ПОМОЩЬОКАЗАННАЯ НЕ ПРИКРЕПЛЕННОМУ НАСЕЛЕНИЮ МОБИЛЬНЫМИ МЕДИЦИНСКИМИ БРИГАДАМИ):
A15: 31 | B15: средняя стоимость одного посещения с профилактической и иной целью | C15: 1.0, 1.2, 2.1, 2.5, 2.6 | D15: 1024.56
A16: 31 | B16: средняя стоимость одного обращения по заболеванию | C16: 3.0 | D16: 5385.26
A17: 31 | B17: Диспансерное наблюдение детского населения (комплексное посещение) | C17: 1.3 | D17: 4485.77
A18: 31 | B18: средняя стоимость посещения по неотложной медицинской помощи | C18: 1.1 | D18: 2870.18
A19: 31 | B19: стоматологическая медицинская помощь | C19: 1.0, 1.1,1.3, 2.1, 2.2, 2.6, 3.0 | D19: раздел 5б
A20: 28 | B20: самостоятельные медицинские услуги | C20: 3.0 | D20: раздел 5а
A21: 30 | B21: профилактические медицинские осмотры, в том числе в рамках диспансеризации (комплексное посещение) | C21: 2.1, 2.2 | D21: Приложения № 9-13
A22: 30 | B22: Диспансерное наблюдение взрослого населения (комплексное посещение) | C22: 1.3 | D22: 4485.77
A23: 30 | B23: Медицинская реабилитация (комплексное посещение) | C23: 3.0 | D23: 70387.62
A24: КОМПЛЕКСНОЕ ОБСЛЕДОВАНИЕ В ЦЕНТРЕ ЗДОРОВЬЯ
A25: 31 | B25: для взрослых | C25: 2.3 | D25: 4536.87
A26: ДИНАМИЧЕСКОЕ НАБЛЮДЕНИЕ В ЦЕНТРЕ ЗДОРОВЬЯ
A27: 31 | B27: для взрослых | C27: 2.6 | D27: 1805.21
A28: ШКОЛА САХАРНОГО ДИАБЕТА
A29: 30 | B29: Взрослые с сахарным диабетом 1 типа | C29: 2.6 | D29: 4801.75
A30: 30 | B30: Взрослые с сахарным диабетом 2 типа | C30: 2.6 | D30: 3974.85
A31: 30 | B31: Дети и подростки с сахарным диабетом | C31: 2.6 | D31: 6295.92
A32: МОБИЛЬНЫЕ МЕДИЦИНСКИЕ БРИГАДЫ (ТАРИФ БЕЗ УЧЕТА ПОВЫШАЮЩЕГО КОЭФФИЦИЕНТА - 1,2)
A33: 29 | B33: Детская хирургия | C33: 1.0, 1.2, 2.1, 2.5, 2.6 | D33: 840.31
A34: 29 | B34: Детская урология-адрология | C34: 1.0, 1.2, 2.1, 2.5, 2.6 | D34: 679.96
A35: 29 | B35: Детская эндокринология | C35: 1.0, 1.2, 2.1, 2.5, 2.6 | D35: 1622.72
A36: 29 | B36: Отоларингология | C36: 1.0, 1.2, 2.1, 2.5, 2.6 | D36: 654.88
A37: 29 | B37: Офтальмология | C37: 1.0, 1.2, 2.1, 2.5, 2.6 | D37: 561.38
A38: 29 | B38: Травматология и ортопедия | C38: 1.0, 1.2, 2.1, 2.5, 2.6 | D38: 840.31
A39: 28 | B39: стоматологическая медицинская помощь | C39: 1.0, 1.1,1.3, 2.1, 2.2, 2.6, 3.0 | D39: раздел 5б
A40: 1.1.2. СТОИМОСТЬ ЕДИНИЦЫ ОБЪЁМА МЕДИЦИНСКОЙ ПОМОЩИ ДЛЯ МЕДИЦИНСКИХ ОРГАНИЗАЦИЙ НЕ ИМЕЮЩИХ ПРИКРЕПЛЕННОЕ НАСЕЛЕНИЕ:
A41: СТОИМОСТЬ ОДНОГО ПОСЕЩЕНИЯ С ПРОФИЛАКТИЧЕСКОЙ И ИНОЙ ЦЕЛЬЮ:
A42: 29 | B42: Акушерство-гинекология | C42: 1.0, 1.2, 2.1, 2.5, 2.6 | D42: 1101.08
A43: 29 | B43: Урология | C43: 1.0, 1.2, 2.1, 2.5, 2.6 | D43: 679.96
A44: 29 | B44: Хирургия | C44: 1.0, 1.2, 2.1, 2.5, 2.6 | D44: 840.31
A45: 29 | B45: Колопроктология | C45: 1.0, 1.2, 2.1, 2.5, 2.6 | D45: 840.31
A46: 29 | B46: Отоларингология | C46: 1.0, 1.2, 2.1, 2.5, 2.6 | D46: 654.88
A47: 29 | B47: Детская урология-адрология | C47: 1.0, 1.2, 2.1, 2.5, 2.6 | D47: 679.96
A48: СТОИМОСТЬ ОДНОГО ОБРАЩЕНИЯ ПО ПОВОДУ ЗАБОЛЕВАНИЯ:
A49: 30 | B49: Акушерство-гинекология | C49: 3.0 | D49: 5787.49
A50: 30 | B50: Урология | C50: 3.0 | D50: 3573.98
A51: 30 | B51: Хирургия | C51: 3.0 | D51: 4416.83
A52: 30 | B52: Колопроктология | C52: 3.0 | D52: 4416.83
A53: 30 | B53: Отоларингология | C53: 3.0 | D53: 3442.15
A54: 30 | B54: Детская урология-адрология | C54: 3.0 | D54: 3573.98
A55: 28 | B55: Самостоятельные медицинские услуги | C55: 3.0 | D55: раздел 5а
A56: СТОИМОСТЬ ОДНОГО КОМПЛЕКСНОГО ПОСЕЩЕНИЯ:
A57: 30 | B57: Медицинская реабилитация (комплексное посещение) | C57: 3.0 | D57: 70387.62
A58: 1.1.2.2. СТОМАТОЛОГИЧЕСКАЯ МЕДИЦИНСКАЯ ПОМОЩЬ
A59: 28 | B59: стоматологическая медицинская помощь | C59: 1.0, 1.1,1.3, 2.1, 2.2, 2.6, 3.0 | D59: раздел 5б

Sheet РАЗДЕЛ 2 (КС)
B2: РАЗДЕЛ 2. СТАЦИОНАРНАЯ МЕДИЦИНСКАЯ ПОМОЩЬ ПО КСГ
A3: Код профиля | B3: Профиль | C3: КСГ | D3: Наименование группы заболеваний (КСГ) | E3: Стоимость законченного случая лечения по уровням оказания медицинской помощи, рублей | AD3: Условия оказания медпомощи | AE3: Тип посещения | AF3: Взрослый профлиь | AG3: Тариф | AH3: Детский профиль | AI3: Код МО (здесь не нужен!) | AJ3: Длительность стационара
E5: I УРОВНЬ | F5: II УРОВНЬ | G5: III УРОВНЬ
A6: 1 | B6: 2 | C6: 3 | D6: 4 | E6: 5 | F6: 6 | G6: 7
A7: 1 | B7: Акушерское дело | C7: st01.001 | D7: Беременность без патологии, дородовая госпитализация в отделение сестринского ухода | F7: 54421.83
A8: 2 | B8: Акушерство и гинекология | C8: st02.001 | D8: Осложнения, связанные с беременностью | F8: 148800.18
A9: 2 | B9: Акушерство и гинекология | C9: st02.002 | D9: Беременность, закончившаяся абортивным исходом | F9: 42666.72
A10: 2 | B10: Акушерство и гинекология | C10: st02.003 | D10: Родоразрешение | F10: 156800.19
A11: 2 | B11: Акушерство и гинекология | C11: st02.004 | D11: Кесарево сечение | F11: 161600.19
A12: 2 | B12: Акушерство и гинекология | C12: st02.005 | D12: Осложнения послеродового периода | F12: 118400.14
A13: 2 | B13: Акушерство и гинекология | C13: st02.006 | D13: Послеродовой сепсис | F13: 489143.44
A14: 2 | B14: Акушерство и гинекология | C14: st02.007 | D14: Воспалительные болезни женских половых органов | F14: 113600.14
A15: 2 | B15: Акушерство и гинекология | C15: st02.008 | D15: Доброкачественные новообразования, новообразования in situ, неопределенного и неизвестного характера женских половых органов | F15: 142400.17
A16: 2 | B16: Акушерство и гинекология | C16: st02.009 | D16: Другие болезни, врожденные аномалии, повреждения женских половых органов | F16: 73600.09
A17: 2 | B17: Акушерство и гинекология | C17: st02.010 | D17: Операции на женских половых органах (уровень 1) | F17: 62400.07
A18: 2 | B18: Акушерство и гинекология | C18: st02.011 | D18: Операции на женских половых органах (уровень 2) | F18: 92800.11
A19: 2 | B19: Акушерство и гинекология | C19: st02.012 | D19: Операции на женских половых органах (уровень 3) | F19: 178285.93
A20: 2 | B20: Акушерство и гинекология | C20: st02.013 | D20: Операции на женских половых органах (уровень 4) | F20: 352000.42
A21: 2 | B21: Акушерство и гинекология | C21: st02.014 | D21: Слинговые операции при недержании мочи | F21: 269995.29
A22: 3 | B22: Аллергология и иммунология | C22: st03.001 | D22: Нарушения с вовлечением иммунного механизма | F22: 516572.04
A23: 3 | B23: Аллергология и иммунология | C23: st03.002 | D23: Ангионевротический отек, анафилактический шок | F23: 29387.79
A24: 4 | B24: Гастроэнтерология | C24: st04.001 | D24: Язва желудка и двенадцатиперстной кишки | F24: 96870.86
A25: 4 | B25: Гастроэнтерология | C25: st04.002 | D25: Воспалительные заболевания кишечника | F25: 229714.56
A26: 4 | B26: Гастроэнтерология | C26: st04.003 | D26: Болезни печени, невирусные (уровень 1) | F26: 98285.83
A27: 4 | B27: Гастроэнтерология | C27: st04.004 | D27: Болезни печени, невирусные (уровень 2) | F27: 138285.88
A28: 4 | B28: Гастроэнтерология | C28: st04.005 | D28: Болезни поджелудочной железы | F28: 99428.69
A29: 4 | B29: Гастроэнтерология | C29: st04.006 | D29: Панкреатит с синдромом органной дисфункции | F29: 478857.71
A30: 5 | B30: Гематология | C30: st05.001 | D30: Анемии (уровень 1) | F30: 107428.7
A31: 5 | B31: Гематология | C31: st05.002 | D31: Анемии (уровень 2) | F31: 608000.72
A32: 5 | B32: Гематология | C32: st05.003 | D32: Нарушения свертываемости крови | F32: 514286.33
A33: 5 | B33: Гематология | C33: st05.004 | D33: Другие болезни крови и кроветворных органов (уровень 1) | F33: 124571.58
A34: 5 | B34: Гематология | C34: st05.005 | D34: Другие болезни крови и кроветворных органов (уровень 2) | F34: 515429.18
A35: 5 | B35: Гематология | C35: st05.008 | D35: Лекарственная терапия при доброкачественных заболеваниях крови и пузырном заносе | F35: 234285.99
A36: 6 | B36: Дерматовенерология | C36: st06.004 | D36: Лечение дерматозов с применением наружной терапии | F36: 35895.42
A37: 6 | B37: Дерматовенерология | C37: st06.005 | D37: Лечение дерматозов с применением наружной терапии, физиотерапии, плазмафереза | F37: 157104.66
A38: 6 | B38: Дерматовенерология | C38: st06.006 | D38: Лечение дерматозов с применением наружной и системной терапии | F38: 238316.84
A39: 6 | B39: Дерматовенерология | C39: st06.007 | D39: Лечение дерматозов с применением наружной терапии и фототерапии | F39: 322081.09
A40: 7 | B40: Детская кардиология | C40: st07.001 | D40: Врожденные аномалии сердечно-сосудистой системы, дети | F40: 210285.96
A41: 8 | B41: Детская онкология | C41: st08.001 | D41: Лекарственная терапия при злокачественных новообразованиях других локализаций (кроме лимфоидной и кроветворной тканей), дети | F41: 499429.17
A42: 8 | B42: Детская онкология | C42: st08.002 | D42: Лекарственная терапия при остром лейкозе, дети | F42: 893715.35
A43: 8 | B43: Детская онкология | C43: st08.003 | D43: Лекарственная терапия при других злокачественных новообразованиях лимфоидной и кроветворной тканей, дети | F43: 649143.63
A44: 9 | B44: Детская урология-андрология | C44: st09.001 | D44: Операции на мужских половых органах, дети (уровень 1) | F44: 155200.18
A45: 9 | B45: Детская урология-андрология | C45: st09.002 | D45: Операции на мужских половых органах, дети (уровень 2) | F45: 177600.21
A46: 9 | B46: Детская урология-андрология | C46: st09.003 | D46: Операции на мужских половых органах, дети (уровень 3) | F46: 300190.83
A47: 9 | B47: Детская урология-андрология | C47: st09.004 | D47: Операции на мужских половых органах, дети (уровень 4) | F47: 423619.55
A48: 9 | B48: Детская урология-андрология | C48: st09.005 | D48: Операции на почке и мочевыделительной системе, дети (уровень 1) | F48: 184000.22
A49: 9 | B49: Детская урология-андрология | C49: st09.006 | D49: Операции на почке и мочевыделительной системе, дети (уровень 2) | F49: 195200.23
A50: 9 | B50: Детская урология-андрология | C50: st09.007 | D50: Операции на почке и мочевыделительной системе, дети (уровень 3) | F50: 284800.34
A51: 9 | B51: Детская урология-андрология | C51: st09.008 | D51: Операции на почке и мочевыделительной системе, дети (уровень 4) | F51: 339809.93
A52: 9 | B52: Детская урология-андрология | C52: st09.009 | D52: Операции на почке и мочевыделительной системе, дети (уровень 5) | F52: 359619.48
A53: 9 | B53: Детская урология-андрология | C53: st09.010 | D53: Операции на почке и мочевыделительной системе, дети (уровень 6) | F53: 652191.25
A54: 10 | B54: Детская хирургия | C54: st10.001 | D54: Детская хирургия (уровень 1) | F54: 472000.56
A55: 10 | B55: Детская хирургия | C55: st10.002 | D55: Детская хирургия (уровень 2) | F55: 852801.01
A56: 10 | B56: Детская хирургия | C56: st10.003 | D56: Аппендэктомия, дети (уровень 1) | F56: 117333.47
A57: 10 | B57: Детская хирургия | C57: st10.004 | D57: Аппендэктомия, дети (уровень 2) | F57: 155200.18
A58: 10 | B58: Детская хирургия | C58: st10.005 | D58: Операции по поводу грыж, дети (уровень 1) | F58: 134095.4
A59: 10 | B59: Детская хирургия | C59: st10.006 | D59: Операции по поводу грыж, дети (уровень 2) | F59: 168000.2
A60: 10 | B60: Детская хирургия | C60: st10.007 | D60: Операции по поводу грыж, дети (уровень 3) | F60: 200000.24
A61: 11 | B61: Детская эндокринология | C61: st11.001 | D61: Сахарный диабет, дети | F61: 172571.63
A62: 11 | B62: Детская эндокринология | C62: st11.002 | D62: Заболевания гипофиза, дети | F62: 258286.02
A63: 11 | B63: Детская эндокринология | C63: st11.003 | D63: Другие болезни эндокринной системы, дети (уровень 1) | F63: 157714.47
A64: 11 | B64: Детская эндокринология | C64: st11.004 | D64: Другие болезни эндокринной системы, дети (уровень 2) | F64: 322286.1
A65: 12 | B65: Инфекционные болезни | C65: st12.001 | D65: Кишечные инфекции, взрослые | F65: 66285.79
A66: 12 | B66: Инфекционные болезни | C66: st12.002 | D66: Кишечные инфекции, дети | F66: 70857.23
A67: 12 | B67: Инфекционные болезни | C67: st12.003 | D67: Вирусный гепатит острый | F67: 160000.19
A68: 12 | B68: Инфекционные болезни | C68: st12.004 | D68: Вирусный гепатит хронический | F68: 145143.03
A69: 12 | B69: Инфекционные болезни | C69: st12.005 | D69: Сепсис, взрослые | F69: 356571.85
A70: 12 | B70: Инфекционные болезни | C70: st12.006 | D70: Сепсис, дети | F70: 515429.18
A71: 12 | B71: Инфекционные болезни | C71: st12.007 | D71: Сепсис с синдромом органной дисфункции | F71: 822858.12
A72: 12 | B72: Инфекционные болезни | C72: st12.008 | D72: Другие инфекционные и паразитарные болезни, взрослые | F72: 134857.3
A73: 12 | B73: Инфекционные болезни | C73: st12.009 | D73: Другие инфекционные и паразитарные болезни, дети | F73: 112000.13
A74: 12 | B74: Инфекционные болезни | C74: st12.010 | D74: Респираторные инфекции верхних дыхательных путей с осложнениями, взрослые | F74: 40000.05
A75: 12 | B75: Инфекционные болезни | C75: st12.011 | D75: Респираторные инфекции верхних дыхательных путей, дети | F75: 57142.93
A76: 12 | B76: Инфекционные болезни | C76: st12.012 | D76: Грипп, вирус гриппа идентифицирован | F76: 114285.85
A77: 12 | B77: Инфекционные болезни | C77: st12.013 | D77: Грипп и пневмония с синдромом органной дисфункции | F77: 502857.74
A78: 12 | B78: Инфекционные болезни | C78: st12.014 | D78: Клещевой энцефалит | F78: 262857.46
A79: 12 | B79: Инфекционные болезни | C79: st12.015 | D79: Коронавирусная инфекция COVID-19 (уровень 1) | F79: 201985.57
A80: 12 | B80: Инфекционные болезни | C80: st12.016 | D80: Коронавирусная инфекция COVID-19 (уровень 2) | F80: 334436.37
A81: 12 | B81: Инфекционные болезни | C81: st12.017 | D81: Коронавирусная инфекция COVID-19 (уровень 3) | F81: 515748.33
A82: 12 | B82: Инфекционные болезни | C82: st12.018 | D82: Коронавирусная инфекция COVID-19 (уровень 4) | F82: 1153963.76
A83: 12 | B83: Инфекционные болезни | C83: st12.019 | D83: Коронавирусная инфекция COVID-19 (долечивание) | F83: 236571.71
A84: 13 | B84: Кардиология | C84: st13.001 | D84: Нестабильная стенокардия, инфаркт миокарда, легочная эмболия (уровень 1) | F84: 162285.91 | G84: 193197.51
A85: 13 | B85: Кардиология | C85: st13.002 | D85: Нестабильная стенокардия, инфаркт миокарда, легочная эмболия (уровень 2) | F85: 321143.24 | G85: 382313.38
A86: 13 | B86: Кардиология | C86: st13.004 | D86: Нарушения ритма и проводимости (уровень 1) | F86: 128000.15 | G86: 152381.13
A87: 13 | B87: Кардиология | C87: st13.005 | D87: Нарушения ритма и проводимости (уровень 2) | F87: 229714.56 | G87: 273469.71
A88: 13 | B88: Кардиология | C88: st13.006 | D88: Эндокардит, миокардит, перикардит, кардиомиопатии (уровень 1) | F88: 162285.91 | G88: 193197.51
A89: 13 | B89: Кардиология | C89: st13.007 | D89: Эндокардит, миокардит, перикардит, кардиомиопатии (уровень 2) | F89: 272000.32 | G89: 323809.91
A90: 13 | B90: Кардиология | C90: st13.008 | D90: Инфаркт миокарда, легочная эмболия, лечение с применением тромболитической терапии (уровень 1) | F90: 184000.22 | G90: 219047.88
A91: 13 | B91: Кардиология | C91: st13.009 | D91: Инфаркт миокарда, легочная эмболия, лечение с применением тромболитической терапии (уровень 2) | F91: 341714.69 | G91: 406803.2
A92: 13 | B92: Кардиология | C92: st13.010 | D92: Инфаркт миокарда, легочная эмболия, лечение с применением тромболитической терапии (уровень 3) | F92: 404571.91 | G92: 481633.23
A93: 14 | B93: Колопроктология | C93: st14.001 | D93: Операции на кишечнике и анальной области (уровень 1) | F93: 91428.68
A94: 14 | B94: Колопроктология | C94: st14.002 | D94: Операции на кишечнике и анальной области (уровень 2) | F94: 198857.38
A95: 14 | B95: Колопроктология | C95: st14.003 | D95: Операции на кишечнике и анальной области (уровень 3) | F95: 284571.77
A96: 15 | B96: Неврология | C96: st15.001 | D96: Воспалительные заболевания ЦНС, взрослые | F96: 112000.13
A97: 15 | B97: Неврология | C97: st15.002 | D97: Воспалительные заболевания ЦНС, дети | F97: 177143.07
A98: 15 | B98: Неврология | C98: st15.003 | D98: Дегенеративные болезни нервной системы | F98: 96000.11
A99: 15 | B99: Неврология | C99: st15.004 | D99: Демиелинизирующие болезни нервной системы | F99: 152000.18
A100: 15 | B100: Неврология | C100: st15.005 | D100: Эпилепсия, судороги (уровень 1) | F100: 104489.92
A101: 15 | B101: Неврология | C101: st15.007 | D101: Расстройства периферической нервной системы | F101: 116571.57
A102: 15 | B102: Неврология | C102: st15.008 | D102: Неврологические заболевания, лечение с применением ботулотоксина (уровень 1) | F102: 155646.44
A103: 15 | B103: Неврология | C103: st15.009 | D103: Неврологические заболевания, лечение с применением ботулотоксина (уровень 2) | F103: 229660.14
A104: 15 | B104: Неврология | C104: st15.010 | D104: Другие нарушения нервной системы (уровень 1) | F104: 84571.53
A105: 15 | B105: Неврология | C105: st15.011 | D105: Другие нарушения нервной системы (уровень 2) | F105: 113142.99
A106: 15 | B106: Неврология | C106: st15.012 | D106: Транзиторные ишемические приступы, сосудистые мозговые синдромы | F106: 131428.73
A107: 15 | B107: Неврология | C107: st15.013 | D107: Кровоизлияние в мозг | F107: 322286.1
A108: 15 | B108: Неврология | C108: st15.014 | D108: Инфаркт мозга (уровень 1) | F108: 288000.34
A109: 15 | B109: Неврология | C109: st15.015 | D109: Инфаркт мозга (уровень 2) | F109: 356571.85
A110: 15 | B110: Неврология | C110: st15.016 | D110: Инфаркт мозга (уровень 3) | F110: 515429.18
A111: 15 | B111: Неврология | C111: st15.017 | D111: Другие цереброваскулярные болезни | F111: 93714.4
A112: 15 | B112: Неврология | C112: st15.018 | D112: Эпилепсия, судороги (уровень 2) | F112: 262857.46
A113: 15 | B113: Неврология | C113: st15.019 | D113: Эпилепсия (уровень 3) | F113: 361143.29
A114: 15 | B114: Неврология | C114: st15.020 | D114: Эпилепсия (уровень 4) | F114: 553143.52
A115: 16 | B115: Нейрохирургия | C115: st16.001 | D115: Паралитические синдромы, травма спинного мозга (уровень 1) | F115: 112000.13
A116: 16 | B116: Нейрохирургия | C116: st16.002 | D116: Паралитические синдромы, травма спинного мозга (уровень 2) | F116: 170285.92
A117: 16 | B117: Нейрохирургия | C117: st16.003 | D117: Дорсопатии, спондилопатии, остеопатии | F117: 74013.69
A118: 16 | B118: Нейрохирургия | C118: st16.004 | D118: Травмы позвоночника | F118: 115428.71
A119: 16 | B119: Нейрохирургия | C119: st16.005 | D119: Сотрясение головного мозга | F119: 43537.47
A120: 16 | B120: Нейрохирургия | C120: st16.006 | D120: Переломы черепа, внутричерепная травма | F120: 176000.21
A121: 16 | B121: Нейрохирургия | C121: st16.007 | D121: Операции на центральной нервной системе и головном мозге (уровень 1) | F121: 472000.56
A122: 16 | B122: Нейрохирургия | C122: st16.008 | D122: Операции на центральной нервной системе и головном мозге (уровень 2) | F122: 665143.65
A123: 16 | B123: Нейрохирургия | C123: st16.009 | D123: Операции на периферической нервной системе (уровень 1) | F123: 161143.05
A124: 16 | B124: Нейрохирургия | C124: st16.010 | D124: Операции на периферической нервной системе (уровень 2) | F124: 238367.63
A125: 16 | B125: Нейрохирургия | C125: st16.011 | D125: Операции на периферической нервной системе (уровень 3) | F125: 263401.67
A126: 16 | B126: Нейрохирургия | C126: st16.012 | D126: Доброкачественные новообразования нервной системы | F126: 116571.57
A127: 17 | B127: Неонатология | C127: st17.001 | D127: Малая масса тела при рождении, недоношенность | F127: 673600.8
A128: 17 | B128: Неонатология | C128: st17.002 | D128: Крайне малая масса тела при рождении, крайняя незрелость | F128: 2500802.97
A129: 17 | B129: Неонатология | C129: st17.003 | D129: Лечение новорожденных с тяжелой патологией с применением аппаратных методов поддержки или замещения витальных функций | F129: 1184001.41
A130: 17 | B130: Неонатология | C130: st17.004 | D130: Геморрагические и гемолитические нарушения у новорожденных | F130: 307200.37
A131: 17 | B131: Неонатология | C131: st17.005 | D131: Другие нарушения, возникшие в перинатальном периоде (уровень 1) | F131: 222400.26
A132: 17 | B132: Неонатология | C132: st17.006 | D132: Другие нарушения, возникшие в перинатальном периоде (уровень 2) | F132: 302400.36
A133: 17 | B133: Неонатология | C133: st17.007 | D133: Другие нарушения, возникшие в перинатальном периоде (уровень 3) | F133: 409600.49
A134: 18 | B134: Нефрология (без диализа) | C134: st18.001 | D134: Почечная недостаточность | F134: 189714.51
A135: 18 | B135: Нефрология (без диализа) | C135: st18.002 | D135: Формирование, имплантация, реконструкция, удаление, смена доступа для диализа | F135: 208000.25
A136: 18 | B136: Нефрология (без диализа) | C136: st18.003 | D136: Гломерулярные болезни | F136: 195428.8
A137: 19 | B137: Онкология | C137: st19.001 | D137: Операции на женских половых органах при злокачественных новообразованиях (уровень 1) | F137: 275428.9
A138: 19 | B138: Онкология | C138: st19.002 | D138: Операции на женских половых органах при злокачественных новообразованиях (уровень 2) | F138: 459429.12
A139: 19 | B139: Онкология | C139: st19.003 | D139: Операции на женских половых органах при злокачественных новообразованиях (уровень 3) | F139: 558857.81
A140: 19 | B140: Онкология | C140: st19.004 | D140: Операции на кишечнике и анальной области при злокачественных новообразованиях (уровень 1) | F140: 348571.84
A141: 19 | B141: Онкология | C141: st19.005 | D141: Операции на кишечнике и анальной области при злокачественных новообразованиях (уровень 2) | F141: 606857.86
A142: 19 | B142: Онкология | C142: st19.006 | D142: Операции при злокачественных новообразованиях почки и мочевыделительной системы (уровень 1) | F142: 189714.51
A143: 19 | B143: Онкология | C143: st19.007 | D143: Операции при злокачественных новообразованиях почки и мочевыделительной системы (уровень 2) | F143: 316571.81
A144: 19 | B144: Онкология | C144: st19.008 | D144: Операции при злокачественных новообразованиях почки и мочевыделительной системы (уровень 3) | F144: 493714.87
A145: 19 | B145: Онкология | C145: st19.009 | D145: Операции при злокачественных новообразованиях кожи (уровень 1) | F145: 147428.75
A146: 19 | B146: Онкология | C146: st19.010 | D146: Операции при злокачественных новообразованиях кожи (уровень 2) | F146: 177143.07
A147: 19 | B147: Онкология | C147: st19.011 | D147: Операции при злокачественных новообразованиях кожи (уровень 3) | F147: 304000.36
A148: 19 | B148: Онкология | C148: st19.012 | D148: Операции при злокачественном новообразовании щитовидной железы (уровень 1) | F148: 261714.6
A149: 19 | B149: Онкология | C149: st19.013 | D149: Операции при злокачественном новообразовании щитовидной железы (уровень 2) | F149: 284571.77
A150: 19 | B150: Онкология | C150: st19.014 | D150: Мастэктомия, другие операции при злокачественном новообразовании молочной железы (уровень 1) | F150: 318857.52
A151: 19 | B151: Онкология | C151: st19.015 | D151: Мастэктомия, другие операции при злокачественном новообразовании молочной железы (уровень 2) | F151: 451429.11
A152: 19 | B152: Онкология | C152: st19.016 | D152: Операции при злокачественном новообразовании желчного пузыря, желчных протоков и поджелудочной железы (уровень 1) | F152: 272000.32
A153: 19 | B153: Онкология | C153: st19.017 | D153: Операции при злокачественном новообразовании желчного пузыря, желчных протоков и поджелудочной железы (уровень 2) | F153: 507429.17
A154: 19 | B154: Онкология | C154: st19.018 | D154: Операции при злокачественном новообразовании пищевода, желудка (уровень 1) | F154: 248000.29
A155: 19 | B155: Онкология | C155: st19.019 | D155: Операции при злокачественном новообразовании пищевода, желудка (уровень 2) | F155: 392000.47
A156: 19 | B156: Онкология | C156: st19.020 | D156: Операции при злокачественном новообразовании пищевода, желудка (уровень 3) | F156: 488000.58
A157: 19 | B157: Онкология | C157: st19.021 | D157: Другие операции при злокачественном новообразовании брюшной полости | F157: 418286.21
A158: 19 | B158: Онкология | C158: st19.022 | D158: Операции на органе слуха, придаточных пазухах носа и верхних дыхательных путях при злокачественных новообразованиях | F158: 321143.24
A159: 19 | B159: Онкология | C159: st19.023 | D159: Операции на нижних дыхательных путях и легочной ткани при злокачественных новообразованиях (уровень 1) | F159: 390857.61
A160: 19 | B160: Онкология | C160: st19.024 | D160: Операции на нижних дыхательных путях и легочной ткани при злокачественных новообразованиях (уровень 2) | F160: 606857.86
A161: 19 | B161: Онкология | C161: st19.025 | D161: Операции при злокачественных новообразованиях мужских половых органов (уровень 1) | F161: 326857.53
A162: 19 | B162: Онкология | C162: st19.026 | D162: Операции при злокачественных новообразованиях мужских половых органов (уровень 2) | F162: 492572.01
A163: 19 | B163: Онкология | C163: st19.123 | D163: Прочие операции при ЗНО (уровень 1) | F163: 60241.18
A164: 19 | B164: Онкология | C164: st19.124 | D164: Прочие операции при ЗНО (уровень 2) | F164: 185066.02
A165: 19 | B165: Онкология | C165: st19.037 | D165: Фебрильная нейтропения, агранулоцитоз вследствие проведения лекарственной терапии злокачественных новообразований | F165: 334857.54
A166: 19 | B166: Онкология | C166: st19.038 | D166: Установка, замена порт-системы (катетера) для лекарственной терапии злокачественных новообразований | F166: 141714.45
A167: 19 | B167: Онкология | C167: st19.075 | D167: Лучевая терапия (уровень 1) | F167: 90285.82
A168: 19 | B168: Онкология | C168: st19.076 | D168: Лучевая терапия (уровень 2) | F168: 130285.87
A169: 19 | B169: Онкология | C169: st19.077 | D169: Лучевая терапия (уровень 3) | F169: 281143.19
A170: 19 | B170: Онкология | C170: st19.078 | D170: Лучевая терапия (уровень 4) | F170: 286857.48
A171: 19 | B171: Онкология | C171: st19.079 | D171: Лучевая терапия (уровень 5) | F171: 322286.1
A172: 19 | B172: Онкология | C172: st19.080 | D172: Лучевая терапия (уровень 6) | F172: 515429.18
A173: 19 | B173: Онкология | C173: st19.081 | D173: Лучевая терапия (уровень 7) | F173: 556572.09
A174: 19 | B174: Онкология | C174: st19.082 | D174: Лучевая терапия (уровень 8) | F174: 1662859.12
A175: 19 | B175: Онкология | C175: st19.084 | D175: Лучевая терапия в сочетании с лекарственной терапией (уровень 2) | F175: 391219.03
A176: 19 | B176: Онкология | C176: st19.085 | D176: Лучевая терапия в сочетании с лекарственной терапией (уровень 3) | F176: 458704.8
A177: 19 | B177: Онкология | C177: st19.086 | D177: Лучевая терапия в сочетании с лекарственной терапией (уровень 4) | F177: 605311.48
A178: 19 | B178: Онкология | C178: st19.087 | D178: Лучевая терапия в сочетании с лекарственной терапией (уровень 5) | F178: 687711.52
A179: 19 | B179: Онкология | C179: st19.088 | D179: Лучевая терапия в сочетании с лекарственной терапией (уровень 6) | F179: 656884.47
A180: 19 | B180: Онкология | C180: st19.089 | D180: Лучевая терапия в сочетании с лекарственной терапией (уровень 7) | F180: 867037.91
A181: 19 | B181: Онкология | C181: st19.090 | D181: ЗНО лимфоидной и кроветворной тканей без специального противоопухолевого лечения (уровень 1) | F181: 48000.06
A182: 19 | B182: Онкология | C182: st19.091 | D182: ЗНО лимфоидной и кроветворной тканей без специального противоопухолевого лечения (уровень 2) | F182: 182857.36
A183: 19 | B183: Онкология | C183: st19.092 | D183: ЗНО лимфоидной и кроветворной тканей без специального противоопухолевого лечения (уровень 3) | F183: 384000.46
A184: 19 | B184: Онкология | C184: st19.093 | D184: ЗНО лимфоидной и кроветворной тканей без специального противоопухолевого лечения (уровень 4) | F184: 685715.1
A185: 19 | B185: Онкология | C185: st19.094 | D185: ЗНО лимфоидной и кроветворной тканей, лекарственная терапия, взрослые (уровень 1) | F185: 159847.67
A186: 19 | B186: Онкология | C186: st19.095 | D186: ЗНО лимфоидной и кроветворной тканей, лекарственная терапия, взрослые (уровень 2) | F186: 399619.17
A187: 19 | B187: Онкология | C187: st19.096 | D187: ЗНО лимфоидной и кроветворной тканей, лекарственная терапия, взрослые (уровень 3) | F187: 758301.74
A188: 19 | B188: Онкология | C188: st19.097 | D188: ЗНО лимфоидной и кроветворной тканей, лекарственная терапия с применением отдельных препаратов (по перечню), взрослые (уровень 1) | F188: 208893.78
A189: 19 | B189: Онкология | C189: st19.098 | D189: ЗНО лимфоидной и кроветворной тканей, лекарственная терапия с применением отдельных препаратов (по перечню), взрослые (уровень 2) | F189: 467252.36
A190: 19 | B190: Онкология | C190: st19.099 | D190: ЗНО лимфоидной и кроветворной тканей, лекарственная терапия с применением отдельных препаратов (по перечню), взрослые (уровень 3) | F190: 788841.94
A191: 19 | B191: Онкология | C191: st19.100 | D191: ЗНО лимфоидной и кроветворной тканей, лекарственная терапия с применением отдельных препаратов (по перечню), взрослые (уровень 4) | F191: 500731.42
A192: 19 | B192: Онкология | C192: st19.101 | D192: ЗНО лимфоидной и кроветворной тканей, лекарственная терапия с применением отдельных препаратов (по перечню), взрослые (уровень 5) | F192: 792435.49
A193: 19 | B193: Онкология | C193: st19.102 | D193: ЗНО лимфоидной и кроветворной тканей, лекарственная терапия с применением отдельных препаратов (по перечню), взрослые (уровень 6) | F193: 1128415.23
A194: 19 | B194: Онкология | C194: st19.103 | D194: Лучевые повреждения | F194: 301714.64
A195: 19 | B195: Онкология | C195: st19.104 | D195: Эвисцерация малого таза при лучевых повреждениях | F195: 2257145.54
A196: 19 | B196: Онкология | C196: st19.122 | D196: Посттрансплантационный период после пересадки костного мозга | F196: 1743013.01
A197: 19 | B197: Онкология | C197: st19.125 | D197: Лекарственная терапия при злокачественных новообразованиях (кроме лимфоидной и кроветворной тканей), взрослые (уровень 1) | F197: 30098.17
A198: 19 | B198: Онкология | C198: st19.126 | D198: Лекарственная терапия при злокачественных новообразованиях (кроме лимфоидной и кроветворной тканей), взрослые (уровень 2) | F198: 49260.09
A199: 19 | B199: Онкология | C199: st19.127 | D199: Лекарственная терапия при злокачественных новообразованиях (кроме лимфоидной и кроветворной тканей), взрослые (уровень 3) | F199: 52656.95
A200: 19 | B200: Онкология | C200: st19.128 | D200: Лекарственная терапия при злокачественных новообразованиях (кроме лимфоидной и кроветворной тканей), взрослые (уровень 4) | F200: 79746.84
A201: 19 | B201: Онкология | C201: st19.129 | D201: Лекарственная терапия при злокачественных новообразованиях (кроме лимфоидной и кроветворной тканей), взрослые (уровень 5) | F201: 108906.89
A202: 19 | B202: Онкология | C202: st19.130 | D202: Лекарственная терапия при злокачественных новообразованиях (кроме лимфоидной и кроветворной тканей), взрослые (уровень 6) | F202: 94631.7
... 231 more rows

Sheet РАЗДЕЛ 3 (ДС)
A1: РАЗДЕЛ 3. МЕДИЦИНСКАЯ ПОМОЩЬ В УСЛОВИЯХ ДНЕВНОГО СТАЦИОНАРА ПО КСГ
A2: Код профиля | B2: Профиль | C2: КСГ | D2: Наименование группы заболеваний (КСГ) | E2: Стоимость законченного случая лечения по уровням оказания медицинской помощи, рублей | AB2: Условия оказания медпомощи | AC2: Тип посещения | AD2: Взрослый профлиь | AE2: Тариф | AF2: Детский профиль | AG2: Код МО (здесь не нужен!) | AH2: Длительность стационара
E3: I УРОВНЬ | F3: II УРОВНЬ | G3: III УРОВНЬ
A4: 1 | B4: 2 | C4: 3 | D4: 4 | E4: 5 | F4: 6 | G4: 7
A5: 2 | B5: Акушерство и гинекология | C5: ds02.001 | D5: Осложнения беременности, родов, послеродового периода | E5: 49173.61 | F5: 57369.21
A6: 2 | B6: Акушерство и гинекология | C6: ds02.002 | D6: Болезни женских половых органов | E6: 39101.9 | F6: 45618.89
A7: 2 | B7: Акушерство и гинекология | C7: ds02.003 | D7: Операции на женских половых органах (уровень 1) | E7: 42064.17 | F7: 49074.86
A8: 2 | B8: Акушерство и гинекология | C8: ds02.004 | D8: Операции на женских половых органах (уровень 2) | E8: 62800.03 | F8: 73266.7
A9: 2 | B9: Акушерство и гинекология | C9: ds02.006 | D9: Искусственное прерывание беременности (аборт) | E9: 19550.95 | F9: 22809.44
A10: 2 | B10: Акушерство и гинекология | C10: ds02.007 | D10: Аборт медикаментозный | E10: 22513.22 | F10: 26265.42
A11: 2 | B11: Акушерство и гинекология | C11: ds02.008 | D11: Экстракорпоральное оплодотворение (уровень 1) | E11: 82411.71 | F11: 87690.86
A12: 2 | B12: Акушерство и гинекология | C12: ds02.009 | D12: Экстракорпоральное оплодотворение (уровень 2) | E12: 162303.67 | F12: 174647.56
A13: 2 | B13: Акушерство и гинекология | C13: ds02.010 | D13: Экстракорпоральное оплодотворение (уровень 3) | E13: 253623.99 | F13: 271195.14
A14: 2 | B14: Акушерство и гинекология | C14: ds02.011 | D14: Экстракорпоральное оплодотворение (уровень 4) | E14: 274377.53 | F14: 292875.25 | AB14: 2 | AC14: 34 | AD14: 112 | AE14: =E14 -> 274377.53 | AH14: 8
A15: 3 | B15: Аллергология и иммунология | C15: ds03.001 | D15: Нарушения с вовлечением иммунного механизма | E15: 58060.4 | F15: 67737.14
A16: 4 | B16: Гастроэнтерология | C16: ds04.001 | D16: Болезни органов пищеварения, взрослые | E16: 52728.32 | F16: 61516.38
A17: 5 | B17: Гематология | C17: ds05.001 | D17: Болезни крови (уровень 1) | E17: 53913.23 | F17: 62898.77
A18: 5 | B18: Гематология | C18: ds05.002 | D18: Болезни крови (уровень 2) | E18: 142781.19 | F18: 166578.06
A19: 5 | B19: Гематология | C19: ds05.005 | D19: Лекарственная терапия при доброкачественных заболеваниях крови и пузырном заносе | E19: 220985 | F19: 257815.84
A20: 6 | B20: Дерматовенерология | C20: ds06.002 | D20: Лечение дерматозов с применением наружной терапии | E20: 20371.82 | F20: 23739.33
A21: 6 | B21: Дерматовенерология | C21: ds06.003 | D21: Лечение дерматозов с применением наружной терапии, физиотерапии, плазмафереза | E21: 56009.78 | F21: 65233.39
A22: 6 | B22: Дерматовенерология | C22: ds06.004 | D22: Лечение дерматозов с применением наружной и системной терапии | E22: 56786.16 | F22: 66198.45
A23: 6 | B23: Дерматовенерология | C23: ds06.005 | D23: Лечение дерматозов с применением наружной терапии и фототерапии | E23: 114102.28 | F23: 133010.42
A24: 7 | B24: Детская кардиология | C24: ds07.001 | D24: Болезни системы кровообращения, дети | E24: 58060.4 | F24: 67737.14
A25: 8 | B25: Детская онкология | C25: ds08.001 | D25: Лекарственная терапия при злокачественных новообразованиях других локализаций (кроме лимфоидной и кроветворной тканей), дети | E25: 471000.2 | F25: 549500.24
A26: 8 | B26: Детская онкология | C26: ds08.002 | D26: Лекарственная терапия при остром лейкозе, дети | E26: 843060.74 | F26: 983570.87
A27: 8 | B27: Детская онкология | C27: ds08.003 | D27: Лекарственная терапия при других злокачественных новообразованиях лимфоидной и кроветворной тканей, дети | E27: 612596.49 | F27: 714695.91
A28: 9 | B28: Детская урология-андрология | C28: ds09.001 | D28: Операции на мужских половых органах, дети | E28: 81758.53 | F28: 95384.95
A29: 9 | B29: Детская урология-андрология | C29: ds09.002 | D29: Операции на почке и мочевыделительной системе, дети | E29: 123822.7 | F29: 144459.81
A30: 10 | B30: Детская хирургия | C30: ds10.001 | D30: Операции по поводу грыж, дети | E30: 94792.49 | F30: 110591.24
A31: 11 | B31: Детская эндокринология | C31: ds11.001 | D31: Сахарный диабет, дети | E31: 88275.51 | F31: 102988.09
A32: 11 | B32: Детская эндокринология | C32: ds11.002 | D32: Другие болезни эндокринной системы, дети | E32: 80573.62 | F32: 94002.56
A33: 12 | B33: Инфекционные болезни | C33: ds12.001 | D33: Вирусный гепатит B хронический, лекарственная терапия | E33: 162924.6 | F33: 190078.7
A34: 12 | B34: Инфекционные болезни | C34: ds12.005 | D34: Другие вирусные гепатиты | E34: 57467.95 | F34: 67045.94
A35: 12 | B35: Инфекционные болезни | C35: ds12.006 | D35: Инфекционные и паразитарные болезни, взрослые | E35: 68724.56 | F35: 80178.65
A36: 12 | B36: Инфекционные болезни | C36: ds12.007 | D36: Инфекционные и паразитарные болезни, дети | E36: 57467.95 | F36: 67045.94
A37: 12 | B37: Инфекционные болезни | C37: ds12.008 | D37: Респираторные инфекции верхних дыхательных путей, взрослые | E37: 30807.56 | F37: 35942.15
A38: 12 | B38: Инфекционные болезни | C38: ds12.009 | D38: Респираторные инфекции верхних дыхательных путей, дети | E38: 38509.45 | F38: 44927.69
A39: 12 | B39: Инфекционные болезни | C39: ds12.012 | D39: Лечение хронического вирусного гепатита C (уровень 1) | E39: 138221.75 | F39: 144667.64
A40: 12 | B40: Инфекционные болезни | C40: ds12.013 | D40: Лечение хронического вирусного гепатита C (уровень 2) | E40: 195973.92 | F40: 202565.47
A41: 12 | B41: Инфекционные болезни | C41: ds12.014 | D41: Лечение хронического вирусного гепатита C (уровень 3) | E41: 267457.2 | F41: 274047.72
A42: 12 | B42: Инфекционные болезни | C42: ds12.015 | D42: Лечение хронического вирусного гепатита C (уровень 4) | E42: 376657.53 | F42: 383274.13
A43: 13 | B43: Кардиология | C43: ds13.001 | D43: Болезни системы кровообращения, взрослые | E43: 39433.68 | F43: 46005.96 | G43: 54769
A44: 13 | B44: Кардиология | C44: ds13.002 | D44: Болезни системы кровообращения с применением инвазивных методов | E44: 167100.21 | F44: 194950.24 | G44: 232083.62
A45: 14 | B45: Колопроктология | C45: ds14.001 | D45: Операции на кишечнике и анальной области (уровень 1) | E45: 90645.32 | F45: 105752.88
A46: 14 | B46: Колопроктология | C46: ds14.002 | D46: Операции на кишечнике и анальной области (уровень 2) | E46: 187807.63 | F46: 219108.9
A47: 15 | B47: Неврология | C47: ds15.001 | D47: Болезни нервной системы, хромосомные аномалии | E47: 48306.25 | F47: 56357.3
A48: 15 | B48: Неврология | C48: ds15.002 | D48: Неврологические заболевания, лечение с применением ботулотоксина (уровень 1) | E48: 86261.17 | F48: 100638.03
A49: 15 | B49: Неврология | C49: ds15.003 | D49: Неврологические заболевания, лечение с применением ботулотоксина (уровень 2) | E49: 142454.16 | F49: 166196.52
A50: 16 | B50: Нейрохирургия | C50: ds16.001 | D50: Болезни и травмы позвоночника, спинного мозга, последствия внутричерепной травмы, сотрясение головного мозга | E50: 46334.57 | F50: 54057
A51: 16 | B51: Нейрохирургия | C51: ds16.002 | D51: Операции на периферической нервной системе | E51: 126680.69 | F51: 147794.14
A52: 17 | B52: Неонатология | C52: ds17.001 | D52: Нарушения, возникшие в перинатальном периоде | E52: 106049.1 | F52: 123723.95
A53: 18 | B53: Нефрология (без диализа) | C53: ds18.001 | D53: Гломерулярные болезни, почечная недостаточность (без диализа) | E53: 94792.49 | F53: 110591.24
A54: 18 | B54: Нефрология (без диализа) | C54: ds18.002 | D54: Лекарственная терапия у пациентов, получающих диализ | E54: 192547.25 | F54: 224638.46
A55: 18 | B55: Нефрология (без диализа) | C55: ds18.003 | D55: Формирование, имплантация, удаление, смена доступа для диализа | E55: 188400.08 | F55: 219800.1
A56: 18 | B56: Нефрология (без диализа) | C56: ds18.004 | D56: Другие болезни почек | E56: 47396.25 | F56: 55295.62
A57: 19 | B57: Онкология | C57: ds19.016 | D57: Операции при злокачественных новообразованиях кожи (уровень 1) | E57: 139226.48 | F57: 162430.89
A58: 19 | B58: Онкология | C58: ds19.017 | D58: Операции при злокачественных новообразованиях кожи (уровень 2) | E58: 146928.37 | F58: 171416.43
A59: 19 | B59: Онкология | C59: ds19.028 | D59: Установка, замена порт-системы (катетера) для лекарственной терапии злокачественных новообразований | E59: 128562.32 | F59: 149989.37
A60: 19 | B60: Онкология | C60: ds19.033 | D60: Госпитализация в диагностических целях с проведением молекулярно-генетического и (или) иммуногистохимического исследования или иммунофенотипирования | E60: 144558.55 | F60: 168651.65
A61: 19 | B61: Онкология | C61: ds19.050 | D61: Лучевая терапия (уровень 1) | E61: 43841.53 | F61: 51148.45
A62: 19 | B62: Онкология | C62: ds19.051 | D62: Лучевая терапия (уровень 2) | E62: 85313.24 | F62: 99532.12
A63: 19 | B63: Онкология | C63: ds19.052 | D63: Лучевая терапия (уровень 3) | E63: 131524.59 | F63: 153445.35
A64: 19 | B64: Онкология | C64: ds19.053 | D64: Лучевая терапия (уровень 4) | E64: 173588.75 | F64: 202520.21
A65: 19 | B65: Онкология | C65: ds19.054 | D65: Лучевая терапия (уровень 5) | E65: 186030.27 | F65: 217035.31
A66: 19 | B66: Онкология | C66: ds19.055 | D66: Лучевая терапия (уровень 6) | E66: 225132.17 | F66: 262654.2
A67: 19 | B67: Онкология | C67: ds19.056 | D67: Лучевая терапия (уровень 7) | E67: 278452.95 | F67: 324861.78
A68: 19 | B68: Онкология | C68: ds19.057 | D68: Лучевая терапия (уровень 8) | E68: 1578887.48 | F68: 1842035.39
A69: 19 | B69: Онкология | C69: ds19.058 | D69: Лучевая терапия в сочетании с лекарственной терапией (уровень 1) | E69: 206387.01 | F69: 238041.2
A70: 19 | B70: Онкология | C70: ds19.060 | D70: Лучевая терапия в сочетании с лекарственной терапией (уровень 3) | E70: 258873.09 | F70: 299346.96
A71: 19 | B71: Онкология | C71: ds19.061 | D71: Лучевая терапия в сочетании с лекарственной терапией (уровень 4) | E71: 418812.78 | F71: 460559.22
A72: 19 | B72: Онкология | C72: ds19.062 | D72: Лучевая терапия в сочетании с лекарственной терапией (уровень 5) | E72: 643318.42 | F72: 685062.43
A73: 19 | B73: Онкология | C73: ds19.063 | D73: ЗНО лимфоидной и кроветворной тканей без специального противоопухолевого лечения (уровень 1) | E73: 12441.51 | F73: 14515.1
A74: 19 | B74: Онкология | C74: ds19.064 | D74: ЗНО лимфоидной и кроветворной тканей без специального противоопухолевого лечения (уровень 2) | E74: 55690.59 | F74: 64972.36
A75: 19 | B75: Онкология | C75: ds19.065 | D75: ЗНО лимфоидной и кроветворной тканей без специального противоопухолевого лечения (уровень 3) | E75: 135671.76 | F75: 158283.72
A76: 19 | B76: Онкология | C76: ds19.066 | D76: ЗНО лимфоидной и кроветворной тканей без специального противоопухолевого лечения (уровень 4) | E76: 250015.2 | F76: 291684.4
A77: 19 | B77: Онкология | C77: ds19.067 | D77: ЗНО лимфоидной и кроветворной тканей, лекарственная терапия, взрослые (уровень 1) | E77: 16223.39 | F77: 18492.19
A78: 19 | B78: Онкология | C78: ds19.068 | D78: ЗНО лимфоидной и кроветворной тканей, лекарственная терапия, взрослые (уровень 2) | E78: 71909.1 | F78: 81965.39
A79: 19 | B79: Онкология | C79: ds19.069 | D79: ЗНО лимфоидной и кроветворной тканей, лекарственная терапия, взрослые (уровень 3) | E79: 160918.52 | F79: 183422.56
A80: 19 | B80: Онкология | C80: ds19.070 | D80: ЗНО лимфоидной и кроветворной тканей, лекарственная терапия, взрослые (уровень 4) | E80: 288513.32 | F80: 328861.15
A81: 19 | B81: Онкология | C81: ds19.071 | D81: ЗНО лимфоидной и кроветворной тканей, лекарственная терапия с применением отдельных препаратов (по перечню), взрослые (уровень 1) | E81: 85092.1 | F81: 87493.59
A82: 19 | B82: Онкология | C82: ds19.072 | D82: ЗНО лимфоидной и кроветворной тканей, лекарственная терапия с применением отдельных препаратов (по перечню), взрослые (уровень 2) | E82: 139311.58 | F82: 149279.96
A83: 19 | B83: Онкология | C83: ds19.073 | D83: ЗНО лимфоидной и кроветворной тканей, лекарственная терапия с применением отдельных препаратов (по перечню), взрослые (уровень 3) | E83: 234989.47 | F83: 258347.59
A84: 19 | B84: Онкология | C84: ds19.074 | D84: ЗНО лимфоидной и кроветворной тканей, лекарственная терапия с применением отдельных препаратов (по перечню), взрослые (уровень 4) | E84: 390207.64 | F84: 435272.59
A85: 19 | B85: Онкология | C85: ds19.075 | D85: ЗНО лимфоидной и кроветворной тканей, лекарственная терапия с применением отдельных препаратов (по перечню), взрослые (уровень 5) | E85: 580201.97 | F85: 582174.3
A86: 19 | B86: Онкология | C86: ds19.076 | D86: ЗНО лимфоидной и кроветворной тканей, лекарственная терапия с применением отдельных препаратов (по перечню), взрослые (уровень 6) | E86: 624092.13 | F86: 632206.83
A87: 19 | B87: Онкология | C87: ds19.077 | D87: ЗНО лимфоидной и кроветворной тканей, лекарственная терапия с применением отдельных препаратов (по перечню), взрослые (уровень 7) | E87: 745295.35 | F87: 770333.9
A88: 19 | B88: Онкология | C88: ds19.078 | D88: ЗНО лимфоидной и кроветворной тканей, лекарственная терапия с применением отдельных препаратов (по перечню), взрослые (уровень 8) | E88: 832236.51 | F88: 869446.35
A89: 19 | B89: Онкология | C89: ds19.079 | D89: Лучевые повреждения | E89: 155222.71 | F89: 181093.16
A90: 19 | B90: Онкология | C90: ds19.097 | D90: Лекарственная терапия при злокачественных новообразованиях (кроме лимфоидной и кроветворной тканей), взрослые (уровень 1) | E90: 11842.89 | F90: 12956.58
A91: 19 | B91: Онкология | C91: ds19.098 | D91: Лекарственная терапия при злокачественных новообразованиях (кроме лимфоидной и кроветворной тканей), взрослые (уровень 2) | E91: 25414.01 | F91: 26794.57
A92: 19 | B92: Онкология | C92: ds19.099 | D92: Лекарственная терапия при злокачественных новообразованиях (кроме лимфоидной и кроветворной тканей), взрослые (уровень 3) | E92: 40425.87 | F92: 42830.64
A93: 19 | B93: Онкология | C93: ds19.100 | D93: Лекарственная терапия при злокачественных новообразованиях (кроме лимфоидной и кроветворной тканей), взрослые (уровень 4) | E93: 70611.68 | F93: 77230.78
A94: 19 | B94: Онкология | C94: ds19.101 | D94: Лекарственная терапия при злокачественных новообразованиях (кроме лимфоидной и кроветворной тканей), взрослые (уровень 5) | E94: 84439.16 | F94: 89079.93
A95: 19 | B95: Онкология | C95: ds19.102 | D95: Лекарственная терапия при злокачественных новообразованиях (кроме лимфоидной и кроветворной тканей), взрослые (уровень 6) | E95: 101142.24 | F95: 103508.18
A96: 19 | B96: Онкология | C96: ds19.103 | D96: Лекарственная терапия при злокачественных новообразованиях (кроме лимфоидной и кроветворной тканей), взрослые (уровень 7) | E96: 149073.9 | F96: 158112
A97: 19 | B97: Онкология | C97: ds19.104 | D97: Лекарственная терапия при злокачественных новообразованиях (кроме лимфоидной и кроветворной тканей), взрослые (уровень 8) | E97: 175372.86 | F97: 185916.1
A98: 19 | B98: Онкология | C98: ds19.105 | D98: Лекарственная терапия при злокачественных новообразованиях (кроме лимфоидной и кроветворной тканей), взрослые (уровень 9) | E98: 196596.95 | F98: 207864.4
A99: 19 | B99: Онкология | C99: ds19.106 | D99: Лекарственная терапия при злокачественных новообразованиях (кроме лимфоидной и кроветворной тканей), взрослые (уровень 10) | E99: 258251.45 | F99: 279299.97
A100: 19 | B100: Онкология | C100: ds19.107 | D100: Лекарственная терапия при злокачественных новообразованиях (кроме лимфоидной и кроветворной тканей), взрослые (уровень 11) | E100: 291951.18 | F100: 313905.5
A101: 19 | B101: Онкология | C101: ds19.108 | D101: Лекарственная терапия при злокачественных новообразованиях (кроме лимфоидной и кроветворной тканей), взрослые (уровень 12) | E101: 268794.69 | F101: 274171.95
A102: 19 | B102: Онкология | C102: ds19.109 | D102: Лекарственная терапия при злокачественных новообразованиях (кроме лимфоидной и кроветворной тканей), взрослые (уровень 13) | E102: 348940.5 | F102: 363932.64
A103: 19 | B103: Онкология | C103: ds19.110 | D103: Лекарственная терапия при злокачественных новообразованиях (кроме лимфоидной и кроветворной тканей), взрослые (уровень 14) | E103: 430920.38 | F103: 445295.39
A104: 19 | B104: Онкология | C104: ds19.111 | D104: Лекарственная терапия при злокачественных новообразованиях (кроме лимфоидной и кроветворной тканей), взрослые (уровень 15) | E104: 497155.29 | F104: 505684.01
A105: 19 | B105: Онкология | C105: ds19.112 | D105: Лекарственная терапия при злокачественных новообразованиях (кроме лимфоидной и кроветворной тканей), взрослые (уровень 16) | E105: 643548.61 | F105: 660690.17
A106: 19 | B106: Онкология | C106: ds19.113 | D106: Лекарственная терапия при злокачественных новообразованиях (кроме лимфоидной и кроветворной тканей), взрослые (уровень 17) | E106: 733218.66 | F106: 755684.1
A107: 19 | B107: Онкология | C107: ds19.114 | D107: Лекарственная терапия при злокачественных новообразованиях (кроме лимфоидной и кроветворной тканей), взрослые (уровень 18) | E107: 850558.79 | F107: 851546.54
A108: 19 | B108: Онкология | C108: ds19.115 | D108: Лекарственная терапия при злокачественных новообразованиях (кроме лимфоидной и кроветворной тканей), взрослые (уровень 19) | E108: 1148659.44 | F108: 1150835.64
A109: 20 | B109: Оториноларингология | C109: ds20.001 | D109: Болезни уха, горла, носа | E109: 43841.53 | F109: 51148.45
A110: 20 | B110: Оториноларингология | C110: ds20.002 | D110: Операции на органе слуха, придаточных пазухах носа и верхних дыхательных путях (уровень 1) | E110: 66354.75 | F110: 77413.87
A111: 20 | B111: Оториноларингология | C111: ds20.003 | D111: Операции на органе слуха, придаточных пазухах носа и верхних дыхательных путях (уровень 2) | E111: 98347.21 | F111: 114738.41
A112: 20 | B112: Оториноларингология | C112: ds20.004 | D112: Операции на органе слуха, придаточных пазухах носа и верхних дыхательных путях (уровень 3) | E112: 118490.62 | F112: 138239.05
A113: 20 | B113: Оториноларингология | C113: ds20.005 | D113: Операции на органе слуха, придаточных пазухах носа и верхних дыхательных путях (уровень 4) | E113: 145743.46 | F113: 170034.04
A114: 20 | B114: Оториноларингология | C114: ds20.006 | D114: Замена речевого процессора | E114: 970300.4 | F114: 971478.18
A115: 21 | B115: Офтальмология | C115: ds21.001 | D115: Болезни и травмы глаза | E115: 23105.67 | F115: 26956.62
A116: 21 | B116: Офтальмология | C116: ds21.002 | D116: Операции на органе зрения (уровень 1) | E116: 39694.36 | F116: 46310.08
A117: 21 | B117: Офтальмология | C117: ds21.003 | D117: Операции на органе зрения (уровень 2) | E117: 64577.39 | F117: 75340.28
A118: 21 | B118: Офтальмология | C118: ds21.004 | D118: Операции на органе зрения (уровень 3) | E118: 95977.4 | F118: 111973.63
A119: 21 | B119: Офтальмология | C119: ds21.005 | D119: Операции на органе зрения (уровень 4) | E119: 119083.07 | F119: 138930.25
A120: 21 | B120: Офтальмология | C120: ds21.006 | D120: Операции на органе зрения (уровень 5) | E120: 207358.58 | F120: 241918.34
A121: 21 | B121: Офтальмология | C121: ds21.007 | D121: Операции на органе зрения (факоэмульсификация с имплантацией ИОЛ) | E121: 46531.25 | F121: 48610.05
A122: 22 | B122: Педиатрия | C122: ds22.001 | D122: Системные поражения соединительной ткани, артропатии, спондилопатии, дети | E122: 159438.01 | F122: 186011.01
A123: 22 | B123: Педиатрия | C123: ds22.002 | D123: Болезни органов пищеварения, дети | E123: 61428.5 | F123: 71666.58
A124: 23 | B124: Пульмонология | C124: ds23.001 | D124: Болезни органов дыхания | E124: 53320.78 | F124: 62207.57
A125: 24 | B125: Ревматология | C125: ds24.001 | D125: Системные поражения соединительной ткани, артропатии, спондилопатии, взрослые | E125: 86498.15 | F125: 100914.51
A126: 25 | B126: Сердечно-сосудистая хирургия | C126: ds25.001 | D126: Диагностическое обследование сердечно-сосудистой системы | E126: 109011.37 | F126: 127179.93 | G126: 151404.68
A127: 25 | B127: Сердечно-сосудистая хирургия | C127: ds25.002 | D127: Операции на сосудах (уровень 1) | E127: 129154.77 | F127: 150680.57 | G127: 179381.63
A128: 25 | B128: Сердечно-сосудистая хирургия | C128: ds25.003 | D128: Операции на сосудах (уровень 2) | E128: 255347.28 | F128: 297905.16 | G128: 354649
A129: 26 | B129: Стоматология детская | C129: ds26.001 | D129: Болезни полости рта, слюнных желез и челюстей, врожденные аномалии лица и шеи, дети | E129: 58060.4 | F129: 67737.14
A130: 27 | B130: Терапия | C130: ds27.001 | D130: Отравления и другие воздействия внешних причин | E130: 43841.53 | F130: 51148.45
A131: 28 | B131: Торакальная хирургия | C131: ds28.001 | D131: Операции на нижних дыхательных путях и легочной ткани, органах средостения | E131: 78203.81 | F131: 91237.78
A132: 29 | B132: Травматология и ортопедия | C132: ds29.001 | D132: Операции на костно-мышечной системе и суставах (уровень 1) | E132: 85313.24 | F132: 99532.12 | G132: 118490.62
A133: 29 | B133: Травматология и ортопедия | C133: ds29.002 | D133: Операции на костно-мышечной системе и суставах (уровень 2) | E133: 100124.57 | F133: 116812 | G133: 139061.91
A134: 29 | B134: Травматология и ортопедия | C134: ds29.003 | D134: Операции на костно-мышечной системе и суставах (уровень 3) | E134: 147520.82 | F134: 172107.62 | G134: 204890.03
A135: 29 | B135: Травматология и ортопедия | C135: ds29.004 | D135: Заболевания опорно-двигательного аппарата, травмы, болезни мягких тканей | E135: 62207.57 | F135: 72575.5 | G135: 86399.41
A136: 30 | B136: Урология | C136: ds30.001 | D136: Болезни, врожденные аномалии, повреждения мочевой системы и мужских половых органов | E136: 47396.25 | F136: 55295.62
A137: 30 | B137: Урология | C137: ds30.002 | D137: Операции на мужских половых органах, взрослые (уровень 1) | E137: 129154.77 | F137: 150680.57
A138: 30 | B138: Урология | C138: ds30.003 | D138: Операции на мужских половых органах, взрослые (уровень 2) | E138: 152852.9 | F138: 178328.38
A139: 30 | B139: Урология | C139: ds30.004 | D139: Операции на почке и мочевыделительной системе, взрослые (уровень 1) | E139: 116713.26 | F139: 136165.47
A140: 30 | B140: Урология | C140: ds30.005 | D140: Операции на почке и мочевыделительной системе, взрослые (уровень 2) | E140: 120860.43 | F140: 141003.83
A141: 30 | B141: Урология | C141: ds30.006 | D141: Операции на почке и мочевыделительной системе, взрослые (уровень 3) | E141: 174773.66 | F141: 203902.6
A142: 31 | B142: Хирургия | C142: ds31.001 | D142: Болезни, новообразования молочной железы | E142: 52728.32 | F142: 61516.38
A143: 31 | B143: Хирургия | C143: ds31.002 | D143: Операции на коже, подкожной клетчатке, придатках кожи (уровень 1) | E143: 44433.98 | F143: 51839.65
A144: 31 | B144: Хирургия | C144: ds31.003 | D144: Операции на коже, подкожной клетчатке, придатках кожи (уровень 2) | E144: 59245.31 | F144: 69119.53
A145: 31 | B145: Хирургия | C145: ds31.004 | D145: Операции на коже, подкожной клетчатке, придатках кожи (уровень 3) | E145: 257124.64 | F145: 299978.75
A146: 31 | B146: Хирургия | C146: ds31.005 | D146: Операции на органах кроветворения и иммунной системы | E146: 76426.45 | F146: 89164.19
A147: 31 | B147: Хирургия | C147: ds31.006 | D147: Операции на молочной железе | E147: 154037.8 | F147: 179710.77
A148: 32 | B148: Хирургия (абдоминальная) | C148: ds32.001 | D148: Операции на пищеводе, желудке, двенадцатиперстной кишке (уровень 1) | E148: 125007.6 | F148: 145842.2
A149: 32 | B149: Хирургия (абдоминальная) | C149: ds32.002 | D149: Операции на пищеводе, желудке, двенадцатиперстной кишке (уровень 2) | E149: 210320.85 | F149: 245374.32
A150: 32 | B150: Хирургия (абдоминальная) | C150: ds32.003 | D150: Операции по поводу грыж, взрослые (уровень 1) | E150: 93015.13 | F150: 108517.66
A151: 32 | B151: Хирургия (абдоминальная) | C151: ds32.004 | D151: Операции по поводу грыж, взрослые (уровень 2) | E151: 133894.4 | F151: 156210.13
A152: 32 | B152: Хирургия (абдоминальная) | C152: ds32.005 | D152: Операции по поводу грыж, взрослые (уровень 3) | E152: 191954.8 | F152: 223947.27
A153: 32 | B153: Хирургия (абдоминальная) | C153: ds32.006 | D153: Операции на желчном пузыре и желчевыводящих путях | E153: 100717.02 | F153: 117503.2
A154: 32 | B154: Хирургия (абдоминальная) | C154: ds32.007 | D154: Другие операции на органах брюшной полости (уровень 1) | E154: 122045.34 | F154: 142386.23
A155: 32 | B155: Хирургия (абдоминальная) | C155: ds32.008 | D155: Другие операции на органах брюшной полости (уровень 2) | E155: 128562.32 | F155: 149989.37
A156: 33 | B156: Хирургия (комбустиология) | C156: ds33.001 | D156: Ожоги и отморожения | E156: 65169.84 | F156: 76031.48
A157: 34 | B157: Челюстно-лицевая хирургия | C157: ds34.001 | D157: Болезни полости рта, слюнных желез и челюстей, врожденные аномалии лица и шеи, взрослые | E157: 52135.87 | F157: 60825.18
A158: 34 | B158: Челюстно-лицевая хирургия | C158: ds34.002 | D158: Операции на органах полости рта (уровень 1) | E158: 54505.68 | F158: 63589.96
A159: 34 | B159: Челюстно-лицевая хирургия | C159: ds34.003 | D159: Операции на органах полости рта (уровень 2) | E159: 92422.68 | F159: 107826.46
A160: 35 | B160: Эндокринология | C160: ds35.001 | D160: Сахарный диабет, взрослые | E160: 63984.93 | F160: 74649.09
A161: 35 | B161: Эндокринология | C161: ds35.002 | D161: Другие болезни эндокринной системы, новообразования эндокринных желез доброкачественные, in situ, неопределенного и неизвестного характера, расстройства питания, другие нарушения обмена веществ | E161: 83535.89 | F161: 97458.53
A162: 35 | B162: Эндокринология | C162: ds35.003 | D162: Кистозный фиброз | E162: 152852.9 | F162: 178328.38
A163: 35 | B163: Эндокринология | C163: ds35.004 | D163: Лечение кистозного фиброза с применением ингаляционной антибактериальной терапии | E163: 726939.94 | F163: 848096.59
A164: 36 | B164: Прочее | C164: ds36.001 | D164: Комплексное лечение с применением препаратов иммуноглобулина | E164: 465668.13 | F164: 543279.48
A165: 36 | B165: Прочее | C165: ds36.002 | D165: Факторы, влияющие на состояние здоровья населения и обращения в учреждения здравоохранения | E165: 33177.37 | F165: 38706.94
A166: 36 | B166: Прочее | C166: ds36.003 | D166: Госпитализация в дневной стационар в диагностических целях с постановкой диагноза туберкулеза, ВИЧ-инфекции, психического заболевания | E166: 27252.84 | F166: 31794.98
A167: 36 | B167: Прочее | C167: ds36.005 | D167: Отторжение, отмирание трансплантата органов и тканей | E167: 438415.28 | F167: 511484.5
A168: 36 | B168: Прочее | C168: ds36.006 | D168: Злокачественное новообразование без специального противоопухолевого лечения | E168: 23698.12 | F168: 27647.81
A169: 36 | B169: Прочее | C169: ds36.012 | D169: Проведение иммунизации против респираторно-синцитиальной вирусной инфекции (уровень 1) | E169: 47648.51 | F169: 47917.58
A170: 36 | B170: Прочее | C170: ds36.013 | D170: Проведение иммунизации против респираторно-синцитиальной вирусной инфекции (уровень 2) | E170: 100895.34 | F170: 101165.26
A171: 36 | B171: Прочее | C171: ds36.014 | D171: Лечение с применением генно-инженерных биологических препаратов и селективных иммунодепрессантов (инициация) | E171: 97982.98 | F171: 103245.94
A172: 36 | B172: Прочее | C172: ds36.015 | D172: Лечение с применением генно-инженерных биологических препаратов и селективных иммунодепрессантов (уровень 1) | E172: 4490.25 | F172: 4812.37
A173: 36 | B173: Прочее | C173: ds36.016 | D173: Лечение с применением генно-инженерных биологических препаратов и селективных иммунодепрессантов (уровень 2) | E173: 7862.43 | F173: 8189.71
A174: 36 | B174: Прочее | C174: ds36.017 | D174: Лечение с применением генно-инженерных биологических препаратов и селективных иммунодепрессантов (уровень 3) | E174: 12699.36 | F174: 13025.82
A175: 36 | B175: Прочее | C175: ds36.018 | D175: Лечение с применением генно-инженерных биологических препаратов и селективных иммунодепрессантов (уровень 4) | E175: 16412.23 | F175: 16736.16
A176: 36 | B176: Прочее | C176: ds36.019 | D176: Лечение с применением генно-инженерных биологических препаратов и селективных иммунодепрессантов (уровень 5) | E176: 22556.79 | F176: 22880.98
A177: 36 | B177: Прочее | C177: ds36.020 | D177: Лечение с применением генно-инженерных биологических препаратов и селективных иммунодепрессантов (уровень 6) | E177: 28147.61 | F177: 28473.22
A178: 36 | B178: Прочее | C178: ds36.021 | D178: Лечение с применением генно-инженерных биологических препаратов и селективных иммунодепрессантов (уровень 7) | E178: 34848.1 | F178: 35173.36
A179: 36 | B179: Прочее | C179: ds36.022 | D179: Лечение с применением генно-инженерных биологических препаратов и селективных иммунодепрессантов (уровень 8) | E179: 53639.96 | F179: 55681.88
A180: 36 | B180: Прочее | C180: ds36.023 | D180: Лечение с применением генно-инженерных биологических препаратов и селективных иммунодепрессантов (уровень 9) | E180: 53098.09 | F180: 53424.75
A181: 36 | B181: Прочее | C181: ds36.024 | D181: Лечение с применением генно-инженерных биологических препаратов и селективных иммунодепрессантов (уровень 10) | E181: 64079.58 | F181: 64405.68
A182: 36 | B182: Прочее | C182: ds36.025 | D182: Лечение с применением генно-инженерных биологических препаратов и селективных иммунодепрессантов (уровень 11) | E182: 91404.85 | F182: 95159.58
A183: 36 | B183: Прочее | C183: ds36.026 | D183: Лечение с применением генно-инженерных биологических препаратов и селективных иммунодепрессантов (уровень 12) | E183: 98514.51 | F183: 98839.23
A184: 36 | B184: Прочее | C184: ds36.027 | D184: Лечение с применением генно-инженерных биологических препаратов и селективных иммунодепрессантов (уровень 13) | E184: 150696.35 | F184: 155061.35
A185: 36 | B185: Прочее | C185: ds36.028 | D185: Лечение с применением генно-инженерных биологических препаратов и селективных иммунодепрессантов (уровень 14) | E185: 177795.95 | F185: 179698.15
A186: 36 | B186: Прочее | C186: ds36.029 | D186: Лечение с применением генно-инженерных биологических препаратов и селективных иммунодепрессантов (уровень 15) | E186: 212073.11 | F186: 212397.26
A187: 36 | B187: Прочее | C187: ds36.030 | D187: Лечение с применением генно-инженерных биологических препаратов и селективных иммунодепрессантов (уровень 16) | E187: 320971.6 | F187: 321293.72
A188: 36 | B188: Прочее | C188: ds36.031 | D188: Лечение с применением генно-инженерных биологических препаратов и селективных иммунодепрессантов (уровень 17) | E188: 663677.86 | F188: 663994.06
A189: 36 | B189: Прочее | C189: ds36.032 | D189: Лечение с применением генно-инженерных биологических препаратов и селективных иммунодепрессантов (уровень 18) | E189: 725261.67 | F189: 725568.88
A190: 36 | B190: Прочее | C190: ds36.033 | D190: Лечение с применением генно-инженерных биологических препаратов и селективных иммунодепрессантов (уровень 19) | E190: 1366529.66 | F190: 1366819.33
A191: 36 | B191: Прочее | C191: ds36.034 | D191: Лечение с применением генно-инженерных биологических препаратов и селективных иммунодепрессантов (уровень 20) | E191: 2799102.52 | F191: 2799399.32
A192: 36 | B192: Прочее | C192: ds36.035 | D192: Лечение с применением методов афереза (каскадная плазмофильтрация, липидная фильтрация, иммуносорбция) в случае отсутствия эффективности базисной терапии | E192: 300373.72 | F192: 350436
A193: 37 | B193: Медицинская реабилитация | C193: ds37.001 | D193: Медицинская реабилитация пациентов с заболеваниями центральной нервной системы (2 балла по ШРМ) | E193: 136309.24 | F193: 159027.44
A194: 37 | B194: Медицинская реабилитация | C194: ds37.002 | D194: Медицинская реабилитация пациентов с заболеваниями центральной нервной системы (3 балла по ШРМ) | E194: 159027.44 | F194: 185532.02
A195: 37 | B195: Медицинская реабилитация | C195: ds37.003 | D195: Медицинская реабилитация пациентов с заболеваниями опорно-двигательного аппарата и периферической нервной системы (2 балла по ШРМ) | E195: 104641.43 | F195: 122081.67
A196: 37 | B196: Медицинская реабилитация | C196: ds37.004 | D196: Медицинская реабилитация пациентов с заболеваниями опорно-двигательного аппарата и периферической нервной системы (3 балла по ШРМ) | E196: 125294.35 | F196: 146176.74
A197: 37 | B197: Медицинская реабилитация | C197: ds37.005 | D197: Медицинская кардиореабилитация (2 балла по ШРМ) | E197: 95691.84 | F197: 111640.48
A198: 37 | B198: Медицинская реабилитация | C198: ds37.006 | D198: Медицинская кардиореабилитация (3 балла по ШРМ) | E198: 114967.89 | F198: 134129.21
A199: 37 | B199: Медицинская реабилитация | C199: ds37.007 | D199: Медицинская реабилитация при других соматических заболеваниях (2 балла по ШРМ) | E199: 58516.59 | F199: 68269.36
A200: 37 | B200: Медицинская реабилитация | C200: ds37.008 | D200: Медицинская реабилитация при других соматических заболеваниях (3 балла по ШРМ) | E200: 75038.92 | F200: 87545.41
... 8 more rows

Sheet РАЗДЕЛ 4 (СМП)
A1: РАЗДЕЛ 4. СКОРАЯ МЕДИЦИНСКАЯ ПОМОЩЬ
A2: Применяется способ оплаты (код по классификатору V010) | B2: Наименование услуги | C2: Стоимость одного вызова, рублей | AA2: Условия оказания медпомощи | AB2: Тип посещения | AC2: Взрослый профлиь | AD2: Тариф | AE2: Детский профиль
A3: 1 | B3: 2 | C3: 3
A4: 4.1. МЕДИЦИНСКИЕ ОРГАНИЗАЦИИ ОТНОСЯЩИЕСЯ К I УРОВНЮ ОКАЗАНИЯ МЕДИЦИНСКОЙ ПОМОЩИ:
A5: 4.1.1. ДЛЯ МЕДИЦИНСКИХ ОРГАНИЗАЦИЙ, ФИНАНСИРОВАНИЕ КОТОРЫХ ОСУЩЕСТВЛЯЕТСЯ ПО ПОДУШЕВОМУ НОРМАТИВУ ФИНАНСИРОВАНИЯ СКОРОЙ МЕДИЦИНСКОЙ ПОМОЩИ, ОКАЗЫВАЕМОЙ ВНЕ МЕДИЦИНСКОЙ ОРГАНИЗАЦИИ:
A6: 36 | B6: ВЫЗОВ СКОРОЙ МЕДИЦИНСКОЙ ПОМОЩИ | C6: 12083.41 | AA6: 4 | AB6: 24 | AC6: 84 | AD6: =C6 -> 12083.41
A8: 4.1.2. ОПЛАТА СКОРОЙ МЕДИЦИНСКОЙ ПОМОЩИ С ПРОВЕДЕНИЕМ ТРОМБОЛИЗИСА (ДОПОЛНИТЕЛЬНО К ПОДУШЕВОМУ ФИНАНСИРОВАНИЮ):
A9: 24 | B9: ВЫЗОВ СКОРОЙ МЕДИЦИНСКОЙ ПОМОЩИ С ПРОВЕДЕНИЕМ ТРОМБОЛИЗИСА | C9: =C6+57056.9 -> 69140.31

Sheet Раздел 5а (МУ)
A1: РАЗДЕЛ 5а. ТАРИФЫ НА МЕДИЦИНСКИЕ УСЛУГИ (ИССЛЕДОВАНИЯ), ДЛЯ МЕДИЦИНСКИХ ОРГАНИЗАЦИЙ КОТОРЫМ УСТАНОВЛЕНЫ ОБЪМЫ НА САМОСТОЯТЕЛЬНЫЕ ДИАГНОСТИЧЕСКИЕ УСЛУГИ
A3: Код услуги | B3: Наименование услуги (исследования) | C3: Стоимость за единицу объёма, рублей
A4: 1 | B4: 2 | C4: 3
A5: 5.1. ЭНДОСКОПИЧЕСКИЕ ИССЛЕДОВАНИЯ
A6: A03.08.003 | B6: Эзофагоскопия | C6: 1797.3
A7: A03.09.001 | B7: Бронхоскопия | C7: 2916.9
A8: A03.16.001 | B8: Эзофагогастродуоденоскопия | C8: 2830.9
A9: A03.16.001.006 | B9: Эзофагогастродуоденоскопия с применением анестезиологического пособия (при необходимости проведения исследования под наркозом) | C9: =C8+14309.6 -> 17140.5
A10: A03.16.003 | B10: Эзофагогастроскопия | C10: 2417.4
A11: A03.18.001 | B11: Колоноскопия | C11: 4751.8
A12: A03.18.001.008 | B12: Колоноскопия с применением анестезиологического пособия (при необходимости проведения исследования под наркозом) | C12: =C11+14309.6 -> 19061.4
A13: A03.19.002 | B13: Ректороманоскопия | C13: 1857.7
A14: A03.19.004 | B14: Ректосигмоидоскопия | C14: 3098
A15: A03.19.005 | B15: Ректоскопия | C15: 1651
A16: 5.2. УЛЬТРАЗВУКОВЫЕ ИССЛЕДОВАНИЯ
A17: A04.10.002 | B17: Эхокардиография | C17: 3228.5
A18: A04.10.002.001 | B18: Эхокардиография чреспищеводная | C18: 3302.5
A19: A04.10.002.006 | B19: Трансторакальная эхокардиография | C19: 3228.5
A20: A04.12.001 | B20: Ультразвуковая допплерография артерий верхних конечностей | C20: 2158.6
A21: A04.12.001.001 | B21: Ультразвуковая допплерография артерий нижних конечностей | C21: 2158.6
A22: A04.12.002 | B22: Ультразвуковая допплерография сосудов (артерий и вен) верхних конечностей | C22: 3228.5
A23: A04.12.002.001 | B23: Ультразвуковая допплерография сосудов (артерий и вен) нижних конечностей | C23: 3228.5
A24: A04.12.002.002 | B24: Ультразвуковая допплерография вен нижних конечностей | C24: 2158.6
A25: A04.12.002.003 | B25: Ультразвуковая допплерография вен верхних конечностей | C25: 2158.6
A26: A04.12.003 | B26: Дуплексное сканирование аорты | C26: 2158.6
A27: A04.12.005 | B27: Дуплексное сканирование сосудов (артерий и вен) верхних конечностей | C27: 3228.5
A28: A04.12.005.002 | B28: Дуплексное сканирование артерий верхних конечностей | C28: 2158.6
A29: A04.12.005.003 | B29: Дуплексное сканирование брахиоцефальных артерий с цветным допплеровским картированием кровотока | C29: 2158.6
A30: A04.12.005.004 | B30: Дуплексное сканирование вен верхних конечностей | C30: 2158.6
A31: A04.12.005.005 | B31: Дуплексное сканирование экстракраниальных отделов брахиоцефальных артерий | C31: 2158.6
A32: A04.12.005.006 | B32: Дуплексное интракраниальных отделов брахиоцефальных артерий | C32: 2158.6
A33: A04.12.006 | B33: Дуплексное сканирование сосудов (артерий и вен) нижних конечностей | C33: 3228.5
A34: A04.12.006.001 | B34: Дуплексное сканирование артерий нижних конечностей | C34: 2158.6
A35: A04.12.006.002 | B35: Дуплексное сканирование вен нижних конечностей | C35: 2158.6
A36: A04.12.013.001 | B36: Ультразвуковое исследование коронарных артерий внутрисосудистое | C36: 2158.6
A37: A04.30.002 | B37: Дуплексное сканирование сердца и сосудов плода | C37: 2158.6
A38: A04.20.002 | B38: Молочных желез (2-х ) | C38: 1942.9
A39: A04.06.002 | B39: Лимфатических узлов (одна анатомическая зона) | C39: 1114.5
A40: 5.3. МАГНИТНО-РЕЗОНАНСНЫЕ ИССЛЕДОВАНИЯ
A41: 5.3.1. МАГНИТНО-РЕЗОНАНСНЫЕ ИССЛЕДОВАНИЯ БЕЗ КОНТРАСТНОГО ВЕЩЕСТВА
A42: A05.01.002 | B42: МРТ мягких тканей | C42: 11271.75
A43: A05.23.009 | B43: МРТ головного мозга (структура) | C43: 11271.75
A44: A05.12.007.001 | B44: МРТ артерий головного мозга | C44: 11271.75
A45: A05.12.007.002 | B45: МРТ вен головного мозга | C45: 11271.75
A46: A05.12.007.003 | B46: МРТ артерий шеи | C46: 11271.75
A47: A05.12.007.004 | B47: МРТ вен нижних конечностей | C47: 11271.75
A48: A05.12.007.005 | B48: МРТ артерий нижних конечностей | C48: 11271.75
A49: A05.22.002 | B49: МРТ гипофиза | C49: 11271.75
A50: A05.26.008 | B50: МРТ глазницы | C50: 11271.75
A51: A05.03.005 | B51: МРТ шейного отдела позвоночника | C51: 11271.75
A52: A05.03.006 | B52: МРТ краниовертебрального перехода | C52: 11271.75
A53: A05.03.007 | B53: МРТ грудного отдела позвоночника | C53: 11271.75
A54: A05.03.008 | B54: МРТ пояснично-крестцового отдела позвоночника | C54: 11271.75
A55: A05.30.004 | B55: МРТ органов малого таза | C55: 11271.75
A56: A05.04.003 | B56: МРТ крестцово-подвздошного сочленения | C56: 11271.75
A57: A05.04.001 | B57: МРТ суставов (один сустав) | C57: 11271.75
A58: A05.30.005 | B58: МРТ органов брюшной полости | C58: 11271.75
A59: A05.20.003 | B59: МРТ молочной железы | C59: 11271.75
A60: A05.08.001 | B60: МРТ околоносовых пазух | C60: 11271.75
A61: A05.03.009 | B61: МРТ атланто-дентального сочленения | C61: 11271.75
A62: A05.03.010 | B62: МРТ крестцово-копчикового отдела позвоночника | C62: 11271.75
A63: A05.15.001 | B63: МРТ поджелудочной железы | C63: 11271.75
A64: A05.21.001 | B64: МРТ мошонки | C64: 11271.75
A65: A05.22.001 | B65: МРТ надпочечников | C65: 11271.75
A66: A05.28.002 | B66: МРТ почек | C66: 11271.75
A67: A05.30.007 | B67: МРТ забрюшинного пространства | C67: 11271.75
A68: A05.30.011 | B68: МРТ верхней конечности | C68: 11271.75
A69: A05.30.011.002 | B69: МРТ кисти | C69: 11271.75
A70: A05.30.012 | B70: МРТ нижней конечности | C70: 11271.75
A71: A05.30.012.002 | B71: МРТ стопы | C71: 11271.75
A72: A05.10.009 | B72: МРТ сердца и магистральных сосудов | C72: 13888.42
A73: 5.3.2. МАГНИТНО-РЕЗОНАНСНЫЕ ИССЛЕДОВАНИЯ С КОНТРАСТНЫМ ВЕЩЕСТВОМ
A74: A05.01.002.001 | B74: МРТ мягких тканей с контрастированием | C74: 16271.75
A75: A05.23.009.001 | B75: МРТ головного мозга (структура) с контрастированием | C75: 16271.75
A76: A05.12.006.001 | B76: МРТ артерий головного мозга с контрастированием | C76: 16271.75
A77: A05.12.006.002 | B77: МРТ вен головного мозга с контрастированием | C77: 16271.75
A78: A05.12.006.003 | B78: МРТ артерий шеи с контрастированием | C78: 16271.75
A79: A05.12.006.004 | B79: МРТ вен нижних конечностей с контрастированием | C79: 16271.75
A80: A05.12.006.005 | B80: МРТ артерий нижних конечностей с контрастированием | C80: 16271.75
A81: A05.22.002.001 | B81: МРТ гипофиза с контрастированием | C81: 16271.75
A82: A05.26.008.001 | B82: МРТ глазниц с контрастированием | C82: 16271.75
A83: A05.03.005.001 | B83: МРТ шейного отдела позвоночника с контрастированием | C83: 16271.75
A84: A05.03.007.001 | B84: МРТ грудного отдела позвоночника с контрастированием | C84: 16271.75
A85: A05.03.008.001 | B85: МРТ пояснично-крестцового отдела позвоночника с контрастированием | C85: 16271.75
A86: A05.30.004.001 | B86: МРТ органов малого таза с контрастированием | C86: 16271.75
A87: A05.04.003.001 | B87: МРТ крестцово-подвздошного сочленения с контрастированием | C87: 16271.75
A88: A05.04.001.001 | B88: МРТ суставов (один сустав) с контрастированием | C88: 11271.75
A89: A05.30.005.001 | B89: МРТ органов брюшной полости с контрастированием | C89: 16271.75
A90: A05.20.003.001 | B90: МРТ молочной железы с контрастированием | C90: 16271.75
A91: A05.21.001.001 | B91: МРТ мошонки с контрастированием | C91: 16271.75
A92: A05.22.001.001 | B92: МРТ надпочечников с контрастированием | C92: 16271.75
A93: A05.28.002.001 | B93: МРТ почек с контрастированием | C93: 16271.75
A94: A05.30.006.001 | B94: МРТ органов грудной клетки с внутривенным контрастированием | C94: 16271.75
A95: A05.30.007.001 | B95: МРТ забрюшинного пространства с контрастированием | C95: 16271.75
A96: A05.30.011.001 | B96: МРТ верхней конечности с контрастированием | C96: 16271.75
A97: A05.30.012.001 | B97: МРТ нижней конечности с контрастированием | C97: 16271.75
A98: A05.03.009.001 | B98: МРТ атланто-дентального сочленения с контрастированием | C98: 16271.75
A99: A05.03.010.001 | B99: МРТ крестцово-копчикового отдела позвоночника с контрастированием | C99: 16271.75
A100: A05.10.009.001 | B100: МРТ сердца с контрастированием | C100: 26407.26905
A101: 5.4. КОМПЬЮТЕРНАЯ ТОМОГРАФИЯ
A102: A06.01.001 | B102: Компьютерная томография мягких тканей | C102: 7090.65
A103: A06.01.001.001 | B103: Компьютерная томография мягких тканей с контрастированием | C103: 12090.65
A104: A06.03.002 | B104: Компьютерная томография лицевого отдела черепа | C104: 7090.65
A105: A06.03.002.004 | B105: Компьютерно-томографическое перфузионное исследование лицевого отдела черепа | C105: 7090.65
A106: A06.03.002.005 | B106: Компьютерная томография лицевого отдела черепа с внутривенным болюсным контрастированием | C106: 12090.65
A107: A06.03.062 | B107: Компьютерная томография кости | C107: 7090.65
A108: A06.03.067 | B108: Компьютерная томография грудины с мультипланарной и трехмерной реконструкцией | C108: 7090.65
A109: A06.03.068 | B109: Компьютерная томография ребер с мультипланарной и трехмерной реконструкцией | C109: 7090.65
A110: A06.03.069 | B110: Компьютерная томография костей таза | C110: 7090.65
A111: A06.04.020 | B111: Компьютерная томография височно-нижнечелюстных суставов | C111: 7090.65
A112: A06.07.013 | B112: Компьютерная томография челюстно-лицевой области | C112: 7090.65
A113: A06.08.007 | B113: Компьютерная томография придаточных пазух носа, гортани | C113: 7090.65
A114: A06.08.007.001 | B114: Спиральная компьютерная томография гортани | C114: 7090.65
A115: A06.08.007.002 | B115: Компьютерная томография гортани с внутривенным болюсным контрастированием | C115: 12090.65
A116: A06.08.007.003 | B116: Спиральная компьютерная томография придаточных пазух носа | C116: 7090.65
A117: A06.08.007.004 | B117: Компьютерная томография придаточных пазух носа с внутривенным болюсным контрастированием | C117: 12090.65
A118: A06.08.008 | B118: Рентгенотерапия новообразований верхних дыхательных путей | C118: 7090.65
A119: A06.08.009 | B119: Компьютерная томография верхних дыхательных путей и шеи | C119: 7090.65
A120: A06.08.009.001 | B120: Спиральная компьютерная томография шеи | C120: 7090.65
A121: A06.08.009.002 | B121: Компьютерная томография шеи с внутривенным болюсным контрастированием | C121: 12090.65
A122: A06.08.009.003 | B122: Компьютерная томография шеи с внутривенным болюсным контрастированием, мультипланарной и трехмерной реконструкцией | C122: 12090.65
A123: A06.09.005 | B123: Компьютерная томография органов грудной полости | C123: 7090.65
A124: A06.09.005.002 | B124: Компьютерная томография органов грудной полости с внутривенным болюсным контрастированием | C124: 12090.65
A125: A06.09.005.003 | B125: Компьютерная томография грудной полости с внутривенным болюсным контрастированием, мультипланарной и трехмерной реконструкцией | C125: 12090.65
A126: A06.09.005.005 | B126: Компьютерная томография органов грудной полости (при установленном диагнозе и подозрении на COVID-19) | C126: 7090.65
A127: A06.09.008 | B127: Томография легких | C127: 7090.65
A128: A06.09.008.001 | B128: Спиральная компьютерная томография легких | C128: 7090.65
A129: A06.09.011 | B129: Компьютерная томография бронхов | C129: 7090.65
A130: A06.10.009 | B130: Компьютерная томография сердца | C130: 7090.65
A131: A06.10.009.001 | B131: Компьютерная томография сердца с контрастированием | C131: 12090.65
A132: A06.10.009.002 | B132: Компьютерная томография левого предсердия и легочных вен | C132: 7090.65
A133: A06.10.009.003 | B133: Спиральная компьютерная томография сердца с ЭКГ-синхронизацией | C133: 7090.65
A134: A06.11.004 | B134: Компьютерная томография средостения | C134: 7090.65
A135: A06.11.004.001 | B135: Компьютерная томография средостения с внутривенным болюсным контрастированием | C135: 12090.65
A136: A06.12.001.011 | B136: Компьютерно-томографическая ангиография грудной аорты | C136: 7090.65
A137: A06.12.001.012 | B137: Компьютерно-томографическая ангиография брюшной аорты | C137: 7090.65
A138: A06.12.050 | B138: Компьютерно-томографическая ангиография одной анатомической области | C138: 7090.65
A139: A06.12.052 | B139: Компьютерно-томографическая ангиография аорты | C139: 7090.65
A140: A06.12.052.001 | B140: Компьютерно-томографическая ангиография брюшной аорты и подвздошных сосудов | C140: 7090.65
A141: A06.12.053 | B141: Компьютерно-томографическая ангиография сосудов нижних конечностей | C141: 7090.65
A142: A06.12.054 | B142: Компьютерно-томографическая ангиография сосудов верхних конечностей | C142: 7090.65
A143: A06.12.055 | B143: Компьютерно-томографическая ангиография сосудов таза | C143: 7090.65
A144: A06.12.056 | B144: Компьютерно-томографическая ангиография сосудов головного мозга | C144: 7090.65
A145: A06.12.057 | B145: Компьютерно-томографическая ангиография легочных сосудов | C145: 7090.65
A146: A06.12.058 | B146: Компьютерно-томографическая ангиография брахиоцефальных артерий | C146: 7090.65
A147: A06.12.058.001 | B147: Компьютерно-томографическая ангиография внутричерепного сегмента брахиоцефальных артерий артерий Виллизиева круга) | C147: 7090.65
A148: A06.16.002 | B148: Компьютерная томография пищевода с пероральным контрастированием | C148: 12090.65
A149: A06.17.007 | B149: Компьютерная томография тонкой кишки с контрастированием | C149: 12090.65
A150: A06.17.007.001 | B150: Компьютерная томография тонкой кишки с двойным контрастированием | C150: 16590.65
A151: A06.18.004 | B151: Компьютерно-томографическая колоноскопия | C151: 7090.65
A152: A06.18.004.001 | B152: Компьютерно-томографическая колоноскопия с внутривенным болюсным контрастированием | C152: 12090.65
A153: A06.18.004.002 | B153: Компьютерная томография толстой кишки с ретроградным контрастированием | C153: 12090.65
A154: A06.18.004.003 | B154: Компьютерная томография толстой кишки с двойным контрастированием | C154: 16590.65
A155: A06.20.002 | B155: Компьютерная томография органов малого таза у женщин | C155: 7090.65
A156: A06.20.002.001 | B156: Спиральная компьютерная томография органов малого таза у женщин | C156: 7090.65
A157: A06.20.002.002 | B157: Спиральная компьютерная томография органов малого таза у женщин с внутривенным болюсным контрастированием | C157: 12090.65
A158: A06.20.002.003 | B158: Компьютерная томография органов малого таза у женщин с контрастированием | C158: 12090.65
A159: A06.20.002.004 | B159: Компьютерная томография органов малого таза у женщин с внутривенным болюсным контрастированием, мультипланарной и трехмерной реконструкцией | C159: 12090.65
A160: A06.21.003 | B160: Компьютерная томография органов таза у мужчин | C160: 7090.65
A161: A06.21.003.001 | B161: Спиральная компьютерная томография органов таза у мужчин | C161: 7090.65
A162: A06.21.003.002 | B162: Спиральная компьютерная томография органов таза у мужчин с внутривенным болюсным контрастированием | C162: 12090.65
A163: A06.21.003.003 | B163: Компьютерная томография органов таза у мужчин с контрастированием | C163: 12090.65
A164: A06.22.002 | B164: Компьютерная томография надпочечников | C164: 7090.65
A165: A06.22.002.001 | B165: Компьютерная томография надпочечников с внутривенным болюсным контрастированием | C165: 12090.65
A166: A06.23.004 | B166: Компьютерная томография головного мозга | C166: 7090.65
A167: A06.23.004.001 | B167: Компьютерно-томографическая перфузия головного мозга | C167: 7090.65
A168: A06.23.004.002 | B168: Компьютерная томография мягких тканей головы контрастированием | C168: 12090.65
A169: A06.23.004.006 | B169: Компьютерная томография головного мозга с внутривенным контрастированием | C169: 12090.65
A170: A06.23.004.007 | B170: Компьютерная томография сосудов головного мозга с внутривенным болюсным контрастированием | C170: 12090.65
A171: A06.23.004.008 | B171: Компьютерная томография головного мозга интраоперационная | C171: 7090.65
A172: A06.25.003 | B172: Компьютерная томография височной кости | C172: 7090.65
A173: A06.25.003.002 | B173: Компьютерная томография височной кости с внутривенным болюсным контрастированием | C173: 12090.65
A174: A06.26.006 | B174: Компьютерная томография глазницы | C174: 7090.65
A175: A06.26.006.001 | B175: Компьютерная томография глазницы с внутривенным болюсным контрастированием | C175: 12090.65
A176: A06.28.009 | B176: Компьютерная томография почек и надпочечников | C176: 7090.65
A177: A06.28.009.001 | B177: Компьютерная томография почек и верхних мочевыводящих путей с внутривенным болюсным контрастированием | C177: 12090.65
A178: A06.28.009.002 | B178: Спиральная компьютерная томография почек и надпочечников | C178: 7090.65
A179: A06.30.005 | B179: Компьютерная томография органов брюшной полости | C179: 7090.65
A180: A06.30.005.001 | B180: Компьютерная томография органов брюшной полости и забрюшинного пространства | C180: 7090.65
A181: A06.30.005.002 | B181: Компьютерная томография органов брюшной полости и забрюшинного пространства с внутривенным болюсным контрастированием | C181: 12090.65
A182: A06.30.005.003 | B182: Компьютерная томография органов брюшной полости с внутривенным болюсным контрастированием | C182: 12090.65
A183: A06.30.005.004 | B183: Спиральная компьютерная томография органов брюшной полости с внутривенным болюсным контрастированием, мультипланарной и трехмерной реконструкцией | C183: 12090.65
A184: A06.30.005.005 | B184: Компьютерная томография органов брюшной полости с двойным контрастированием | C184: 16590.65
A185: A06.30.007 | B185: Компьютерная томография забрюшинного пространства | C185: 7090.65
A186: A06.30.007.002 | B186: Компьютерная томография забрюшинного пространства с внутривенным болюсным контрастированием | C186: 12090.65
A187: A06.03.058 | B187: Компьютерная томография позвоночника (один отдел) | C187: 7090.65
A188: A06.03.058.003 | B188: Компьютерная томография позвоночника с внутренним контрастированием (один отдел) | C188: 12090.65
A189: A06.04.017 | B189: Компьютерная томография сустава | C189: 7090.65
A190: 5.5. ДИАЛИЗ
A191: A18.05.002 | B191: Гемодиализ | C191: 10318.8
A192: A18.05.002.002 | B192: Гемодиализ интермиттирующий низкопоточный | C192: 10318.8
A193: A18.05.002.001 | B193: Гемодиализ интермиттирующий высокопоточный | C193: 10834.7
A194: A18.05.011 | B194: Гемодиафильтрация | C194: 11144.3
A195: A18.05.004 | B195: Ультрафильтрация крови | C195: 9493.3
A196: A18.05.002.003 | B196: Гемодиализ интермиттирующий продленный | C196: 28479.9
A197: A18.05.003 | B197: Гемофильтрация крови | C197: 29718.1
A198: A18.05.004.001 | B198: Ультрафильтрация продленная | C198: 25900.2
A199: A18.05.011.001 | B199: Гемодиафильтрация продленная | C199: 31059.6
A200: A18.05.002.005 | B200: Гемодиализ продолжительный | C200: 53967.3
A201: A18.05.003.002 | B201: Гемофильтрация крови продолжительная | C201: 56547
... 65 more rows

Sheet Раздел 5б (МУ) -стоматолог
A1: РАЗДЕЛ 5б. ТАРИФЫ НА МЕДИЦИНСКИЕ УСЛУГИ, ДЛЯ МЕДИЦИНСКИХ ОРГАНИЗАЦИЙ КОТОРЫМ УСТАНОВЛЕНЫ ОБЪМЫ НА СТОМАТОЛОГИЧЕСКУЮ МЕДИЦИНСКУЮ ПОМОЩЬ | G1: =ROUND(440.77*1.08,2) -> 476.03
A2: Код услуги | B2: Наименование услуги (медицинской услуги) | C2: Число УЕТ в медицинской услуге | E2: Стоимость медицинской услуги, рублей
C4: взрослый прием | D4: детский прием | E4: взрослый прием | F4: детский прием
A5: 1 | B5: 2 | C5: 3 | D5: 4 | E5: 5 | F5: 6
A6: A12.07.001 | B6: Витальное окрашивание твердых тканей зуба | C6: 0.35 | D6: 0.35 | E6: =ROUND(C6*$G$1,2) -> 166.61 | F6: =ROUND(D6*$G$1,2) -> 166.61
A7: A12.07.003 | B7: Определение индексов гигиены полости рта | C7: 0.61 | D7: 0.61 | E7: =ROUND(C7*$G$1,2) -> 290.38 | F7: =ROUND(D7*$G$1,2) -> 290.38
A8: A12.07.004 | B8: Определение пародонтальных индексов | C8: 0.76 | D8: 0.76 | E8: 361.78 | F8: 361.78
A9: B01.003.004.002 | B9: Проводниковая анестезия | C9: 0.96 | D9: 0.96 | E9: 456.99 | F9: 456.99
A10: B01.003.004.004 | B10: Аппликационная анестезия | C10: 0.31 | D10: 0.31 | E10: 147.57 | F10: 147.57
A11: B01.003.004.005 | B11: Инфильтрационная анестезия | C11: 0.5 | D11: 0.5 | E11: 238.02 | F11: 238.02
A12: A06.30.002 | B12: Описание и интерпретация рентгенографических изображений | C12: 0.93 | D12: 0.93 | E12: 442.71 | F12: 442.71
A13: A06.07.010 | B13: Радиовизиография челюстно-лицевой области | C13: 0.75 | D13: 0.75 | E13: 357.02 | F13: 357.02
A14: A06.07.003 | B14: Прицельная внутриротовая контактная рентгенография | C14: 0.75 | D14: 0.75 | E14: 357.02 | F14: 357.02
A15: A11.07. 026 | B15: Взятие образца биологического материала из очагов поражения органов рта | C15: 1.12 | D15: 1.12 | E15: 533.15 | F15: 533.15
A16: A11.01.019 | B16: Получение соскоба с эрозивно-язвенных элементов кожи и слизистых оболочек | C16: 1.12 | D16: 1.12 | E16: 533.15 | F16: 533.15
A17: A11.07.011 | B17: Инъекционное введение лекарственных препаратов в челюстно-лицевую область | C17: 1.1 | D17: 1.1 | E17: 523.63 | F17: 523.63
A18: A25.07.001 | B18: Назначение лекарственных препаратов при заболеваниях полости рта и зубов | C18: 0.25 | D18: 0.25 | E18: 119.01 | F18: 119.01
A19: A05.07.001 | B19: Электроодонтометрия зуба | C19: 0.42 | D19: 0.42 | E19: 199.93 | F19: 199.93
A20: B01.064.003 | B20: Прием (осмотр, консультация) врача-стоматолога детского первичный | D20: 1.95 | E20: 0 | F20: 928.26
A21: B01.064.004 | B21: Прием (осмотр, консультация) врача-стоматолога детского повторный | D21: 1.37 | E21: 0 | F21: 652.16
A22: B04.064.001 | B22: Диспансерный прием (осмотр, консультация) врача-стоматолога детского | D22: 1.19 | E22: 0 | F22: 566.48
A23: B01.065.007 | B23: Прием (осмотр, консультация) врача-стоматолога первичный | C23: 1.68 | D23: 1.95 | E23: 799.73 | F23: 928.26
A24: B01.065.008 | B24: Прием (осмотр, консультация) врача-стоматолога повторный | C24: 1.18 | D24: 1.37 | E24: 561.72 | F24: 652.16
A25: B04.065.005 | B25: Диспансерный прием (осмотр, консультация) врача-стоматолога | C25: 1.25 | D25: 1.19 | E25: 595.04 | F25: 566.48
A26: B01.065.001 | B26: Прием (осмотр, консультация) врача-стоматолога-терапевта первичный | C26: 1.68 | E26: 799.73 | F26: 0
A27: B01.065.002 | B27: Прием (осмотр, консультация) врача-стоматолога-терапевта повторный | C27: 1.18 | E27: 561.72 | F27: 0
A28: B04.065.001 | B28: Диспансерный прием (осмотр, консультация) врача-стоматолога-терапевта | C28: 1.25 | E28: 595.04 | F28: 0
A29: B01.065.003 | B29: Прием (осмотр, консультация) зубного врача первичный | C29: 1.68 | D29: 1.95 | E29: 799.73 | F29: 928.26
A30: B01.065.004 | B30: Прием (осмотр, консультация) зубного врача повторный | C30: 1.18 | D30: 1.37 | E30: 561.72 | F30: 652.16
A31: B04.065.003 | B31: Диспансерный прием (осмотр, консультация) зубного врача | C31: 1.25 | D31: 1.19 | E31: 595.04 | F31: 566.48
A32: B01.065.005 | B32: Прием (осмотр, консультация) гигиениста стоматологического первичный | C32: 1.5 | D32: 1.5 | E32: 714.05 | F32: 714.05
A33: B01.065.006 | B33: Прием (осмотр, консультация) гигиениста стоматологического повторный | C33: 0.9 | D33: 0.9 | E33: 428.43 | F33: 428.43
A34: A03.07.001 | B34: Люминесцентная стоматоскопия | C34: 0.63 | D34: 0.63 | E34: 299.9 | F34: 299.9
A35: A11.07.010 | B35: Введение лекарственных препаратов в пародонтальный карман | C35: 0.99 | D35: 0.99 | E35: 471.27 | F35: 471.27
A36: A11.07.022 | B36: Аппликация лекарственного препарата на слизистую оболочку полости рта | C36: 0.45 | D36: 0.45 | E36: 214.21 | F36: 214.21
A37: A16.07.051 | B37: Профессиональная гигиена полости рта и зубов1 | C37: 2 | D37: 2 | E37: 952.06 | F37: 952.06
A38: A16.07.082 | B38: Сошлифовывание твердых тканей зуба | C38: 0.25 | D38: 0.25 | E38: =ROUND(C38*$G$1,2) -> 119.01 | F38: =ROUND(D38*$G$1,2) -> 119.01
A39: A11.07.023 | B39: Применение метода серебрения зуба | C39: 0.88 | D39: 0.88 | E39: 418.91 | F39: 418.91
A40: A15.07.003 | B40: Наложение лечебной повязки при заболеваниях слизистой оболочки полости рта и пародонта в области одной челюсти | C40: 2 | D40: 2 | E40: 952.06 | F40: 952.06
A41: A16.07.002.001 | B41: Восстановление зуба пломбой I, II, III, V, VI класс по Блэку с использованием стоматологических цементов2 | C41: 1.53 | D41: 1.53 | E41: 728.33 | F41: 728.33
A42: A16.07.002.002 | B42: Восстановление зуба пломбой I, II, III, V,VI класс по Блэку с использование материалов химического отверждения2 | C42: 1.95 | D42: 1.95 | E42: 928.26 | F42: 928.26
A43: A16.07.002.003 | B43: Восстановление зуба пломбой с нарушением контактного пункта II, III класс по Блэку с использованием стоматологических цементов2 | C43: 1.85 | D43: 1.85 | E43: 880.66 | F43: 880.66
A44: A16.07.002.004 | B44: Восстановление зуба пломбой с нарушением контактного пункта II, III класс по Блэку с использованием материалов химического отверждения2 | C44: 2.5 | D44: 2.5 | E44: 1190.08 | F44: 1190.08
A45: A16.07.002.005 | B45: Восстановление зуба пломбой пломбой IV класс по Блэку с использованием стеклоиномерных цементов2 | C45: 2.45 | D45: 2.45 | E45: 1166.27 | F45: 1166.27
A46: A16.07.002.006 | B46: Восстановление зуба пломбой пломбой IV класс по Блэку с использованием материалов химического отверждения2 | C46: 3.25 | D46: 3.25 | E46: 1547.1 | F46: 1547.1
A47: A16.07.002.007 | B47: Восстановление зуба пломбой из амальгамы I, V класс по Блэку2 | C47: 1.95 | D47: 1.95 | E47: 928.26 | F47: 928.26
A48: A16.07.002.008 | B48: Восстановление зуба пломбой из амальгамы II класс по Блэку2 | C48: 2.33 | D48: 2.33 | E48: 1109.15 | F48: 1109.15
A49: A16.07.002.010 | B49: Восстановление зуба пломбой I, V, VI класс по Блэку с использованием материалов из фотополимеров2 | C49: 3.35 | D49: 3.35 | E49: 1594.7 | F49: 1594.7
A50: A16.07.002.011 | B50: Восстановление зуба пломбой с нарушением контактного пункта II, III класс по Блэку с использованием материалов из фотополимеров2 | C50: 3.75 | D50: 3.75 | E50: 1785.11 | F50: 1785.11
A51: A16.07.002.012 | B51: Восстановление зуба пломбой IV класс по Блэку с использованием материалов из фотополимеров2 | C51: 4 | D51: 4 | E51: 1904.12 | F51: 1904.12
A52: A16.07.002.009 | B52: Наложение временной пломбы | C52: 1.25 | D52: 1.25 | E52: 595.04 | F52: 595.04
A53: A16.07.091 | B53: Снятие временной пломбы | C53: 0.25 | D53: 0.25 | E53: 119.01 | F53: 119.01
A54: A16.07.092 | B54: Трепанация зуба, искусственной коронки | C54: 0.48 | D54: 0.48 | E54: 228.49 | F54: 228.49
A55: A16.07.008.001 | B55: Пломбирование корневого канала зуба пастой | C55: 1.16 | D55: 1.16 | E55: 552.19 | F55: 552.19
A56: A16.07.008.002 | B56: Пломбирование корневого канала зуба гуттаперчивыми штифтами | C56: 1.7 | D56: 1.7 | E56: 809.25 | F56: 809.25
A57: A11.07.027 | B57: Наложение девитализирующей пасты | C57: 0.03 | D57: 0.03 | E57: 14.28 | F57: 14.28
A58: A16.07.009 | B58: Пульпотомия (ампутация коронковой пульпы) | C58: 0.21 | D58: 0.21 | E58: 99.97 | F58: 99.97
A59: A16.07.010 | B59: Экстирпация пульпы | C59: 0.46 | D59: 0.46 | E59: 218.97 | F59: 218.97
A60: A16.07.019 | B60: Временное шинирование при заболеваниях пародонта3 | C60: 1.98 | D60: 1.98 | E60: 942.54 | F60: 942.54
A61: A16.07.020.001 | B61: Удаление наддесневых и поддесневых зубных отложений в области зуба ручным методом4 | C61: 0.32 | D61: 0.32 | E61: 152.33 | F61: 152.33
A62: A16.07.025.001 | B62: Избирательное полирование зуба | C62: 0.2 | D62: 0.2 | E62: 95.21 | F62: 95.21
A63: A22.07.002 | B63: Ультразвуковое удаление наддесневых и поддесневых зубных отложений в области зуба4 | C63: 0.2 | D63: 0.2 | E63: 95.21 | F63: 95.21
A64: A16.07.030.001 | B64: Инструментальная и медикаментозная обработка хорошо проходимого корневого канала | C64: 0.92 | D64: 0.92 | E64: 437.95 | F64: 437.95
A65: A16.07.030.002 | B65: Инструментальная и медикаментозная обработка плохо проходимого корневого канала | C65: 1.71 | D65: 1.71 | E65: 814.01 | F65: 814.01
A66: A16.07.030.003 | B66: Временное пломбирование лекарственным препаратом корневого канала | C66: 0.5 | D66: 0.5 | E66: 238.02 | F66: 238.02
A67: A16.07.039 | B67: Закрытый кюретаж при заболеваниях пародонта в области зуба4 | C67: 0.31 | D67: 0.31 | E67: 147.57 | F67: 147.57
A68: A16.07.082.001 | B68: Распломбировка корневого канала ранее леченного пастой | C68: 2 | D68: 2 | E68: 952.06 | F68: 952.06
A69: A16.07.082.002 | B69: Распломбировка одного корневого канала ранее леченного фосфатцементом/резорцин-формальдегидным методом | C69: 3.55 | D69: 3.55 | E69: 1689.91 | F69: 1689.91
A70: B01.067.001 | B70: Прием (осмотр, консультация) врача-стоматолога-хирурга первичный | C70: 1.4 | D70: 1.4 | E70: =ROUND(C70*$G$1,2) -> 666.44 | F70: =ROUND(D70*$G$1,2) -> 666.44
A71: B01.067.002 | B71: Прием (осмотр, консультация) врача-стоматолога-хирурга повторный | C71: 1.08 | D71: 1.08 | E71: 514.11 | F71: 514.11
A72: A11.03.003 | B72: Внутрикостное введение лекарственных препаратов | C72: 0.82 | D72: 0.82 | E72: 390.34 | F72: 390.34
A73: A15.03.007 | B73: Наложение шины при переломах костей5 | C73: 6.87 | D73: 6.87 | E73: 3270.33 | F73: 3270.33
A74: A15.03.011 | B74: Снятие шины с одной челюсти | C74: 1.43 | D74: 1.43 | E74: 680.72 | F74: 680.72
A75: A15.04.002 | B75: Наложение иммобилизационной повязки при вывихах (подвывихах) суставов | C75: 2.55 | D75: 2.55 | E75: 1213.88 | F75: 1213.88
A76: A15.07.001 | B76: Наложение иммобилизационной повязки при вывихах (подвывихах) зубов | C76: 2.96 | D76: 2.96 | E76: 1409.05 | F76: 1409.05
A77: A11.07.001 | B77: Биопсия слизистой полости рта | C77: 1.15 | D77: 1.15 | E77: 547.43 | F77: 547.43
A78: A11.07.002 | B78: Биопсия языка | C78: 1.15 | D78: 1.15 | E78: 547.43 | F78: 547.43
A79: A11.07.005 | B79: Биопсия слизистой преддверия полости рта | C79: 1.15 | D79: 1.15 | E79: 547.43 | F79: 547.43
A80: A11.07.007 | B80: Биопсия тканей губы | C80: 1.15 | D80: 1.15 | E80: 547.43 | F80: 547.43
A81: A11.07.008 | B81: Пункция кисты полости рта | C81: 0.91 | D81: 0.91 | E81: 433.19 | F81: 433.19
A82: A11.07.009 | B82: Бужирование протоков слюнных желез | C82: 3.01 | D82: 3.01 | E82: 1432.85 | F82: 1432.85
A83: A11.07.013 | B83: Пункция слюнной железы | C83: 0.91 | D83: 0.91 | E83: 433.19 | F83: 433.19
A84: A11.07.014 | B84: Пункция тканей полости рта | C84: 0.91 | D84: 0.91 | E84: 433.19 | F84: 433.19
A85: A11.07.015 | B85: Пункция языка | C85: 0.91 | D85: 0.91 | E85: 433.19 | F85: 433.19
A86: A11.07.016 | B86: Биопсия слизистой ротоглотки | C86: 1.15 | D86: 1.15 | E86: 547.43 | F86: 547.43
A87: A11.07.018 | B87: Пункция губы | C87: 0.91 | D87: 0.91 | E87: 433.19 | F87: 433.19
A88: A11.07.019 | B88: Пункция патологического образования слизистой преддверия полости рта | C88: 0.91 | D88: 0.91 | E88: 433.19 | F88: 433.19
A89: A11.07.020 | B89: Биопсия слюнной железы | C89: 1.15 | D89: 1.15 | E89: 547.43 | F89: 547.43
A90: A15.01.003 | B90: Наложение повязки при операции в челюстно-лицевой области | C90: 1.06 | D90: 1.06 | E90: 504.59 | F90: 504.59
A91: A15.07.002 | B91: Наложение повязки при операциях в полости рта | C91: 1.06 | D91: 1.06 | E91: 504.59 | F91: 504.59
A92: A16.01.004 | B92: Хирургическая обработка раны или инфицированной ткани6 | C92: 1.3 | D92: 1.3 | E92: 618.84 | F92: 618.84
A93: A16.01.008 | B93: Сшивание кожи и подкожной клетчатки7 | C93: 0.84 | D93: 0.84 | E93: 399.87 | F93: 399.87
A94: A16.07.097 | B94: Наложение шва на слизистую оболочку рта | C94: 0.84 | D94: 0.84 | E94: 399.87 | F94: 399.87
A95: A16.01.012 | B95: Вскрытие и дренирование флегмоны (абсцесса) | C95: 2 | D95: 2 | E95: 952.06 | F95: 952.06
A96: A16.01.016 | B96: Удаление атеромы | C96: 2.33 | D96: 2.33 | E96: 1109.15 | F96: 1109.15
A97: A16.01.030 | B97: Иссечение грануляции | C97: 2.22 | D97: 2.22 | E97: 1056.79 | F97: 1056.79
A98: A16.04.018 | B98: Вправление вывиха сустава | C98: 1 | D98: 1 | E98: 476.03 | F98: 476.03
A99: A16.07.095.001 | B99: Остановка луночного кровотечения без наложения швов методом тампонады | C99: 1.25 | D99: 1.25 | E99: 595.04 | F99: 595.04
A100: A16.07.095.002 | B100: Остановка луночного кровотечения без наложения швов с использованием гемостатических материалов | C100: 1 | D100: 1 | E100: 476.03 | F100: 476.03
A101: A16.07.001.001 | B101: Удаление временного зуба | C101: 1.01 | D101: 1.01 | E101: 480.79 | F101: 480.79
A102: A16.07.001.002 | B102: Удаление постоянного зуба | C102: 1.55 | D102: 1.55 | E102: =ROUND(C102*$G$1,2) -> 737.85 | F102: =ROUND(D102*$G$1,2) -> 737.85
A103: A16.07.001.003 | B103: Удаление зуба сложное с разъединением корней | C103: 2.58 | D103: 2.58 | E103: 1228.16 | F103: 1228.16
A104: A16.07.024 | B104: Операция удаления ретинированного, дистопированного или сверхкомплектного зуба | C104: 3 | D104: 3 | E104: 1428.09 | F104: 1428.09
A105: A16.07.040 | B105: Лоскутная операция в полости рта8 | C105: 2.7 | D105: 2.7 | E105: 1285.28 | F105: 1285.28
A106: A16.07.007 | B106: Резекция верхушки корня | C106: 3.78 | D106: 3.78 | E106: 1799.39 | F106: 1799.39
A107: A16.07.011 | B107: Вскрытие подслизистого или поднадкостничного очага воспаления в полости рта | C107: 1 | D107: 1 | E107: 476.03 | F107: 476.03
A108: A16.07.012 | B108: Вскрытие и дренирование одонтогенного абсцесса | C108: 0.97 | D108: 0.97 | E108: 461.75 | F108: 461.75
A109: A16.07.013 | B109: Отсроченный кюретаж лунки удаленного зуба | C109: 1.03 | D109: 1.03 | E109: 490.31 | F109: 490.31
A110: A16.07.014 | B110: Вскрытие и дренирование абсцесса полости рта | C110: 2.14 | D110: 2.14 | E110: 1018.7 | F110: 1018.7
A111: A16.07.015 | B111: Вскрытие и дренирование очага воспаления мягких тканей лица или дна полости рта | C111: 2.41 | D111: 2.41 | E111: 1147.23 | F111: 1147.23
A112: A16.07.016 | B112: Цистотомия или цистэктомия | C112: 3.89 | D112: 3.89 | E112: 1851.76 | F112: 1851.76
A113: A16.07.017.002 | B113: Коррекция объема и формы альвеолярного отростка9 | C113: 1.22 | D113: 1.22 | E113: 580.76 | F113: 580.76
A114: A16.07.026 | B114: Гингивэктомия | C114: 4.3 | D114: 4.3 | E114: 2046.93 | F114: 2046.93
A115: A16.07.089 | B115: Гингивопластика | C115: 4.3 | D115: 4.3 | E115: 2046.93 | F115: 2046.93
A116: A16.07.038 | B116: Открытый кюретаж при заболеваниях пародонта в области зуба4 | C116: 1 | D116: 1 | E116: 476.03 | F116: 476.03
A117: A16.07.042 | B117: Пластика уздечки верхней губы | C117: 2.1 | D117: 2.1 | E117: 999.66 | F117: 999.66
A118: A16.07.043 | B118: Пластика уздечки нижней губы | C118: 2.1 | D118: 2.1 | E118: 999.66 | F118: 999.66
A119: A16.07.044 | B119: Пластика уздечки языка | C119: 1 | D119: 1 | E119: 476.03 | F119: 476.03
A120: A16.07.096 | B120: Пластика перфорации верхнечелюстной пазухи | C120: 4 | D120: 4 | E120: 1904.12 | F120: 1904.12
A121: A16.07.008.003 | B121: Закрытие перфорации стенки корневого канала зуба | C121: 1.8 | D121: 1.8 | E121: 856.85 | F121: 856.85
A122: A16.07.058 | B122: Лечение перикоронита (промывание, рассечение и/или иссечение капюшона) | C122: 1.04 | D122: 1.04 | E122: 495.07 | F122: 495.07
A123: A16.07.059 | B123: Гемисекция зуба | C123: 2.6 | D123: 2.6 | E123: 1237.68 | F123: 1237.68
A124: A11.07.025 | B124: Промывание протока слюнной железы | C124: 1.85 | D124: 1.85 | E124: 880.66 | F124: 880.66
A125: A16.22.012 | B125: Удаление камней из протоков слюнных желез | C125: 3 | D125: 3 | E125: 1428.09 | F125: 1428.09
A126: A16.30.064 | B126: Иссечение свища мягких тканей | C126: 2.25 | D126: 2.25 | E126: 1071.07 | F126: 1071.07
A127: A16.30.069 | B127: Снятие послеоперационных швов (лигатур) | C127: 0.38 | D127: 0.38 | E127: 180.89 | F127: 180.89
A128: B01.054.001 | B128: Осмотр (консультация) врача-физиотерапевта | C128: 1.5 | D128: 1.5 | E128: 714.05 | F128: 714.05
A129: A17.07.001 | B129: Электрофорез лекарственных препаратов при патологии полости рта и зубов | C129: 1.5 | D129: 1.5 | E129: 714.05 | F129: 714.05
A130: A17.07.003 | B130: Диатермокоагуляция при патологии полости рта и зубов | C130: 0.5 | D130: 0.5 | E130: 238.02 | F130: 238.02
A131: A17.07.004 | B131: Ионофорез при патологии полости рта и зубов | C131: 1.01 | D131: 1.01 | E131: 480.79 | F131: 480.79
A132: A17.07.006 | B132: Депофорез корневого канала зуба | C132: 1.5 | D132: 1.5 | E132: 714.05 | F132: 714.05
A133: A17.07.007 | B133: Дарсонвализация при патологии полости рта | C133: 2 | D133: 2 | E133: 952.06 | F133: 952.06
A134: A17.07.008 | B134: Флюктуоризация при патологии полости рта и зубов | C134: 1.67 | D134: 1.67 | E134: =ROUND(C134*$G$1,2) -> 794.97 | F134: =ROUND(D134*$G$1,2) -> 794.97
A135: A17.07.009 | B135: Воздействие электрическими полями при патологии полости рта и зубов | C135: 1 | D135: 1 | E135: 476.03 | F135: 476.03
A136: A17.07.010 | B136: Воздействие токами надтональной частоты (ультратонотерапия) при патологии полости рта и зубов | C136: 1 | D136: 1 | E136: 476.03 | F136: 476.03
A137: A17.07.011 | B137: Воздействие токами ультравысокой частоты при патологии полости рта и зубов | C137: 1.25 | D137: 1.25 | E137: 595.04 | F137: 595.04
A138: A17.07.012 | B138: Ультравысокочастотная индуктотермия при патологии полости рта и зубов | C138: 1.25 | D138: 1.25 | E138: 595.04 | F138: 595.04
A139: A20.07.001 | B139: Гидроорошение при заболевании полости рта и зубов | C139: 1.5 | D139: 1.5 | E139: 714.05 | F139: 714.05
A140: A21.07.001 | B140: Вакуум-терапия в стоматологии | C140: 0.68 | D140: 0.68 | E140: 323.7 | F140: 323.7
A141: A22.07.005 | B141: Ультрафиолетовое облучение ротоглотки | C141: 1.25 | D141: 1.25 | E141: 595.04 | F141: 595.04
A142: A22.07.007 | B142: Ультрафонофорез лекарственных препаратов на область десен | C142: 1 | D142: 1 | E142: 476.03 | F142: 476.03
A143: Ортодонтия
A144: B01.063.001 | B144: Прием (осмотр, консультация) врача-ортодонта первичный | D144: 4.21 | E144: =ROUND(C144*$G$1,2) -> 0 | F144: =ROUND(D144*$G$1,2) -> 2004.09
A145: B01.063.002 | B145: Прием (осмотр, консультация) врача-ортодонта повторный | D145: 1.38 | E145: 0 | F145: 656.92
A146: B04.063.001 | B146: Диспансерный прием (осмотр, консультация) врача-ортодонта | D146: 1.69 | E146: 0 | F146: 804.49
A147: A02.07.004 | B147: Антропометрические исследования | D147: 1.1 | E147: 0 | F147: 523.63
A148: A23.07.002.027 | B148: Изготовление контрольной модели | D148: 2.5 | E148: 0 | F148: 1190.08
A149: A02.07.010.001 | B149: Снятие оттиска с одной челюсти | D149: 1.4 | E149: 0 | F149: 666.44
A150: A02.07.010 | B150: Исследование на диагностических моделях челюстей | D150: 2 | E150: 0 | F150: 952.06
A151: A23.07.001.001 | B151: Коррекция съемного ортодонического аппарата | D151: 1.75 | E151: 0 | F151: 833.05
A152: A23.07.003 | B152: Припасовка и наложение ортодонтического аппарата | D152: 1.8 | E152: 0 | F152: 856.85
A153: A23.07.001.002 | B153: Ремонт ортодонического аппарата | D153: 1.55 | E153: 0 | F153: 737.85
A154: A23.07.002.037 | B154: Починка перелома базиса самотвердеющей пластмассой | D154: 1.75 | E154: 0 | F154: 833.05
A155: A23.07.002.045 | B155: Изготовление дуги вестибулярной с дополнительными изгибами | D155: 3.85 | E155: 0 | F155: 1832.72
A156: A23.07.002.073 | B156: Изготовление дуги вестибулярной | D156: 2.7 | E156: 0 | F156: 1285.28
A157: A23.07.002.051 | B157: Изготовление кольца ортодонтического | D157: 4 | E157: 0 | F157: 1904.12
A158: A23.07.002.055 | B158: Изготовление коронки ортодонтической | D158: 4 | E158: 0 | F158: 1904.12
A159: A23.07.002.058 | B159: Изготовление пластинки вестибулярной | D159: 2.7 | E159: 0 | F159: 1285.28
A160: A23.07.002.059 | B160: Изготовление пластинки с заслоном для языка (без кламмеров) | D160: 2.5 | E160: 0 | F160: 1190.08
A161: A23.07.002.060 | B161: Изготовление пластинки с окклюзионными накладками | D161: 18 | E161: 0 | F161: 8568.54
A162: A16.07.053.002 | B162: Распил ортодонтического аппарата через винт | D162: 1 | E162: 0 | F162: 476.03
A163: Профилактические услуги
A164: B04.064.002 | B164: Профилактический прием (осмотр, консультация) врача-стоматолога детского | D164: 1.57 | E164: =ROUND(C164*$G$1,2) -> 0 | F164: 747.37
A165: B04.065.006 | B165: Профилактический прием (осмотр, консультация) врача-стоматолога | C165: 1.3 | D165: 1.57 | E165: 618.84 | F165: 747.37
A166: B04.065.002 | B166: Профилактический прием (осмотр, консультация) врача-стоматолога-терапевта | C166: 1.3 | E166: 618.84 | F166: 0
A167: B04.065.004 | B167: Профилактический прием (осмотр, консультация) зубного врача | C167: 1.3 | D167: 1.3 | E167: 618.84 | F167: 618.84
A168: A11.07.012 | B168: Глубокое фторирование эмали зуба | C168: 0.3 | D168: 0.3 | E168: 142.81 | F168: 142.81
A169: A11.07.024 | B169: Местное применение реминерализующих препаратов в области зуба4 | C169: 0.7 | D169: 0.7 | E169: 333.22 | F169: 333.22
A170: A13.30.007 | B170: Обучение гигиене полости рта | C170: 0.87 | D170: 0.87 | E170: 414.15 | F170: 414.15
A171: A16.07.057 | B171: Запечатывание фиссуры зуба герметиком | C171: 1 | D171: 1 | E171: 476.03 | F171: 476.03
B173: --------------------------------
B174: Примечания:
B175: <1> Одного квадранта.
B176: <2> Включая полирование пломбы.
B177: <3> Трех зубов.
B178: <4> Одного зуба.
B179: <5> На одной челюсти.
B180: <6> Без наложения швов.
B181: <7> Один шов.
B182: <8> В области двух - трех зубов.
B183: <9> В области одного - двух зубов.

Sheet Раздел6-МУ для силовых структур
A1: РАЗДЕЛ 6. ТАРИФЫ НА МЕДИЦИНСКИЕ УСЛУГИ (ИССЛЕДОВАНИЯ) (используемые при возмещении расходов медицинским организациям в соответствии с заключенным между медико-санитарной частью и медицинской организацией договором об оказании медицинской помощи сотрудникам органов внутренних дел Российской Федерации медицинской организацией в том случае, если данные услуги оказывались медицинскими организациями отдельно)
A3: Наименование услуги (исследования) | B3: Стоимость за единицу объёма, рублей
A4: 1 | B4: 2
A5: 6.1. РЕНТГЕНОЛОГИЧЕСКИЕ ИССЛЕДОВАНИЯ
A6: Рентгенологические исследования органов грудной клетки:
A7: Рентгеноскопия органов грудной клетки | B7: 841.5
A8: Рентгенография (обзорная) грудной клетки в 1-й проекции | B8: 805.5
A9: Рентгенография (обзорная) грудной клетки в 2-х проекциях | B9: 1226
A10: Рентгенологические исследования органов брюшной полости (органов пищеварения):
A11: Рентгеноскопия желудка по традиционной методике | B11: 1741.8
A12: Самостоятельная рентгеноскопия пищевода | B12: 904.1
A13: Дуоденография беззондовая | B13: 1610.9
A14: Ирригоскопия | B14: 2829
A15: Рентгенологические исследования костно-суставной системы:
A16: Рентгенография перефирических отделов скелета и позвоночника в 1-й проекции | B16: 805.5
A17: Рентгенография перефирических отделов скелета и позвоночника в 2-х проекциях | B17: 1186.8
A18: Рентгенография черепа в 2-х проекциях | B18: 1186.8
A19: Рентгенография придаточных пазух носа | B19: 803.8
A20: Рентгенография височно-челюстного сустава | B20: 1185
A21: Рентгенография костей носа | B21: 803.8
A22: Рентгенография височной кости | B22: 1222.8
A23: Рентгенография ключицы | B23: 803.8
A24: Рентгенография лопатки в 2-х проекциях | B24: 1186.8
A25: Рентгенография ребер с аутокомпрессией во время дыхательных движений | B25: 1568
A26: Рентгенография грудины во время дыхательных движений | B26: 2711.9
A27: Рентгенография грудного отдела позвоночника компресионным поясом во время дыхательных движений | B27: 1949.3
A28: Функциональное исследование позвоночника | B28: 1679
A29: Рентгенография костей таза | B29: 805.5
A30: Рентгенография мягких тканей | B30: 841.3
A31: Рентгенография стоп | B31: 1604.1
A32: Рентгенография кисти | B32: 841
A33: Рентгенологические исследования, применяемые в урологии и гинекологии:
A34: Урография внутривенная | B34: 3488.7
A35: Цистография восходящая | B35: 1444.2
A36: Рентгенологические исследования молочных желез:
A37: Обзорная рентгенография молочной железы | B37: 803.8
A38: Обзорная рентгенография молочной железы в прямой и косой проекции | B38: 1222.7
A39: Прицельная рентгенография молочной железы | B39: 803.8
A40: Маммография | B40: ='Раздел 5а (МУ)'!C265 -> 1843.6
A41: Сложные и трудоемкие специальные рентгенологические исследования:
A42: Фистулография | B42: 1568
A43: Томография легких в 1-й проекции | B43: 2369.9
A44: Томография легких в 2-х проекциях | B44: 3211
A45: Заочная консультация по предъявленным рентгенограммам с оформлением документов | B45: 1143.9
A46: Рентгеноденситометрия (включая - поясничный отдел позвоночника, проксимальный отдел бедренной кости, лучевой кости) | B46: ='Раздел 5а (МУ)'!C266 -> 2369.9
A47: 6.2. ЭНДОСКОПИЧЕСКИЕ ИССЛЕДОВАНИЯ
A48: Эзофагоскопия | B48: ='Раздел 5а (МУ)'!C6 -> 1797.3
A49: Бронхоскопия | B49: ='Раздел 5а (МУ)'!C7 -> 2916.9
A50: Эзофагогастродуоденоскопия | B50: ='Раздел 5а (МУ)'!C8 -> 2830.9
A51: Эзофагогастродуоденоскопия с применением анестезиологического пособия (при необходимости проведения исследования под наркозом) | B51: ='Раздел 5а (МУ)'!C9 -> 17140.5
A52: Эзофагогастроскопия | B52: ='Раздел 5а (МУ)'!C10 -> 2417.4
A53: Колоноскопия | B53: ='Раздел 5а (МУ)'!C11 -> 4751.8
A54: Колоноскопия с применением анестезиологического пособия (при необходимости проведения исследования под наркозом) | B54: ='Раздел 5а (МУ)'!C12 -> 19061.4
A55: Ректороманоскопия | B55: ='Раздел 5а (МУ)'!C13 -> 1857.7
A56: Ректосигмоидоскопия | B56: ='Раздел 5а (МУ)'!C14 -> 3098
A57: Ректоскопия | B57: ='Раздел 5а (МУ)'!C15 -> 1651
A58: 6.3. УЛЬТРАЗВУКОВЫЕ ИССЛЕДОВАНИЯ
A59: Щитовидной железы | B59: 850.3
A60: Молочной железы | B60: 1114.5
A61: Молочных желёз (2-х) | B61: 1942.9
A62: Лимфатических узлов (одна анатомическая зона) | B62: 1114.5
A63: Периферические сосуды | B63: 1114.5
A64: Мягкие ткани | B64: 1114.5
A65: Слюнных желез | B65: 1114.5
A66: Дуплексное сканирование брахицефальных артерий | B66: 2158.6
A67: Поджелудочной железы | B67: 1114.5
A68: Печень + желчный пузырь | B68: 1114.5
A69: Селезенка | B69: 1114.5
A70: Желчного пузыря с определением функции | B70: 3228.5
A71: УЗИ брюшной полости | B71: 3492.7
A72: Почки + надпочечники | B72: 1114.5
A73: Предстательная железа + яички | B73: 1114.5
A74: Брюшной аорты | B74: 1643
A75: Мочевого пузыря с определением остаточной мочи | B75: 850.3
A76: При гинекологических заболеваниях | B76: 1406.8
A77: При беременности | B77: 1671
A78: Средостение | B78: 1114.5
A79: Плевральная полость | B79: 1114.5
A80: Ультразвуковое исследование головного мозга | B80: 1643
A81: Ультразвуковое исследование внутренних органов | B81: 1643
A82: Ультразвуковая денситомерия | B82: 599.6
A83: Эхокардиография | B83: ='Раздел 5а (МУ)'!C17 -> 3228.5
A84: Эхокардиография чреспищеводная | B84: ='Раздел 5а (МУ)'!C18 -> 3302.5
A85: Трансторакальная эхокардиография | B85: ='Раздел 5а (МУ)'!C19 -> 3228.5
A86: Ультразвуковая допплерография артерий верхних конечностей | B86: ='Раздел 5а (МУ)'!C20 -> 2158.6
A87: Ультразвуковая допплерография артерий нижних конечностей | B87: ='Раздел 5а (МУ)'!C21 -> 2158.6
A88: Ультразвуковая допплерография сосудов (артерий и вен) верхних конечностей | B88: ='Раздел 5а (МУ)'!C22 -> 3228.5
A89: Ультразвуковая допплерография сосудов (артерий и вен) нижних конечностей | B89: ='Раздел 5а (МУ)'!C23 -> 3228.5
A90: Ультразвуковая допплерография вен нижних конечностей | B90: ='Раздел 5а (МУ)'!C24 -> 2158.6
A91: Ультразвуковая допплерография вен верхних конечностей | B91: ='Раздел 5а (МУ)'!C25 -> 2158.6
A92: Дуплексное сканирование аорты | B92: ='Раздел 5а (МУ)'!C26 -> 2158.6
A93: Дуплексное сканирование сосудов (артерий и вен) верхних конечностей | B93: ='Раздел 5а (МУ)'!C27 -> 3228.5
A94: Дуплексное сканирование артерий верхних конечностей | B94: ='Раздел 5а (МУ)'!C28 -> 2158.6
A95: Дуплексное сканирование брахиоцефальных артерий с цветным допплеровским картированием кровотока | B95: ='Раздел 5а (МУ)'!C29 -> 2158.6
A96: Дуплексное сканирование вен верхних конечностей | B96: ='Раздел 5а (МУ)'!C30 -> 2158.6
A97: Дуплексное сканирование экстракраниальных отделов брахиоцефальных артерий | B97: ='Раздел 5а (МУ)'!C31 -> 2158.6
A98: Дуплексное интракраниальных отделов брахиоцефальных артерий | B98: ='Раздел 5а (МУ)'!C32 -> 2158.6
A99: Дуплексное сканирование сосудов (артерий и вен) нижних конечностей | B99: ='Раздел 5а (МУ)'!C33 -> 3228.5
A100: Дуплексное сканирование артерий нижних конечностей | B100: ='Раздел 5а (МУ)'!C34 -> 2158.6
A101: Дуплексное сканирование вен нижних конечностей | B101: ='Раздел 5а (МУ)'!C35 -> 2158.6
A102: Ультразвуковое исследование коронарных артерий внутрисосудистое | B102: ='Раздел 5а (МУ)'!C36 -> 2158.6
A103: Дуплексное сканирование сердца и сосудов плода | B103: ='Раздел 5а (МУ)'!C37 -> 2158.6
A104: 6.4. ЭЛЕКТРОКАРДИОГРАФИЯ
A105: Электрокардиография (ЭКГ) | B105: 807.5
A106: 6.5. УСЛУГИ ДИАЛИЗА
A107: Гемодиализ | B107: ='Раздел 5а (МУ)'!C191 -> 10318.8
A108: Гемодиализ интермиттирующий низкопоточный | B108: ='Раздел 5а (МУ)'!C192 -> 10318.8
A109: Гемодиализ интермиттирующий высокопоточный | B109: ='Раздел 5а (МУ)'!C193 -> 10834.7
A110: Гемодиафильтрация | B110: ='Раздел 5а (МУ)'!C194 -> 11144.3
A111: Ультрафильтрация крови | B111: ='Раздел 5а (МУ)'!C195 -> 9493.3
A112: Гемодиализ интермиттирующий продленный | B112: ='Раздел 5а (МУ)'!C196 -> 28479.9
A113: Гемофильтрация крови | B113: ='Раздел 5а (МУ)'!C197 -> 29718.1
A114: Ультрафильтрация продленная | B114: ='Раздел 5а (МУ)'!C198 -> 25900.2
A115: Гемодиафильтрация продленная | B115: ='Раздел 5а (МУ)'!C199 -> 31059.6
A116: Гемодиализ продолжительный | B116: ='Раздел 5а (МУ)'!C200 -> 53967.3
A117: Гемофильтрация крови продолжительная | B117: ='Раздел 5а (МУ)'!C201 -> 56547
A118: Гемодиафильтрация продолжительная | B118: ='Раздел 5а (МУ)'!C202 -> 59126.7
A119: Перитонеальный диализ | B119: ='Раздел 5а (МУ)'!C203 -> 8661.9
A120: Перитонеальный диализ проточный | B120: ='Раздел 5а (МУ)'!C204 -> 42616.5
A121: Перитонеальный диализ с использованием автоматизированных технологий | B121: ='Раздел 5а (МУ)'!C205 -> 10740.8
A122: Перитонеальный диализ при нарушении ультрафильтрации | B122: ='Раздел 5а (МУ)'!C206 -> 9441.5
A123: 6.6. МАГНИТНО-РЕЗОНАНСНЫЕ ИССЛЕДОВАНИЯ
A124: 6.6.1. МРТ БЕЗ КОНТРАСТНОГО ВЕЩЕСТВА
A125: МРТ мягких тканей | B125: ='Раздел 5а (МУ)'!C42 -> 11271.75
A126: МРТ головного мозга (структура) | B126: ='Раздел 5а (МУ)'!C43 -> 11271.75
A127: МРТ артерий головного мозга | B127: ='Раздел 5а (МУ)'!C44 -> 11271.75
A128: МРТ вен головного мозга | B128: ='Раздел 5а (МУ)'!C45 -> 11271.75
A129: МРТ артерий шеи | B129: ='Раздел 5а (МУ)'!C46 -> 11271.75
A130: МРТ вен нижних конечностей | B130: ='Раздел 5а (МУ)'!C47 -> 11271.75
A131: МРТ артерий нижних конечностей | B131: ='Раздел 5а (МУ)'!C48 -> 11271.75
A132: МРТ гипофиза | B132: ='Раздел 5а (МУ)'!C49 -> 11271.75
A133: МТ глазницы | B133: ='Раздел 5а (МУ)'!C50 -> 11271.75
A134: МРТ шейного отдела позвоночника | B134: ='Раздел 5а (МУ)'!C51 -> 11271.75
A135: МРТ краниовертебрального перехода | B135: ='Раздел 5а (МУ)'!C52 -> 11271.75
A136: МРТ грудного отдела позвоночника | B136: ='Раздел 5а (МУ)'!C53 -> 11271.75
A137: МРТ пояснично-крестцового отдела позвоночника | B137: ='Раздел 5а (МУ)'!C54 -> 11271.75
A138: МРТ органов малого таза | B138: ='Раздел 5а (МУ)'!C55 -> 11271.75
A139: МРТ крестцово-подвздошного сочленения | B139: ='Раздел 5а (МУ)'!C56 -> 11271.75
A140: МРТ суставов (один сустав) | B140: ='Раздел 5а (МУ)'!C57 -> 11271.75
A141: МРТ органов брюшной полости | B141: ='Раздел 5а (МУ)'!C58 -> 11271.75
A142: МРТ молочной железы | B142: ='Раздел 5а (МУ)'!C59 -> 11271.75
A143: МРТ околоносовых пазух | B143: ='Раздел 5а (МУ)'!C60 -> 11271.75
A144: МРТ атланто-дентального сочленения | B144: ='Раздел 5а (МУ)'!C61 -> 11271.75
A145: МРТ крестцово-копчикового отдела позвоночника | B145: ='Раздел 5а (МУ)'!C62 -> 11271.75
A146: МРТ поджелудочной железы | B146: ='Раздел 5а (МУ)'!C63 -> 11271.75
A147: МРТ мошонки | B147: ='Раздел 5а (МУ)'!C64 -> 11271.75
A148: МРТ надпочечников | B148: ='Раздел 5а (МУ)'!C65 -> 11271.75
A149: МРТ почек | B149: ='Раздел 5а (МУ)'!C66 -> 11271.75
A150: МРТ забрюшинного пространства | B150: ='Раздел 5а (МУ)'!C67 -> 11271.75
A151: МРТ верхней конечности | B151: ='Раздел 5а (МУ)'!C68 -> 11271.75
A152: МРТ кисти | B152: ='Раздел 5а (МУ)'!C69 -> 11271.75
A153: МРТ нижней конечности | B153: ='Раздел 5а (МУ)'!C70 -> 11271.75
A154: МРТ стопы | B154: ='Раздел 5а (МУ)'!C71 -> 11271.75
A155: МРТ сердца и магистральных сосудов | B155: ='Раздел 5а (МУ)'!C72 -> 13888.42
A156: 6.6.2. МРТ С КОНТРАСТНЫМ ВЕЩЕСТВОМ
A157: МРТ мягких тканей с контрастированием | B157: ='Раздел 5а (МУ)'!C74 -> 16271.75
A158: МРТ головного мозга (структура) с контрастированием | B158: ='Раздел 5а (МУ)'!C75 -> 16271.75
A159: МРТ артерий головного мозга с контрастированием | B159: ='Раздел 5а (МУ)'!C76 -> 16271.75
A160: МРТ вен головного мозга с контрастированием | B160: ='Раздел 5а (МУ)'!C77 -> 16271.75
A161: МРТ артерий шеи с контрастированием | B161: ='Раздел 5а (МУ)'!C78 -> 16271.75
A162: МРТ вен нижних конечностей с контрастированием | B162: ='Раздел 5а (МУ)'!C79 -> 16271.75
A163: МРТ артерий нижних конечностей с контрастированием | B163: ='Раздел 5а (МУ)'!C80 -> 16271.75
A164: МРТ гипофиза с контрастированием | B164: ='Раздел 5а (МУ)'!C81 -> 16271.75
A165: МРТ глазниц с контрастированием | B165: ='Раздел 5а (МУ)'!C82 -> 16271.75
A166: МРТ шейного отдела позвоночника с контрастированием | B166: ='Раздел 5а (МУ)'!C83 -> 16271.75
A167: МРТ грудного отдела позвоночника с контрастированием | B167: ='Раздел 5а (МУ)'!C84 -> 16271.75
A168: МРТ пояснично-крестцового отдела позвоночника с контрастированием | B168: ='Раздел 5а (МУ)'!C85 -> 16271.75
A169: МРТ органов малого таза с контрастированием | B169: ='Раздел 5а (МУ)'!C86 -> 16271.75
A170: МРТ крестцово-подвздошного сочленения с контрастированием | B170: ='Раздел 5а (МУ)'!C87 -> 16271.75
A171: МРТ тазобедренных суставов с контрастированием | B171: ='Раздел 5а (МУ)'!C88 -> 11271.75
A172: МРТ органов брюшной полости с контрастированием | B172: ='Раздел 5а (МУ)'!C89 -> 16271.75
A173: МРТ молочных желез с контрастированием | B173: ='Раздел 5а (МУ)'!C90 -> 16271.75
A174: МРТ мужских наружных половых органов с контрастированием | B174: ='Раздел 5а (МУ)'!C91 -> 16271.75
A175: МРТ надпочечников с контрастированием | B175: ='Раздел 5а (МУ)'!C92 -> 16271.75
A176: МРТ почек с контрастированием | B176: ='Раздел 5а (МУ)'!C93 -> 16271.75
A177: МРТ забрюшинного пространства с контрастированием | B177: ='Раздел 5а (МУ)'!C95 -> 16271.75
A178: МРТ верхней конечности с контрастированием | B178: ='Раздел 5а (МУ)'!C96 -> 16271.75
A179: МРТ нижней конечности с контрастированием | B179: ='Раздел 5а (МУ)'!C97 -> 16271.75
A180: МРТ атланто-дентального сочленения с контрастированием | B180: ='Раздел 5а (МУ)'!C98 -> 16271.75
A181: МРТ крестцово-копчикового отдела позвоночника с контрастированием | B181: ='Раздел 5а (МУ)'!C99 -> 16271.75
A182: МРТ сердца с контрастированием | B182: ='Раздел 5а (МУ)'!C100 -> 26407.26905
A183: 6.7. КЛИНИЧЕСКИЕ ИССЛЕДОВАНИЯ
A184: ИССЛЕДОВАНИЯ МОЧИ:
A185: Общий анализ мочи | B185: 311
A186: Определение концентрированной способности почек по Зимницкому | B186: 390.3
A187: Подсчет количества форменных элементов методом Нечипоренко | B187: 809.2
A188: Проба Реберга | B188: 328.5
A189: Обнаружение глюкозы в моче | B189: 27
A190: ГЕМАТОЛОГИЧЕСКИЕ ИССЛЕДОВАНИЯ:
A191: Клинический анализ крови развернутый | B191: 2140.4
A192: Клинический анализ крови (в объеме не менее определения концентрации гемоглобина в эритроцитах, количества лейкоцитов и скорости оседания эритроцитов) | B192: 922
A193: Подсчет эритроцитов в крови | B193: 275
A194: БИОХИМИЧЕСКИЕ ИССЛЕДОВАНИЯ:
A195: Забор крови (учитывается отдельно) | B195: 288
A196: Определение уровня общего холестерина в крови | B196: 80.5
A197: Определение уровня глюкозы | B197: 119.5
A198: Определение креатинина | B198: 159.6
A199: Определение общего билирубина | B199: 207.2
A200: Определение прямого билирубина | B200: 207.2
A201: АЛТ | B201: 124.7
... 194 more rows

Sheet тм (hidden)
C1: USL_OK | D1: VISIT_TYPE | E1: VZR_PROFILE | F1: VZR_SUM | G1: DET_PROFILE | H1: LPU | I1: LENGTH | J1: DATEBEGIN | K1: DATEEND
C2: ='РАЗДЕЛ 1(АМП)'!#REF! ->  | D2: ='РАЗДЕЛ 1(АМП)'!#REF! ->  | E2: ='РАЗДЕЛ 1(АМП)'!#REF! ->  | F2: ='РАЗДЕЛ 1(АМП)'!#REF! ->  | H2: 490002 | J2: 2017-02-01
C3: ='РАЗДЕЛ 1(АМП)'!#REF! ->  | D3: ='РАЗДЕЛ 1(АМП)'!#REF! ->  | F3: ='РАЗДЕЛ 1(АМП)'!#REF! ->  | G3: ='РАЗДЕЛ 1(АМП)'!#REF! ->  | H3: =H2 -> 490002 | J3: =J2 -> 2017-02-01
C4: ='РАЗДЕЛ 1(АМП)'!#REF! ->  | D4: ='РАЗДЕЛ 1(АМП)'!#REF! ->  | E4: ='РАЗДЕЛ 1(АМП)'!#REF! ->  | F4: ='РАЗДЕЛ 1(АМП)'!#REF! ->  | H4: =H3 -> 490002 | J4: =J3 -> 2017-02-01
C5: ='РАЗДЕЛ 1(АМП)'!#REF! ->  | D5: ='РАЗДЕЛ 1(АМП)'!#REF! ->  | E5: ='РАЗДЕЛ 1(АМП)'!#REF! ->  | F5: ='РАЗДЕЛ 1(АМП)'!#REF! ->  | H5: 490002 | J5: 2017-02-01
C6: ='РАЗДЕЛ 1(АМП)'!#REF! ->  | D6: ='РАЗДЕЛ 1(АМП)'!#REF! ->  | E6: ='РАЗДЕЛ 1(АМП)'!#REF! ->  | F6: ='РАЗДЕЛ 1(АМП)'!#REF! ->  | H6: 490002 | J6: 2017-02-01
C7: ='РАЗДЕЛ 1(АМП)'!#REF! ->  | D7: ='РАЗДЕЛ 1(АМП)'!#REF! ->  | E7: ='РАЗДЕЛ 1(АМП)'!#REF! ->  | F7: ='РАЗДЕЛ 1(АМП)'!#REF! ->  | H7: 490002 | J7: 2017-02-01
C8: ='РАЗДЕЛ 1(АМП)'!#REF! ->  | D8: ='РАЗДЕЛ 1(АМП)'!#REF! ->  | E8: ='РАЗДЕЛ 1(АМП)'!#REF! ->  | F8: ='РАЗДЕЛ 1(АМП)'!#REF! ->  | H8: 490002 | J8: 2017-02-01
C9: ='РАЗДЕЛ 1(АМП)'!#REF! ->  | D9: ='РАЗДЕЛ 1(АМП)'!#REF! ->  | E9: ='РАЗДЕЛ 1(АМП)'!#REF! ->  | F9: ='РАЗДЕЛ 1(АМП)'!#REF! ->  | H9: 490002 | J9: 2017-02-01
C10: ='РАЗДЕЛ 1(АМП)'!#REF! ->  | D10: ='РАЗДЕЛ 1(АМП)'!#REF! ->  | E10: ='РАЗДЕЛ 1(АМП)'!#REF! ->  | F10: ='РАЗДЕЛ 1(АМП)'!#REF! ->  | H10: 490002 | J10: 2017-02-01
C11: ='РАЗДЕЛ 1(АМП)'!#REF! ->  | D11: ='РАЗДЕЛ 1(АМП)'!#REF! ->  | E11: ='РАЗДЕЛ 1(АМП)'!#REF! ->  | F11: ='РАЗДЕЛ 1(АМП)'!#REF! ->  | H11: 490002 | J11: 2017-02-01 | M11: В скрипте тарифы для МО отмеченных знаком - !
C12: ='РАЗДЕЛ 1(АМП)'!#REF! ->  | D12: ='РАЗДЕЛ 1(АМП)'!#REF! ->  | E12: ='РАЗДЕЛ 1(АМП)'!#REF! ->  | F12: ='РАЗДЕЛ 1(АМП)'!#REF! ->  | H12: 490002 | J12: 2017-02-01 | N12: Код МО | O12: Наименование МО краткое
C13: ='РАЗДЕЛ 1(АМП)'!#REF! ->  | D13: ='РАЗДЕЛ 1(АМП)'!#REF! ->  | E13: ='РАЗДЕЛ 1(АМП)'!#REF! ->  | F13: ='РАЗДЕЛ 1(АМП)'!#REF! ->  | H13: 490002 | J13: 2017-02-01 | N13: 360768 | O13: ООО "МРТ-МАГАДАН"
C14: ='РАЗДЕЛ 1(АМП)'!#REF! ->  | D14: ='РАЗДЕЛ 1(АМП)'!#REF! ->  | E14: ='РАЗДЕЛ 1(АМП)'!#REF! ->  | F14: ='РАЗДЕЛ 1(АМП)'!#REF! ->  | H14: 490002 | J14: 2017-02-01 | M14: ! | N14: 490002 | O14: МОГБУЗ "МСЧ "АВИАМЕДИЦИНА"
C15: ='РАЗДЕЛ 1(АМП)'!#REF! ->  | D15: ='РАЗДЕЛ 1(АМП)'!#REF! ->  | E15: ='РАЗДЕЛ 1(АМП)'!#REF! ->  | F15: ='РАЗДЕЛ 1(АМП)'!#REF! ->  | H15: 490002 | J15: 2017-02-01 | M15: ! | N15: 490003 | O15: МОГБУЗ " СТОМАТОЛОГИЧЕСКАЯ ПОЛИКЛИНИКА"
C16: ='РАЗДЕЛ 1(АМП)'!#REF! ->  | D16: ='РАЗДЕЛ 1(АМП)'!#REF! ->  | E16: ='РАЗДЕЛ 1(АМП)'!#REF! ->  | F16: ='РАЗДЕЛ 1(АМП)'!#REF! ->  | H16: 490002 | J16: 2017-02-01 | M16: ! | N16: 490004 | O16: МОГБУЗ "СРЕДНЕКАНСКАЯ РАЙОННАЯ БОЛЬНИЦА"
C17: ='РАЗДЕЛ 1(АМП)'!#REF! ->  | D17: ='РАЗДЕЛ 1(АМП)'!#REF! ->  | F17: ='РАЗДЕЛ 1(АМП)'!#REF! ->  | G17: ='РАЗДЕЛ 1(АМП)'!#REF! ->  | H17: 490002 | J17: 2017-02-01 | M17: ! | N17: 490005 | O17: ФКУЗ "МСЧ МВД РОССИИ ПО МАГАДАНСКОЙ ОБЛАСТИ"
C18: ='РАЗДЕЛ 1(АМП)'!#REF! ->  | D18: ='РАЗДЕЛ 1(АМП)'!#REF! ->  | E18: ='РАЗДЕЛ 1(АМП)'!#REF! ->  | F18: ='РАЗДЕЛ 1(АМП)'!#REF! ->  | H18: 490002 | J18: 2017-02-01 | M18: ! | N18: 490007 | O18: МОГБУЗ "ОЛЬСКАЯ РАЙОННАЯ БОЛЬНИЦА"
C19: ='РАЗДЕЛ 1(АМП)'!#REF! ->  | D19: ='РАЗДЕЛ 1(АМП)'!#REF! ->  | E19: ='РАЗДЕЛ 1(АМП)'!#REF! ->  | F19: ='РАЗДЕЛ 1(АМП)'!#REF! ->  | H19: 490002 | J19: 2017-02-01 | M19: ! | N19: 490010 | O19: МОГБУЗ "ЯГОДНИНСКАЯ РАЙОННАЯ БОЛЬНИЦА"
C20: ='РАЗДЕЛ 1(АМП)'!#REF! ->  | D20: ='РАЗДЕЛ 1(АМП)'!#REF! ->  | E20: ='РАЗДЕЛ 1(АМП)'!#REF! ->  | F20: ='РАЗДЕЛ 1(АМП)'!#REF! ->  | H20: 490002 | J20: 2017-02-01 | M20: ! | N20: 490011 | O20: МОГБУЗ "ХАСЫНСКАЯ РАЙОННАЯ БОЛЬНИЦА"
C21: ='РАЗДЕЛ 1(АМП)'!#REF! ->  | D21: ='РАЗДЕЛ 1(АМП)'!#REF! ->  | E21: ='РАЗДЕЛ 1(АМП)'!#REF! ->  | F21: ='РАЗДЕЛ 1(АМП)'!#REF! ->  | H21: 490002 | J21: 2017-02-01 | M21: ! | N21: 490012 | O21: ОГБУЗ "МАГАДАНСКИЙ РОДИЛЬНЫЙ ДОМ"
C22: ='РАЗДЕЛ 1(АМП)'!#REF! ->  | D22: ='РАЗДЕЛ 1(АМП)'!#REF! ->  | E22: ='РАЗДЕЛ 1(АМП)'!#REF! ->  | F22: ='РАЗДЕЛ 1(АМП)'!#REF! ->  | H22: 490002 | J22: 2017-02-01 | M22: ! | N22: 490014 | O22: МОГБУЗ "ТЕНЬКИНСКАЯ РАЙОННАЯ БОЛЬНИЦА"
C23: ='РАЗДЕЛ 1(АМП)'!#REF! ->  | D23: ='РАЗДЕЛ 1(АМП)'!#REF! ->  | E23: ='РАЗДЕЛ 1(АМП)'!#REF! ->  | F23: ='РАЗДЕЛ 1(АМП)'!#REF! ->  | H23: 490002 | J23: 2017-02-01 | M23: ! | N23: 490015 | O23: ГБУЗ "МОБ"
C24: ='РАЗДЕЛ 1(АМП)'!#REF! ->  | D24: ='РАЗДЕЛ 1(АМП)'!#REF! ->  | E24: ='РАЗДЕЛ 1(АМП)'!#REF! ->  | F24: ='РАЗДЕЛ 1(АМП)'!#REF! ->  | H24: 490002 | J24: 2017-02-01 | M24: ! | N24: 490016 | O24: МОГБУЗ "СУСУМАНСКАЯ РАЙОННАЯ БОЛЬНИЦА"
C25: ='РАЗДЕЛ 1(АМП)'!#REF! ->  | D25: ='РАЗДЕЛ 1(АМП)'!#REF! ->  | E25: ='РАЗДЕЛ 1(АМП)'!#REF! ->  | F25: ='РАЗДЕЛ 1(АМП)'!#REF! ->  | H25: 490002 | J25: 2017-02-01 | M25: ! | N25: 490017 | O25: МОГБУЗ " ПОЛИКЛИНИКА № 1"
C26: ='РАЗДЕЛ 1(АМП)'!#REF! ->  | D26: ='РАЗДЕЛ 1(АМП)'!#REF! ->  | E26: ='РАЗДЕЛ 1(АМП)'!#REF! ->  | F26: ='РАЗДЕЛ 1(АМП)'!#REF! ->  | H26: 490002 | J26: 2017-02-01 | M26: ! | N26: 490018 | O26: ГБУЗ "МООД"
C27: ='РАЗДЕЛ 1(АМП)'!#REF! ->  | D27: ='РАЗДЕЛ 1(АМП)'!#REF! ->  | E27: ='РАЗДЕЛ 1(АМП)'!#REF! ->  | F27: ='РАЗДЕЛ 1(АМП)'!#REF! ->  | H27: 490002 | J27: 2017-02-01 | M27: ! | N27: 490019 | O27: МОГБУЗ "ПОЛИКЛИНИКА № 2"
C28: ='РАЗДЕЛ 1(АМП)'!#REF! ->  | D28: ='РАЗДЕЛ 1(АМП)'!#REF! ->  | E28: ='РАЗДЕЛ 1(АМП)'!#REF! ->  | F28: ='РАЗДЕЛ 1(АМП)'!#REF! ->  | H28: 490002 | J28: 2017-02-01 | M28: ! | N28: 490021 | O28: ООО "ДАНТИСТ-ПЛЮС"
C29: ='РАЗДЕЛ 1(АМП)'!#REF! ->  | D29: ='РАЗДЕЛ 1(АМП)'!#REF! ->  | E29: ='РАЗДЕЛ 1(АМП)'!#REF! ->  | F29: ='РАЗДЕЛ 1(АМП)'!#REF! ->  | H29: =H28 -> 490002 | J29: 2017-02-01 | M29: ! | N29: 490022 | O29: ГБУЗ "МАГАДАНСКАЯ ОБЛАСТНАЯ ДЕТСКАЯ БОЛЬНИЦА"
C30: ='РАЗДЕЛ 1(АМП)'!#REF! ->  | D30: ='РАЗДЕЛ 1(АМП)'!#REF! ->  | E30: ='РАЗДЕЛ 1(АМП)'!#REF! ->  | F30: ='РАЗДЕЛ 1(АМП)'!#REF! ->  | H30: 490002 | J30: 2017-02-01 | M30: ! | N30: 490023 | O30: ГБУЗ "МОЦМП"
C31: ='РАЗДЕЛ 1(АМП)'!#REF! ->  | D31: ='РАЗДЕЛ 1(АМП)'!#REF! ->  | E31: ='РАЗДЕЛ 1(АМП)'!#REF! ->  | F31: ='РАЗДЕЛ 1(АМП)'!#REF! ->  | H31: 490002 | J31: 2017-02-01 | M31: ! | N31: 490024 | O31: МОГБУЗ "ПОЛИКЛИНИКА № 3"
C32: ='РАЗДЕЛ 1(АМП)'!#REF! ->  | D32: ='РАЗДЕЛ 1(АМП)'!#REF! ->  | E32: ='РАЗДЕЛ 1(АМП)'!#REF! ->  | F32: ='РАЗДЕЛ 1(АМП)'!#REF! ->  | H32: 490002 | J32: 2017-02-01 | N32: 490025 | O32: МОГБУЗ "СЕВЕРО-ЭВЕНСКАЯ РАЙОННАЯ БОЛЬНИЦА"
C33: ='РАЗДЕЛ 1(АМП)'!#REF! ->  | D33: ='РАЗДЕЛ 1(АМП)'!#REF! ->  | E33: ='РАЗДЕЛ 1(АМП)'!#REF! ->  | F33: ='РАЗДЕЛ 1(АМП)'!#REF! ->  | H33: 490002 | J33: 2017-02-01 | M33: ! | N33: 490026 | O33: МОГБУЗ "ОМСУКЧАНСКАЯ РАЙОННАЯ БОЛЬНИЦА"
C34: ='РАЗДЕЛ 1(АМП)'!#REF! ->  | D34: ='РАЗДЕЛ 1(АМП)'!#REF! ->  | E34: ='РАЗДЕЛ 1(АМП)'!#REF! ->  | F34: ='РАЗДЕЛ 1(АМП)'!#REF! ->  | H34: 490002 | J34: 2017-02-01 | M34: ! | N34: 490027 | O34: ООО"ВИТА"
C35: ='РАЗДЕЛ 1(АМП)'!#REF! ->  | D35: ='РАЗДЕЛ 1(АМП)'!#REF! ->  | E35: ='РАЗДЕЛ 1(АМП)'!#REF! ->  | F35: ='РАЗДЕЛ 1(АМП)'!#REF! ->  | H35: 490002 | J35: 2017-02-01 | M35: ! | N35: 490028 | O35: МОГБУЗ "СТАНЦИЯ СКОРОЙ МЕДИЦИНСКОЙ ПОМОЩИ"
C36: ='РАЗДЕЛ 1(АМП)'!#REF! ->  | D36: ='РАЗДЕЛ 1(АМП)'!#REF! ->  | E36: ='РАЗДЕЛ 1(АМП)'!#REF! ->  | F36: ='РАЗДЕЛ 1(АМП)'!#REF! ->  | H36: 490002 | J36: 2017-02-01 | M36: ! | N36: 490029 | O36: ООО"ДОКТОР ВЕБЕР"
C37: ='РАЗДЕЛ 1(АМП)'!#REF! ->  | D37: ='РАЗДЕЛ 1(АМП)'!#REF! ->  | E37: ='РАЗДЕЛ 1(АМП)'!#REF! ->  | F37: ='РАЗДЕЛ 1(АМП)'!#REF! ->  | H37: 490002 | J37: 2017-02-01 | M37: ! | N37: 490035 | O37: ООО "ВИТА - ДЕНТ"
C38: ='РАЗДЕЛ 1(АМП)'!#REF! ->  | D38: ='РАЗДЕЛ 1(АМП)'!#REF! ->  | E38: ='РАЗДЕЛ 1(АМП)'!#REF! ->  | F38: ='РАЗДЕЛ 1(АМП)'!#REF! ->  | H38: 490002 | J38: 2017-02-01 | M38: ! | N38: 490036 | O38: ООО "КРИСТАЛ - СТОМА"
C39: ='РАЗДЕЛ 1(АМП)'!#REF! ->  | D39: ='РАЗДЕЛ 1(АМП)'!#REF! ->  | E39: ='РАЗДЕЛ 1(АМП)'!#REF! ->  | F39: ='РАЗДЕЛ 1(АМП)'!#REF! ->  | H39: 490002 | J39: 2017-02-01 | M39: ! | N39: 490037 | O39: ООО"ДОБРЫЙ СТОМАТОЛОГ ПЛЮС"
C40: ='РАЗДЕЛ 1(АМП)'!#REF! ->  | D40: ='РАЗДЕЛ 1(АМП)'!#REF! ->  | E40: ='РАЗДЕЛ 1(АМП)'!#REF! ->  | F40: ='РАЗДЕЛ 1(АМП)'!#REF! ->  | H40: 490002 | J40: 2017-02-01 | N40: 490038 | O40: ФГБУ РОСНИИТО ФМБА РОССИИ
C41: ='РАЗДЕЛ 1(АМП)'!#REF! ->  | D41: ='РАЗДЕЛ 1(АМП)'!#REF! ->  | F41: ='РАЗДЕЛ 1(АМП)'!#REF! ->  | G41: ='РАЗДЕЛ 1(АМП)'!#REF! ->  | H41: 490002 | J41: 2017-02-01 | N41: 490039 | O41: ФГБУЗ КБ №122 ИМ. Л. Г. СОКОЛОВА ФМБА РОССИИ
C42: ='РАЗДЕЛ 1(АМП)'!#REF! ->  | D42: ='РАЗДЕЛ 1(АМП)'!#REF! ->  | E42: ='РАЗДЕЛ 1(АМП)'!#REF! ->  | F42: ='РАЗДЕЛ 1(АМП)'!#REF! ->  | H42: 490002 | J42: 2017-02-01 | M42: ! | N42: 490040 | O42: ООО "ДАНТИСТ"
C43: ='РАЗДЕЛ 1(АМП)'!#REF! ->  | D43: ='РАЗДЕЛ 1(АМП)'!#REF! ->  | E43: ='РАЗДЕЛ 1(АМП)'!#REF! ->  | F43: ='РАЗДЕЛ 1(АМП)'!#REF! ->  | H43: 490002 | J43: 2017-02-01 | N43: 490041 | O43: НУЗ "ДОРОЖНАЯ КЛИНИЧЕСКАЯ БОЛЬНИЦА НА СТАНЦИИ ХАБАРОВСК - 1 ОАО "РЖД"
C44: ='РАЗДЕЛ 1(АМП)'!#REF! ->  | D44: ='РАЗДЕЛ 1(АМП)'!#REF! ->  | E44: ='РАЗДЕЛ 1(АМП)'!#REF! ->  | F44: ='РАЗДЕЛ 1(АМП)'!#REF! ->  | H44: 490002 | J44: 2017-02-01 | N44: 490043 | O44: ООО "ЮНИЛАБ-ХАБАРОВСК"
C45: ='РАЗДЕЛ 1(АМП)'!#REF! ->  | D45: ='РАЗДЕЛ 1(АМП)'!#REF! ->  | E45: ='РАЗДЕЛ 1(АМП)'!#REF! ->  | F45: ='РАЗДЕЛ 1(АМП)'!#REF! ->  | H45: 490002 | J45: 2017-02-01 | N45: 490045 | O45: ООО "МРТ-МАГАДАН"
C46: ='РАЗДЕЛ 1(АМП)'!#REF! ->  | D46: ='РАЗДЕЛ 1(АМП)'!#REF! ->  | E46: ='РАЗДЕЛ 1(АМП)'!#REF! ->  | F46: ='РАЗДЕЛ 1(АМП)'!#REF! ->  | H46: 490002 | J46: 2017-02-01 | N46: 490046 | O46: ООО "ЛЕГЕ АРТИС"
C47: ='РАЗДЕЛ 1(АМП)'!#REF! ->  | D47: ='РАЗДЕЛ 1(АМП)'!#REF! ->  | E47: ='РАЗДЕЛ 1(АМП)'!#REF! ->  | F47: ='РАЗДЕЛ 1(АМП)'!#REF! ->  | H47: 490002 | J47: 2017-02-01 | M47: ! | N47: 490047 | O47: ООО "ЭКО ЦЕНТР"
C48: ='РАЗДЕЛ 1(АМП)'!#REF! ->  | D48: ='РАЗДЕЛ 1(АМП)'!#REF! ->  | E48: ='РАЗДЕЛ 1(АМП)'!#REF! ->  | F48: ='РАЗДЕЛ 1(АМП)'!#REF! ->  | H48: 490002 | J48: 2017-02-01 | N48: 490048 | O48: ООО "УЛЫБКА"
C49: ='РАЗДЕЛ 1(АМП)'!#REF! ->  | D49: ='РАЗДЕЛ 1(АМП)'!#REF! ->  | E49: ='РАЗДЕЛ 1(АМП)'!#REF! ->  | F49: ='РАЗДЕЛ 1(АМП)'!#REF! ->  | H49: 490002 | J49: 2017-02-01 | M49: ! | N49: 490049 | O49: ООО "ДАНТИСТ XXI ВЕК"
C50: ='РАЗДЕЛ 1(АМП)'!#REF! ->  | D50: ='РАЗДЕЛ 1(АМП)'!#REF! ->  | E50: ='РАЗДЕЛ 1(АМП)'!#REF! ->  | F50: ='РАЗДЕЛ 1(АМП)'!#REF! ->  | H50: 490002 | J50: 2017-02-01 | N50: 490050 | O50: ООО"УЛЬТРА-ДЕНТ"
C51: ='РАЗДЕЛ 1(АМП)'!#REF! ->  | D51: ='РАЗДЕЛ 1(АМП)'!#REF! ->  | E51: ='РАЗДЕЛ 1(АМП)'!#REF! ->  | F51: ='РАЗДЕЛ 1(АМП)'!#REF! ->  | H51: 490002 | J51: 2017-02-01 | M51: ! | N51: 490051 | O51: ООО"МОЙ ДОКТОР"
C52: ='РАЗДЕЛ 1(АМП)'!#REF! ->  | D52: ='РАЗДЕЛ 1(АМП)'!#REF! ->  | E52: ='РАЗДЕЛ 1(АМП)'!#REF! ->  | F52: ='РАЗДЕЛ 1(АМП)'!#REF! ->  | H52: 490002 | J52: 2017-02-01 | M52: ! | N52: 490053 | O52: ФКУЗ МСЧ-49 ФСИН РОССИИ
C53: ='РАЗДЕЛ 1(АМП)'!#REF! ->  | D53: ='РАЗДЕЛ 1(АМП)'!#REF! ->  | E53: ='РАЗДЕЛ 1(АМП)'!#REF! ->  | F53: ='РАЗДЕЛ 1(АМП)'!#REF! ->  | H53: 490002 | J53: 2017-02-01
C54: ='РАЗДЕЛ 1(АМП)'!#REF! ->  | D54: ='РАЗДЕЛ 1(АМП)'!#REF! ->  | E54: ='РАЗДЕЛ 1(АМП)'!#REF! ->  | F54: ='РАЗДЕЛ 1(АМП)'!#REF! ->  | H54: 490002 | J54: 2017-02-01
C55: ='РАЗДЕЛ 1(АМП)'!#REF! ->  | D55: ='РАЗДЕЛ 1(АМП)'!#REF! ->  | E55: ='РАЗДЕЛ 1(АМП)'!#REF! ->  | F55: ='РАЗДЕЛ 1(АМП)'!#REF! ->  | H55: 490002 | J55: 2017-02-01
C56: ='РАЗДЕЛ 1(АМП)'!#REF! ->  | D56: ='РАЗДЕЛ 1(АМП)'!#REF! ->  | E56: ='РАЗДЕЛ 1(АМП)'!#REF! ->  | F56: ='РАЗДЕЛ 1(АМП)'!#REF! ->  | H56: =H55 -> 490002 | J56: 2017-02-01
C57: ='РАЗДЕЛ 1(АМП)'!#REF! ->  | D57: ='РАЗДЕЛ 1(АМП)'!#REF! ->  | E57: ='РАЗДЕЛ 1(АМП)'!#REF! ->  | F57: ='РАЗДЕЛ 1(АМП)'!#REF! ->  | H57: 490002 | J57: 2017-02-01
C58: ='РАЗДЕЛ 1(АМП)'!#REF! ->  | D58: ='РАЗДЕЛ 1(АМП)'!#REF! ->  | E58: ='РАЗДЕЛ 1(АМП)'!#REF! ->  | F58: ='РАЗДЕЛ 1(АМП)'!#REF! ->  | H58: 490002 | J58: 2017-02-01
C59: ='РАЗДЕЛ 1(АМП)'!#REF! ->  | D59: ='РАЗДЕЛ 1(АМП)'!#REF! ->  | E59: ='РАЗДЕЛ 1(АМП)'!#REF! ->  | F59: ='РАЗДЕЛ 1(АМП)'!#REF! ->  | H59: 490002 | J59: 2017-02-01
C60: ='РАЗДЕЛ 1(АМП)'!#REF! ->  | D60: ='РАЗДЕЛ 1(АМП)'!#REF! ->  | E60: ='РАЗДЕЛ 1(АМП)'!#REF! ->  | F60: ='РАЗДЕЛ 1(АМП)'!#REF! ->  | H60: 490002 | J60: 2017-02-01
C61: ='РАЗДЕЛ 1(АМП)'!#REF! ->  | D61: ='РАЗДЕЛ 1(АМП)'!#REF! ->  | E61: ='РАЗДЕЛ 1(АМП)'!#REF! ->  | F61: ='РАЗДЕЛ 1(АМП)'!#REF! ->  | H61: 490002 | J61: 2017-02-01
C62: ='РАЗДЕЛ 1(АМП)'!#REF! ->  | D62: ='РАЗДЕЛ 1(АМП)'!#REF! ->  | E62: ='РАЗДЕЛ 1(АМП)'!#REF! ->  | F62: ='РАЗДЕЛ 1(АМП)'!#REF! ->  | H62: 490002 | J62: 2017-02-01
C63: ='РАЗДЕЛ 1(АМП)'!#REF! ->  | D63: ='РАЗДЕЛ 1(АМП)'!#REF! ->  | E63: ='РАЗДЕЛ 1(АМП)'!#REF! ->  | F63: ='РАЗДЕЛ 1(АМП)'!#REF! ->  | H63: 490002 | J63: 2017-02-01
C64: ='РАЗДЕЛ 1(АМП)'!#REF! ->  | D64: ='РАЗДЕЛ 1(АМП)'!#REF! ->  | E64: ='РАЗДЕЛ 1(АМП)'!#REF! ->  | F64: ='РАЗДЕЛ 1(АМП)'!#REF! ->  | H64: 490002 | J64: 2017-02-01
C65: ='РАЗДЕЛ 1(АМП)'!#REF! ->  | D65: ='РАЗДЕЛ 1(АМП)'!#REF! ->  | F65: ='РАЗДЕЛ 1(АМП)'!#REF! ->  | G65: ='РАЗДЕЛ 1(АМП)'!#REF! ->  | H65: 490002 | J65: 2017-02-01
C66: ='РАЗДЕЛ 1(АМП)'!#REF! ->  | D66: ='РАЗДЕЛ 1(АМП)'!#REF! ->  | E66: ='РАЗДЕЛ 1(АМП)'!#REF! ->  | F66: ='РАЗДЕЛ 1(АМП)'!#REF! ->  | H66: 490002 | J66: 2017-02-01
C67: ='РАЗДЕЛ 1(АМП)'!#REF! ->  | D67: ='РАЗДЕЛ 1(АМП)'!#REF! ->  | E67: ='РАЗДЕЛ 1(АМП)'!#REF! ->  | F67: ='РАЗДЕЛ 1(АМП)'!#REF! ->  | H67: =H66 -> 490002 | J67: =J66 -> 2017-02-01
C68: ='РАЗДЕЛ 1(АМП)'!#REF! ->  | D68: ='РАЗДЕЛ 1(АМП)'!#REF! ->  | E68: ='РАЗДЕЛ 1(АМП)'!#REF! ->  | F68: ='РАЗДЕЛ 1(АМП)'!#REF! ->  | H68: 490002 | J68: 2017-02-01
C69: ='РАЗДЕЛ 1(АМП)'!#REF! ->  | D69: ='РАЗДЕЛ 1(АМП)'!#REF! ->  | E69: ='РАЗДЕЛ 1(АМП)'!#REF! ->  | F69: ='РАЗДЕЛ 1(АМП)'!#REF! ->  | H69: 490002 | J69: 2017-02-01
C70: ='РАЗДЕЛ 1(АМП)'!#REF! ->  | D70: ='РАЗДЕЛ 1(АМП)'!#REF! ->  | E70: ='РАЗДЕЛ 1(АМП)'!#REF! ->  | F70: ='РАЗДЕЛ 1(АМП)'!#REF! ->  | H70: 490002 | J70: 2017-02-01
C71: ='РАЗДЕЛ 1(АМП)'!#REF! ->  | D71: ='РАЗДЕЛ 1(АМП)'!#REF! ->  | E71: ='РАЗДЕЛ 1(АМП)'!#REF! ->  | F71: ='РАЗДЕЛ 1(АМП)'!#REF! ->  | H71: 490002 | J71: 2017-02-01
C72: ='РАЗДЕЛ 1(АМП)'!#REF! ->  | D72: ='РАЗДЕЛ 1(АМП)'!#REF! ->  | E72: ='РАЗДЕЛ 1(АМП)'!#REF! ->  | F72: ='РАЗДЕЛ 1(АМП)'!#REF! ->  | H72: 490002 | J72: 2017-02-01
C73: ='РАЗДЕЛ 1(АМП)'!#REF! ->  | D73: ='РАЗДЕЛ 1(АМП)'!#REF! ->  | E73: ='РАЗДЕЛ 1(АМП)'!#REF! ->  | F73: ='РАЗДЕЛ 1(АМП)'!#REF! ->  | H73: 490002 | J73: 2017-02-01
C74: ='РАЗДЕЛ 1(АМП)'!#REF! ->  | D74: ='РАЗДЕЛ 1(АМП)'!#REF! ->  | E74: ='РАЗДЕЛ 1(АМП)'!#REF! ->  | F74: ='РАЗДЕЛ 1(АМП)'!#REF! ->  | H74: 490002 | J74: 2017-02-01
C75: =#REF! ->  | D75: =#REF! ->  | F75: =#REF! ->  | G75: =#REF! ->  | H75: 490002 | I75: =#REF! ->  | J75: 2017-02-01
C76: =#REF! ->  | D76: =#REF! ->  | E76: =#REF! ->  | F76: =#REF! ->  | H76: 490002 | I76: =#REF! ->  | J76: 2017-02-01
C77: =#REF! ->  | D77: =#REF! ->  | E77: =#REF! ->  | F77: =#REF! ->  | H77: 490002 | I77: =#REF! ->  | J77: 2017-02-01
C78: =#REF! ->  | D78: =#REF! ->  | E78: =#REF! ->  | F78: =#REF! ->  | H78: =H77 -> 490002 | I78: =#REF! ->  | J78: =J77 -> 2017-02-01
C79: =#REF! ->  | D79: =#REF! ->  | E79: =#REF! ->  | F79: =#REF! ->  | H79: 490002 | I79: =#REF! ->  | J79: 2017-02-01
C80: =#REF! ->  | D80: =#REF! ->  | E80: =#REF! ->  | F80: =#REF! ->  | H80: 490002 | I80: =#REF! ->  | J80: 2017-02-01
C81: =#REF! ->  | D81: =#REF! ->  | E81: =#REF! ->  | F81: =#REF! ->  | H81: 490002 | I81: =#REF! ->  | J81: 2017-02-01
C82: =#REF! ->  | D82: =#REF! ->  | E82: =#REF! ->  | F82: =#REF! ->  | H82: 490002 | I82: =#REF! ->  | J82: 2017-02-01
C83: =#REF! ->  | D83: =#REF! ->  | F83: =#REF! ->  | G83: =#REF! ->  | H83: 490002 | I83: =#REF! ->  | J83: 2017-02-01
C84: =#REF! ->  | D84: =#REF! ->  | E84: =#REF! ->  | F84: =#REF! ->  | H84: 490002 | I84: =#REF! ->  | J84: 2017-02-01
C85: =#REF! ->  | D85: =#REF! ->  | E85: =#REF! ->  | F85: =#REF! ->  | H85: 490002 | I85: =#REF! ->  | J85: 2017-02-01
C86: =#REF! ->  | D86: =#REF! ->  | E86: =#REF! ->  | F86: =#REF! ->  | H86: 490002 | I86: =#REF! ->  | J86: 2017-02-01
C87: =#REF! ->  | D87: =#REF! ->  | E87: =#REF! ->  | F87: =#REF! ->  | H87: 490002 | I87: =#REF! ->  | J87: 2017-02-01
C88: =#REF! ->  | D88: =#REF! ->  | E88: =#REF! ->  | F88: =#REF! ->  | H88: 490002 | I88: =#REF! ->  | J88: 2017-02-01
C89: ='РАЗДЕЛ 1(АМП)'!#REF! ->  | D89: ='РАЗДЕЛ 1(АМП)'!#REF! ->  | E89: ='РАЗДЕЛ 1(АМП)'!#REF! ->  | F89: ='РАЗДЕЛ 1(АМП)'!#REF! ->  | H89: 490003 | J89: 2017-02-01
C90: ='РАЗДЕЛ 1(АМП)'!#REF! ->  | D90: ='РАЗДЕЛ 1(АМП)'!#REF! ->  | F90: ='РАЗДЕЛ 1(АМП)'!#REF! ->  | G90: ='РАЗДЕЛ 1(АМП)'!#REF! ->  | H90: 490003 | J90: 2017-02-01
C91: ='РАЗДЕЛ 1(АМП)'!#REF! ->  | D91: ='РАЗДЕЛ 1(АМП)'!#REF! ->  | E91: ='РАЗДЕЛ 1(АМП)'!#REF! ->  | F91: ='РАЗДЕЛ 1(АМП)'!#REF! ->  | H91: 490004 | J91: 2017-02-01
C92: ='РАЗДЕЛ 1(АМП)'!#REF! ->  | D92: ='РАЗДЕЛ 1(АМП)'!#REF! ->  | F92: ='РАЗДЕЛ 1(АМП)'!#REF! ->  | G92: ='РАЗДЕЛ 1(АМП)'!#REF! ->  | H92: =H91 -> 490004 | J92: =J91 -> 2017-02-01
C93: ='РАЗДЕЛ 1(АМП)'!#REF! ->  | D93: ='РАЗДЕЛ 1(АМП)'!#REF! ->  | E93: ='РАЗДЕЛ 1(АМП)'!#REF! ->  | F93: ='РАЗДЕЛ 1(АМП)'!#REF! ->  | H93: =H92 -> 490004 | J93: =J92 -> 2017-02-01
C94: ='РАЗДЕЛ 1(АМП)'!#REF! ->  | D94: ='РАЗДЕЛ 1(АМП)'!#REF! ->  | E94: ='РАЗДЕЛ 1(АМП)'!#REF! ->  | F94: ='РАЗДЕЛ 1(АМП)'!#REF! ->  | H94: 490004 | J94: 2017-02-01
C95: ='РАЗДЕЛ 1(АМП)'!#REF! ->  | D95: ='РАЗДЕЛ 1(АМП)'!#REF! ->  | E95: ='РАЗДЕЛ 1(АМП)'!#REF! ->  | F95: ='РАЗДЕЛ 1(АМП)'!#REF! ->  | H95: =H92 -> 490004 | J95: 2017-02-01
C96: ='РАЗДЕЛ 1(АМП)'!#REF! ->  | D96: ='РАЗДЕЛ 1(АМП)'!#REF! ->  | E96: ='РАЗДЕЛ 1(АМП)'!#REF! ->  | F96: ='РАЗДЕЛ 1(АМП)'!#REF! ->  | H96: =H95 -> 490004 | J96: 2017-02-01
C97: ='РАЗДЕЛ 1(АМП)'!#REF! ->  | D97: ='РАЗДЕЛ 1(АМП)'!#REF! ->  | E97: ='РАЗДЕЛ 1(АМП)'!#REF! ->  | F97: ='РАЗДЕЛ 1(АМП)'!#REF! ->  | H97: 490004 | J97: 2017-02-01
C98: ='РАЗДЕЛ 1(АМП)'!#REF! ->  | D98: ='РАЗДЕЛ 1(АМП)'!#REF! ->  | E98: ='РАЗДЕЛ 1(АМП)'!#REF! ->  | F98: ='РАЗДЕЛ 1(АМП)'!#REF! ->  | H98: 490004 | J98: 2017-02-01
C99: ='РАЗДЕЛ 1(АМП)'!#REF! ->  | D99: ='РАЗДЕЛ 1(АМП)'!#REF! ->  | E99: ='РАЗДЕЛ 1(АМП)'!#REF! ->  | F99: ='РАЗДЕЛ 1(АМП)'!#REF! ->  | H99: 490004 | J99: =J98 -> 2017-02-01
C100: ='РАЗДЕЛ 1(АМП)'!#REF! ->  | D100: ='РАЗДЕЛ 1(АМП)'!#REF! ->  | E100: ='РАЗДЕЛ 1(АМП)'!#REF! ->  | F100: ='РАЗДЕЛ 1(АМП)'!#REF! ->  | H100: 490004 | J100: 2017-02-01
C101: ='РАЗДЕЛ 1(АМП)'!#REF! ->  | D101: ='РАЗДЕЛ 1(АМП)'!#REF! ->  | E101: ='РАЗДЕЛ 1(АМП)'!#REF! ->  | F101: ='РАЗДЕЛ 1(АМП)'!#REF! ->  | H101: 490004 | J101: 2017-02-01
C102: ='РАЗДЕЛ 1(АМП)'!#REF! ->  | D102: ='РАЗДЕЛ 1(АМП)'!#REF! ->  | E102: ='РАЗДЕЛ 1(АМП)'!#REF! ->  | F102: ='РАЗДЕЛ 1(АМП)'!#REF! ->  | H102: 490004 | J102: 2017-02-01
C103: ='РАЗДЕЛ 1(АМП)'!#REF! ->  | D103: ='РАЗДЕЛ 1(АМП)'!#REF! ->  | E103: ='РАЗДЕЛ 1(АМП)'!#REF! ->  | F103: ='РАЗДЕЛ 1(АМП)'!#REF! ->  | H103: 490004 | J103: 2017-02-01
C104: ='РАЗДЕЛ 1(АМП)'!#REF! ->  | D104: ='РАЗДЕЛ 1(АМП)'!#REF! ->  | E104: ='РАЗДЕЛ 1(АМП)'!#REF! ->  | F104: ='РАЗДЕЛ 1(АМП)'!#REF! ->  | H104: 490004 | J104: 2017-02-01
C105: ='РАЗДЕЛ 1(АМП)'!#REF! ->  | D105: ='РАЗДЕЛ 1(АМП)'!#REF! ->  | E105: ='РАЗДЕЛ 1(АМП)'!#REF! ->  | F105: ='РАЗДЕЛ 1(АМП)'!#REF! ->  | H105: 490004 | J105: 2017-02-01
C106: ='РАЗДЕЛ 1(АМП)'!#REF! ->  | D106: ='РАЗДЕЛ 1(АМП)'!#REF! ->  | E106: ='РАЗДЕЛ 1(АМП)'!#REF! ->  | F106: ='РАЗДЕЛ 1(АМП)'!#REF! ->  | H106: 490004 | J106: 2017-02-01
C107: ='РАЗДЕЛ 1(АМП)'!#REF! ->  | D107: ='РАЗДЕЛ 1(АМП)'!#REF! ->  | F107: ='РАЗДЕЛ 1(АМП)'!#REF! ->  | G107: ='РАЗДЕЛ 1(АМП)'!#REF! ->  | H107: 490004 | J107: 2017-02-01
C108: ='РАЗДЕЛ 1(АМП)'!#REF! ->  | D108: ='РАЗДЕЛ 1(АМП)'!#REF! ->  | E108: ='РАЗДЕЛ 1(АМП)'!#REF! ->  | F108: ='РАЗДЕЛ 1(АМП)'!#REF! ->  | H108: 490004 | J108: 2017-02-01
C109: ='РАЗДЕЛ 1(АМП)'!#REF! ->  | D109: ='РАЗДЕЛ 1(АМП)'!#REF! ->  | E109: ='РАЗДЕЛ 1(АМП)'!#REF! ->  | F109: ='РАЗДЕЛ 1(АМП)'!#REF! ->  | H109: 490004 | J109: 2017-02-01
C110: ='РАЗДЕЛ 1(АМП)'!#REF! ->  | D110: ='РАЗДЕЛ 1(АМП)'!#REF! ->  | E110: ='РАЗДЕЛ 1(АМП)'!#REF! ->  | F110: ='РАЗДЕЛ 1(АМП)'!#REF! ->  | H110: 490004 | J110: 2017-02-01
C111: ='РАЗДЕЛ 1(АМП)'!#REF! ->  | D111: ='РАЗДЕЛ 1(АМП)'!#REF! ->  | E111: ='РАЗДЕЛ 1(АМП)'!#REF! ->  | F111: ='РАЗДЕЛ 1(АМП)'!#REF! ->  | H111: 490004 | J111: 2017-02-01
C112: ='РАЗДЕЛ 1(АМП)'!#REF! ->  | D112: ='РАЗДЕЛ 1(АМП)'!#REF! ->  | E112: ='РАЗДЕЛ 1(АМП)'!#REF! ->  | F112: ='РАЗДЕЛ 1(АМП)'!#REF! ->  | H112: 490004 | J112: 2017-02-01
C113: ='РАЗДЕЛ 1(АМП)'!#REF! ->  | D113: ='РАЗДЕЛ 1(АМП)'!#REF! ->  | E113: ='РАЗДЕЛ 1(АМП)'!#REF! ->  | F113: ='РАЗДЕЛ 1(АМП)'!#REF! ->  | H113: 490004 | J113: 2017-02-01
C114: ='РАЗДЕЛ 1(АМП)'!#REF! ->  | D114: ='РАЗДЕЛ 1(АМП)'!#REF! ->  | E114: ='РАЗДЕЛ 1(АМП)'!#REF! ->  | F114: ='РАЗДЕЛ 1(АМП)'!#REF! ->  | H114: 490004 | J114: 2017-02-01
C115: ='РАЗДЕЛ 1(АМП)'!#REF! ->  | D115: ='РАЗДЕЛ 1(АМП)'!#REF! ->  | E115: ='РАЗДЕЛ 1(АМП)'!#REF! ->  | F115: ='РАЗДЕЛ 1(АМП)'!#REF! ->  | H115: 490004 | J115: 2017-02-01
C116: ='РАЗДЕЛ 1(АМП)'!#REF! ->  | D116: ='РАЗДЕЛ 1(АМП)'!#REF! ->  | E116: ='РАЗДЕЛ 1(АМП)'!#REF! ->  | F116: ='РАЗДЕЛ 1(АМП)'!#REF! ->  | H116: 490004 | J116: 2017-02-01
C117: ='РАЗДЕЛ 1(АМП)'!#REF! ->  | D117: ='РАЗДЕЛ 1(АМП)'!#REF! ->  | E117: ='РАЗДЕЛ 1(АМП)'!#REF! ->  | F117: ='РАЗДЕЛ 1(АМП)'!#REF! ->  | H117: =H116 -> 490004 | J117: =J116 -> 2017-02-01
C118: ='РАЗДЕЛ 1(АМП)'!#REF! ->  | D118: ='РАЗДЕЛ 1(АМП)'!#REF! ->  | E118: ='РАЗДЕЛ 1(АМП)'!#REF! ->  | F118: ='РАЗДЕЛ 1(АМП)'!#REF! ->  | H118: 490004 | J118: 2017-02-01
C119: ='РАЗДЕЛ 1(АМП)'!#REF! ->  | D119: ='РАЗДЕЛ 1(АМП)'!#REF! ->  | E119: ='РАЗДЕЛ 1(АМП)'!#REF! ->  | F119: ='РАЗДЕЛ 1(АМП)'!#REF! ->  | H119: =H116 -> 490004 | J119: =J116 -> 2017-02-01
C120: ='РАЗДЕЛ 1(АМП)'!#REF! ->  | D120: ='РАЗДЕЛ 1(АМП)'!#REF! ->  | E120: ='РАЗДЕЛ 1(АМП)'!#REF! ->  | F120: ='РАЗДЕЛ 1(АМП)'!#REF! ->  | H120: =H119 -> 490004 | J120: =J119 -> 2017-02-01
C121: ='РАЗДЕЛ 1(АМП)'!#REF! ->  | D121: ='РАЗДЕЛ 1(АМП)'!#REF! ->  | E121: ='РАЗДЕЛ 1(АМП)'!#REF! ->  | F121: ='РАЗДЕЛ 1(АМП)'!#REF! ->  | H121: 490004 | J121: 2017-02-01
C122: ='РАЗДЕЛ 1(АМП)'!#REF! ->  | D122: ='РАЗДЕЛ 1(АМП)'!#REF! ->  | E122: ='РАЗДЕЛ 1(АМП)'!#REF! ->  | F122: ='РАЗДЕЛ 1(АМП)'!#REF! ->  | H122: 490004 | J122: 2017-02-01
C123: ='РАЗДЕЛ 1(АМП)'!#REF! ->  | D123: ='РАЗДЕЛ 1(АМП)'!#REF! ->  | E123: ='РАЗДЕЛ 1(АМП)'!#REF! ->  | F123: ='РАЗДЕЛ 1(АМП)'!#REF! ->  | H123: 490004 | J123: 2017-02-01
C124: ='РАЗДЕЛ 1(АМП)'!#REF! ->  | D124: ='РАЗДЕЛ 1(АМП)'!#REF! ->  | E124: ='РАЗДЕЛ 1(АМП)'!#REF! ->  | F124: ='РАЗДЕЛ 1(АМП)'!#REF! ->  | H124: 490004 | J124: 2017-02-01
C125: ='РАЗДЕЛ 1(АМП)'!#REF! ->  | D125: ='РАЗДЕЛ 1(АМП)'!#REF! ->  | E125: ='РАЗДЕЛ 1(АМП)'!#REF! ->  | F125: ='РАЗДЕЛ 1(АМП)'!#REF! ->  | H125: 490004 | J125: 2017-02-01
C126: ='РАЗДЕЛ 1(АМП)'!#REF! ->  | D126: ='РАЗДЕЛ 1(АМП)'!#REF! ->  | E126: ='РАЗДЕЛ 1(АМП)'!#REF! ->  | F126: ='РАЗДЕЛ 1(АМП)'!#REF! ->  | H126: 490004 | J126: 2017-02-01
C127: ='РАЗДЕЛ 1(АМП)'!#REF! ->  | D127: ='РАЗДЕЛ 1(АМП)'!#REF! ->  | E127: ='РАЗДЕЛ 1(АМП)'!#REF! ->  | F127: ='РАЗДЕЛ 1(АМП)'!#REF! ->  | H127: 490004 | J127: 2017-02-01
C128: ='РАЗДЕЛ 1(АМП)'!#REF! ->  | D128: ='РАЗДЕЛ 1(АМП)'!#REF! ->  | E128: ='РАЗДЕЛ 1(АМП)'!#REF! ->  | F128: ='РАЗДЕЛ 1(АМП)'!#REF! ->  | H128: 490004 | J128: 2017-02-01
C129: ='РАЗДЕЛ 1(АМП)'!#REF! ->  | D129: ='РАЗДЕЛ 1(АМП)'!#REF! ->  | E129: ='РАЗДЕЛ 1(АМП)'!#REF! ->  | F129: ='РАЗДЕЛ 1(АМП)'!#REF! ->  | H129: 490004 | J129: 2017-02-01
C130: ='РАЗДЕЛ 1(АМП)'!#REF! ->  | D130: ='РАЗДЕЛ 1(АМП)'!#REF! ->  | E130: ='РАЗДЕЛ 1(АМП)'!#REF! ->  | F130: ='РАЗДЕЛ 1(АМП)'!#REF! ->  | H130: 490004 | J130: 2017-02-01
C131: ='РАЗДЕЛ 1(АМП)'!#REF! ->  | D131: ='РАЗДЕЛ 1(АМП)'!#REF! ->  | F131: ='РАЗДЕЛ 1(АМП)'!#REF! ->  | G131: ='РАЗДЕЛ 1(АМП)'!#REF! ->  | H131: 490004 | J131: 2017-02-01
C132: ='РАЗДЕЛ 1(АМП)'!#REF! ->  | D132: ='РАЗДЕЛ 1(АМП)'!#REF! ->  | E132: ='РАЗДЕЛ 1(АМП)'!#REF! ->  | F132: ='РАЗДЕЛ 1(АМП)'!#REF! ->  | H132: 490004 | J132: 2017-02-01
C133: ='РАЗДЕЛ 1(АМП)'!#REF! ->  | D133: ='РАЗДЕЛ 1(АМП)'!#REF! ->  | E133: ='РАЗДЕЛ 1(АМП)'!#REF! ->  | F133: ='РАЗДЕЛ 1(АМП)'!#REF! ->  | H133: 490004 | J133: 2017-02-01
C134: ='РАЗДЕЛ 1(АМП)'!#REF! ->  | D134: ='РАЗДЕЛ 1(АМП)'!#REF! ->  | E134: ='РАЗДЕЛ 1(АМП)'!#REF! ->  | F134: ='РАЗДЕЛ 1(АМП)'!#REF! ->  | H134: 490004 | J134: 2017-02-01
C135: ='РАЗДЕЛ 1(АМП)'!#REF! ->  | D135: ='РАЗДЕЛ 1(АМП)'!#REF! ->  | E135: ='РАЗДЕЛ 1(АМП)'!#REF! ->  | F135: ='РАЗДЕЛ 1(АМП)'!#REF! ->  | H135: 490004 | J135: 2017-02-01
C136: ='РАЗДЕЛ 1(АМП)'!#REF! ->  | D136: ='РАЗДЕЛ 1(АМП)'!#REF! ->  | E136: ='РАЗДЕЛ 1(АМП)'!#REF! ->  | F136: ='РАЗДЕЛ 1(АМП)'!#REF! ->  | H136: 490004 | J136: 2017-02-01
C137: ='РАЗДЕЛ 1(АМП)'!#REF! ->  | D137: ='РАЗДЕЛ 1(АМП)'!#REF! ->  | E137: ='РАЗДЕЛ 1(АМП)'!#REF! ->  | F137: ='РАЗДЕЛ 1(АМП)'!#REF! ->  | H137: 490004 | J137: 2017-02-01
C138: ='РАЗДЕЛ 1(АМП)'!#REF! ->  | D138: ='РАЗДЕЛ 1(АМП)'!#REF! ->  | E138: ='РАЗДЕЛ 1(АМП)'!#REF! ->  | F138: ='РАЗДЕЛ 1(АМП)'!#REF! ->  | H138: 490004 | J138: 2017-02-01
C139: ='РАЗДЕЛ 1(АМП)'!#REF! ->  | D139: ='РАЗДЕЛ 1(АМП)'!#REF! ->  | E139: ='РАЗДЕЛ 1(АМП)'!#REF! ->  | F139: ='РАЗДЕЛ 1(АМП)'!#REF! ->  | H139: 490004 | J139: 2017-02-01
C140: ='РАЗДЕЛ 1(АМП)'!#REF! ->  | D140: ='РАЗДЕЛ 1(АМП)'!#REF! ->  | E140: ='РАЗДЕЛ 1(АМП)'!#REF! ->  | F140: ='РАЗДЕЛ 1(АМП)'!#REF! ->  | H140: 490004 | J140: 2017-02-01
C141: ='РАЗДЕЛ 1(АМП)'!#REF! ->  | D141: ='РАЗДЕЛ 1(АМП)'!#REF! ->  | E141: ='РАЗДЕЛ 1(АМП)'!#REF! ->  | F141: ='РАЗДЕЛ 1(АМП)'!#REF! ->  | H141: =H140 -> 490004 | J141: =J140 -> 2017-02-01
C142: ='РАЗДЕЛ 1(АМП)'!#REF! ->  | D142: ='РАЗДЕЛ 1(АМП)'!#REF! ->  | E142: ='РАЗДЕЛ 1(АМП)'!#REF! ->  | F142: ='РАЗДЕЛ 1(АМП)'!#REF! ->  | H142: 490004 | J142: 2017-02-01
C143: ='РАЗДЕЛ 1(АМП)'!#REF! ->  | D143: ='РАЗДЕЛ 1(АМП)'!#REF! ->  | E143: ='РАЗДЕЛ 1(АМП)'!#REF! ->  | F143: ='РАЗДЕЛ 1(АМП)'!#REF! ->  | H143: 490004 | J143: 2017-02-01
C144: ='РАЗДЕЛ 1(АМП)'!#REF! ->  | D144: ='РАЗДЕЛ 1(АМП)'!#REF! ->  | E144: ='РАЗДЕЛ 1(АМП)'!#REF! ->  | F144: ='РАЗДЕЛ 1(АМП)'!#REF! ->  | H144: 490004 | J144: 2017-02-01
C145: ='РАЗДЕЛ 1(АМП)'!#REF! ->  | D145: ='РАЗДЕЛ 1(АМП)'!#REF! ->  | E145: ='РАЗДЕЛ 1(АМП)'!#REF! ->  | F145: ='РАЗДЕЛ 1(АМП)'!#REF! ->  | H145: 490004 | J145: 2017-02-01
C146: ='РАЗДЕЛ 1(АМП)'!#REF! ->  | D146: ='РАЗДЕЛ 1(АМП)'!#REF! ->  | E146: ='РАЗДЕЛ 1(АМП)'!#REF! ->  | F146: ='РАЗДЕЛ 1(АМП)'!#REF! ->  | H146: 490004 | J146: 2017-02-01
C147: ='РАЗДЕЛ 1(АМП)'!#REF! ->  | D147: ='РАЗДЕЛ 1(АМП)'!#REF! ->  | E147: ='РАЗДЕЛ 1(АМП)'!#REF! ->  | F147: ='РАЗДЕЛ 1(АМП)'!#REF! ->  | H147: 490004 | J147: 2017-02-01
C148: ='РАЗДЕЛ 1(АМП)'!#REF! ->  | D148: ='РАЗДЕЛ 1(АМП)'!#REF! ->  | E148: ='РАЗДЕЛ 1(АМП)'!#REF! ->  | F148: ='РАЗДЕЛ 1(АМП)'!#REF! ->  | H148: 490004 | J148: 2017-02-01
C149: ='РАЗДЕЛ 1(АМП)'!#REF! ->  | D149: ='РАЗДЕЛ 1(АМП)'!#REF! ->  | E149: ='РАЗДЕЛ 1(АМП)'!#REF! ->  | F149: ='РАЗДЕЛ 1(АМП)'!#REF! ->  | H149: 490004 | J149: 2017-02-01
C150: ='РАЗДЕЛ 1(АМП)'!#REF! ->  | D150: ='РАЗДЕЛ 1(АМП)'!#REF! ->  | E150: ='РАЗДЕЛ 1(АМП)'!#REF! ->  | F150: ='РАЗДЕЛ 1(АМП)'!#REF! ->  | H150: 490004 | J150: 2017-02-01
C151: ='РАЗДЕЛ 1(АМП)'!#REF! ->  | D151: ='РАЗДЕЛ 1(АМП)'!#REF! ->  | E151: ='РАЗДЕЛ 1(АМП)'!#REF! ->  | F151: ='РАЗДЕЛ 1(АМП)'!#REF! ->  | H151: 490004 | J151: 2017-02-01
C152: ='РАЗДЕЛ 1(АМП)'!#REF! ->  | D152: ='РАЗДЕЛ 1(АМП)'!#REF! ->  | E152: ='РАЗДЕЛ 1(АМП)'!#REF! ->  | F152: ='РАЗДЕЛ 1(АМП)'!#REF! ->  | H152: 490004 | J152: 2017-02-01
C153: ='РАЗДЕЛ 1(АМП)'!#REF! ->  | D153: ='РАЗДЕЛ 1(АМП)'!#REF! ->  | F153: ='РАЗДЕЛ 1(АМП)'!#REF! ->  | G153: ='РАЗДЕЛ 1(АМП)'!#REF! ->  | H153: 490004 | J153: 2017-02-01
C154: ='РАЗДЕЛ 1(АМП)'!#REF! ->  | D154: ='РАЗДЕЛ 1(АМП)'!#REF! ->  | E154: ='РАЗДЕЛ 1(АМП)'!#REF! ->  | F154: ='РАЗДЕЛ 1(АМП)'!#REF! ->  | H154: 490004 | J154: 2017-02-01
C155: ='РАЗДЕЛ 1(АМП)'!#REF! ->  | D155: ='РАЗДЕЛ 1(АМП)'!#REF! ->  | E155: ='РАЗДЕЛ 1(АМП)'!#REF! ->  | F155: ='РАЗДЕЛ 1(АМП)'!#REF! ->  | H155: 490004 | J155: 2017-02-01
C156: ='РАЗДЕЛ 1(АМП)'!#REF! ->  | D156: ='РАЗДЕЛ 1(АМП)'!#REF! ->  | E156: ='РАЗДЕЛ 1(АМП)'!#REF! ->  | F156: ='РАЗДЕЛ 1(АМП)'!#REF! ->  | H156: 490004 | J156: 2017-02-01
C157: ='РАЗДЕЛ 1(АМП)'!#REF! ->  | D157: ='РАЗДЕЛ 1(АМП)'!#REF! ->  | E157: ='РАЗДЕЛ 1(АМП)'!#REF! ->  | F157: ='РАЗДЕЛ 1(АМП)'!#REF! ->  | H157: 490004 | J157: 2017-02-01
C158: ='РАЗДЕЛ 1(АМП)'!#REF! ->  | D158: ='РАЗДЕЛ 1(АМП)'!#REF! ->  | E158: ='РАЗДЕЛ 1(АМП)'!#REF! ->  | F158: ='РАЗДЕЛ 1(АМП)'!#REF! ->  | H158: 490004 | J158: 2017-02-01
C159: ='РАЗДЕЛ 1(АМП)'!#REF! ->  | D159: ='РАЗДЕЛ 1(АМП)'!#REF! ->  | E159: ='РАЗДЕЛ 1(АМП)'!#REF! ->  | F159: ='РАЗДЕЛ 1(АМП)'!#REF! ->  | H159: 490004 | J159: 2017-02-01
C160: ='РАЗДЕЛ 1(АМП)'!#REF! ->  | D160: ='РАЗДЕЛ 1(АМП)'!#REF! ->  | E160: ='РАЗДЕЛ 1(АМП)'!#REF! ->  | F160: ='РАЗДЕЛ 1(АМП)'!#REF! ->  | H160: 490004 | J160: 2017-02-01
C161: ='РАЗДЕЛ 1(АМП)'!#REF! ->  | D161: ='РАЗДЕЛ 1(АМП)'!#REF! ->  | E161: ='РАЗДЕЛ 1(АМП)'!#REF! ->  | F161: ='РАЗДЕЛ 1(АМП)'!#REF! ->  | H161: 490004 | J161: 2017-02-01
C162: ='РАЗДЕЛ 1(АМП)'!#REF! ->  | D162: ='РАЗДЕЛ 1(АМП)'!#REF! ->  | E162: ='РАЗДЕЛ 1(АМП)'!#REF! ->  | F162: ='РАЗДЕЛ 1(АМП)'!#REF! ->  | H162: 490004 | J162: 2017-02-01
C163: =#REF! ->  | D163: =#REF! ->  | F163: =#REF! ->  | G163: =#REF! ->  | H163: =H162 -> 490004 | I163: =#REF! ->  | J163: =J162 -> 2017-02-01
C164: =#REF! ->  | D164: =#REF! ->  | E164: =#REF! ->  | F164: =#REF! ->  | H164: 490004 | I164: =#REF! ->  | J164: 2017-02-01
C165: =#REF! ->  | D165: =#REF! ->  | E165: =#REF! ->  | F165: =#REF! ->  | H165: 490004 | I165: =#REF! ->  | J165: 2017-02-01
C166: =#REF! ->  | D166: =#REF! ->  | E166: =#REF! ->  | F166: =#REF! ->  | H166: 490004 | I166: =#REF! ->  | J166: 2017-02-01
C167: =#REF! ->  | D167: =#REF! ->  | E167: =#REF! ->  | F167: =#REF! ->  | H167: 490004 | I167: =#REF! ->  | J167: 2017-02-01
C168: =#REF! ->  | D168: =#REF! ->  | E168: =#REF! ->  | F168: =#REF! ->  | H168: 490004 | I168: =#REF! ->  | J168: 2017-02-01
C169: =#REF! ->  | D169: =#REF! ->  | F169: =#REF! ->  | G169: =#REF! ->  | H169: 490004 | I169: =#REF! ->  | J169: 2017-02-01
C170: =#REF! ->  | D170: =#REF! ->  | E170: =#REF! ->  | F170: =#REF! ->  | H170: 490004 | I170: =#REF! ->  | J170: 2017-02-01
C171: =#REF! ->  | D171: =#REF! ->  | E171: =#REF! ->  | F171: =#REF! ->  | H171: 490004 | I171: =#REF! ->  | J171: 2017-02-01
C172: =#REF! ->  | D172: =#REF! ->  | E172: =#REF! ->  | F172: =#REF! ->  | H172: 490004 | I172: =#REF! ->  | J172: 2017-02-01
C173: =#REF! ->  | D173: =#REF! ->  | E173: =#REF! ->  | F173: =#REF! ->  | H173: 490004 | I173: =#REF! ->  | J173: 2017-02-01
C174: ='РАЗДЕЛ 4 (СМП) '!#REF! ->  | D174: ='РАЗДЕЛ 4 (СМП) '!#REF! ->  | E174: ='РАЗДЕЛ 4 (СМП) '!#REF! ->  | F174: ='РАЗДЕЛ 4 (СМП) '!#REF! ->  | H174: =H173 -> 490004 | J174: =J173 -> 2017-02-01
C175: ='РАЗДЕЛ 1(АМП)'!#REF! ->  | D175: ='РАЗДЕЛ 1(АМП)'!#REF! ->  | E175: ='РАЗДЕЛ 1(АМП)'!#REF! ->  | F175: ='РАЗДЕЛ 1(АМП)'!#REF! ->  | H175: 490005 | J175: 2017-02-01
C176: ='РАЗДЕЛ 1(АМП)'!#REF! ->  | D176: ='РАЗДЕЛ 1(АМП)'!#REF! ->  | F176: ='РАЗДЕЛ 1(АМП)'!#REF! ->  | G176: ='РАЗДЕЛ 1(АМП)'!#REF! ->  | H176: =H175 -> 490005 | J176: 2017-02-01
C177: ='РАЗДЕЛ 1(АМП)'!#REF! ->  | D177: ='РАЗДЕЛ 1(АМП)'!#REF! ->  | E177: ='РАЗДЕЛ 1(АМП)'!#REF! ->  | F177: ='РАЗДЕЛ 1(АМП)'!#REF! ->  | H177: =H176 -> 490005 | J177: =J176 -> 2017-02-01
C178: ='РАЗДЕЛ 1(АМП)'!#REF! ->  | D178: ='РАЗДЕЛ 1(АМП)'!#REF! ->  | E178: ='РАЗДЕЛ 1(АМП)'!#REF! ->  | F178: ='РАЗДЕЛ 1(АМП)'!#REF! ->  | H178: 490005 | J178: 2017-02-01
C179: ='РАЗДЕЛ 1(АМП)'!#REF! ->  | D179: ='РАЗДЕЛ 1(АМП)'!#REF! ->  | E179: ='РАЗДЕЛ 1(АМП)'!#REF! ->  | F179: ='РАЗДЕЛ 1(АМП)'!#REF! ->  | H179: 490005 | J179: 2017-02-01
C180: ='РАЗДЕЛ 1(АМП)'!#REF! ->  | D180: ='РАЗДЕЛ 1(АМП)'!#REF! ->  | E180: ='РАЗДЕЛ 1(АМП)'!#REF! ->  | F180: ='РАЗДЕЛ 1(АМП)'!#REF! ->  | H180: 490005 | J180: 2017-02-01
C181: ='РАЗДЕЛ 1(АМП)'!#REF! ->  | D181: ='РАЗДЕЛ 1(АМП)'!#REF! ->  | E181: ='РАЗДЕЛ 1(АМП)'!#REF! ->  | F181: ='РАЗДЕЛ 1(АМП)'!#REF! ->  | H181: 490005 | J181: 2017-02-01
C182: ='РАЗДЕЛ 1(АМП)'!#REF! ->  | D182: ='РАЗДЕЛ 1(АМП)'!#REF! ->  | E182: ='РАЗДЕЛ 1(АМП)'!#REF! ->  | F182: ='РАЗДЕЛ 1(АМП)'!#REF! ->  | H182: 490005 | J182: 2017-02-01
C183: ='РАЗДЕЛ 1(АМП)'!#REF! ->  | D183: ='РАЗДЕЛ 1(АМП)'!#REF! ->  | E183: ='РАЗДЕЛ 1(АМП)'!#REF! ->  | F183: ='РАЗДЕЛ 1(АМП)'!#REF! ->  | H183: 490005 | J183: 2017-02-01
C184: ='РАЗДЕЛ 1(АМП)'!#REF! ->  | D184: ='РАЗДЕЛ 1(АМП)'!#REF! ->  | E184: ='РАЗДЕЛ 1(АМП)'!#REF! ->  | F184: ='РАЗДЕЛ 1(АМП)'!#REF! ->  | H184: 490005 | J184: 2017-02-01
C185: ='РАЗДЕЛ 1(АМП)'!#REF! ->  | D185: ='РАЗДЕЛ 1(АМП)'!#REF! ->  | E185: ='РАЗДЕЛ 1(АМП)'!#REF! ->  | F185: ='РАЗДЕЛ 1(АМП)'!#REF! ->  | H185: 490005 | J185: 2017-02-01
C186: ='РАЗДЕЛ 1(АМП)'!#REF! ->  | D186: ='РАЗДЕЛ 1(АМП)'!#REF! ->  | E186: ='РАЗДЕЛ 1(АМП)'!#REF! ->  | F186: ='РАЗДЕЛ 1(АМП)'!#REF! ->  | H186: 490005 | J186: 2017-02-01
C187: ='РАЗДЕЛ 1(АМП)'!#REF! ->  | D187: ='РАЗДЕЛ 1(АМП)'!#REF! ->  | E187: ='РАЗДЕЛ 1(АМП)'!#REF! ->  | F187: ='РАЗДЕЛ 1(АМП)'!#REF! ->  | H187: 490005 | J187: 2017-02-01
C188: ='РАЗДЕЛ 1(АМП)'!#REF! ->  | D188: ='РАЗДЕЛ 1(АМП)'!#REF! ->  | E188: ='РАЗДЕЛ 1(АМП)'!#REF! ->  | F188: ='РАЗДЕЛ 1(АМП)'!#REF! ->  | H188: 490005 | J188: 2017-02-01
C189: ='РАЗДЕЛ 1(АМП)'!#REF! ->  | D189: ='РАЗДЕЛ 1(АМП)'!#REF! ->  | E189: ='РАЗДЕЛ 1(АМП)'!#REF! ->  | F189: ='РАЗДЕЛ 1(АМП)'!#REF! ->  | H189: 490005 | J189: 2017-02-01
C190: ='РАЗДЕЛ 1(АМП)'!#REF! ->  | D190: ='РАЗДЕЛ 1(АМП)'!#REF! ->  | E190: ='РАЗДЕЛ 1(АМП)'!#REF! ->  | F190: ='РАЗДЕЛ 1(АМП)'!#REF! ->  | H190: 490005 | J190: 2017-02-01
C191: ='РАЗДЕЛ 1(АМП)'!#REF! ->  | D191: ='РАЗДЕЛ 1(АМП)'!#REF! ->  | F191: ='РАЗДЕЛ 1(АМП)'!#REF! ->  | G191: ='РАЗДЕЛ 1(АМП)'!#REF! ->  | H191: 490005 | J191: 2017-02-01
C192: ='РАЗДЕЛ 1(АМП)'!#REF! ->  | D192: ='РАЗДЕЛ 1(АМП)'!#REF! ->  | E192: ='РАЗДЕЛ 1(АМП)'!#REF! ->  | F192: ='РАЗДЕЛ 1(АМП)'!#REF! ->  | H192: 490005 | J192: 2017-02-01
C193: ='РАЗДЕЛ 1(АМП)'!#REF! ->  | D193: ='РАЗДЕЛ 1(АМП)'!#REF! ->  | E193: ='РАЗДЕЛ 1(АМП)'!#REF! ->  | F193: ='РАЗДЕЛ 1(АМП)'!#REF! ->  | H193: 490005 | J193: 2017-02-01
C194: ='РАЗДЕЛ 1(АМП)'!#REF! ->  | D194: ='РАЗДЕЛ 1(АМП)'!#REF! ->  | E194: ='РАЗДЕЛ 1(АМП)'!#REF! ->  | F194: ='РАЗДЕЛ 1(АМП)'!#REF! ->  | H194: 490005 | J194: 2017-02-01
C195: ='РАЗДЕЛ 1(АМП)'!#REF! ->  | D195: ='РАЗДЕЛ 1(АМП)'!#REF! ->  | E195: ='РАЗДЕЛ 1(АМП)'!#REF! ->  | F195: ='РАЗДЕЛ 1(АМП)'!#REF! ->  | H195: 490005 | J195: 2017-02-01
C196: ='РАЗДЕЛ 1(АМП)'!#REF! ->  | D196: ='РАЗДЕЛ 1(АМП)'!#REF! ->  | E196: ='РАЗДЕЛ 1(АМП)'!#REF! ->  | F196: ='РАЗДЕЛ 1(АМП)'!#REF! ->  | H196: 490005 | J196: 2017-02-01
C197: ='РАЗДЕЛ 1(АМП)'!#REF! ->  | D197: ='РАЗДЕЛ 1(АМП)'!#REF! ->  | E197: ='РАЗДЕЛ 1(АМП)'!#REF! ->  | F197: ='РАЗДЕЛ 1(АМП)'!#REF! ->  | H197: 490005 | J197: 2017-02-01
C198: ='РАЗДЕЛ 1(АМП)'!#REF! ->  | D198: ='РАЗДЕЛ 1(АМП)'!#REF! ->  | E198: ='РАЗДЕЛ 1(АМП)'!#REF! ->  | F198: ='РАЗДЕЛ 1(АМП)'!#REF! ->  | H198: =H197 -> 490005 | J198: =J197 -> 2017-02-01
C199: ='РАЗДЕЛ 1(АМП)'!#REF! ->  | D199: ='РАЗДЕЛ 1(АМП)'!#REF! ->  | E199: ='РАЗДЕЛ 1(АМП)'!#REF! ->  | F199: ='РАЗДЕЛ 1(АМП)'!#REF! ->  | H199: 490005 | J199: 2017-02-01
C200: ='РАЗДЕЛ 1(АМП)'!#REF! ->  | D200: ='РАЗДЕЛ 1(АМП)'!#REF! ->  | E200: ='РАЗДЕЛ 1(АМП)'!#REF! ->  | F200: ='РАЗДЕЛ 1(АМП)'!#REF! ->  | H200: 490005 | J200: 2017-02-01
... 1250 more rows
